Workbook

Sheet Instructions
A1: Basic instructions for use of the feed caclulation program
A3: Adding new feedstuffs
B4: New feed ingredients may be added to the Feed Ingredients sheet by inserting lines or replacing blank feeds.
B5: If you have ingredients in the pre-2018 version of the calculator that you wish to convert to the new format, copy
B6: the ingredients into the Old_to_New_Feed_Ingredient_Calc sheet and paste the converted values into the
B7: Feed Ingredients sheet (as values).
A8: Nutrient Values
B9: Non-protein nitrogen (NPN) is entered as equivalent CP from NPN.
B10: Lysine can be estimated by using 4% of the crude protein value.
B11: Methionine can be estimated by using 1.5% of the crude protein value.
B12: Sodium can be estimated by using 40% of the salt value.
B13: Chloride can be estimated by using 60% of the salt value.
B14: For Ca and salt, use the guarantee midpoint and not the minimum guarantee.
B15: If a feed ingredient is not in the listing, a good reference is the current Feedstuffs reference guide.
A16: Formulation
B17: From the INPUT sheet, select ingredients by typing a number between 1 and 30 in column A.
B18: Enter amount in pounds of each ingredient in column F. Total lbs will show in cell F36.
B19: For medicated feeds, enter feed rate (lb/hd/d) in cell I3.
A20: Medicated Feeds
B21: If an ingredient containing a medication is included in the formulation, g/ton of the medication will appear
B22: on the Print-Out. If a feed rate is entered, mg/hd/d of medication is also calculated.
B23: These medications are included in the program.
B24: Chlortetracycline | E24: Alone and in combo with sulfamethazine or lasalocid
B25: Sulfamethazine
B26: Monensin
B27: Lasalocid
B28: Deccox
B29: Bacitracin
B30: Amprolium
A31: Print-Out
B32: For customer-formula feeds, print only the Print-Out page and staple to the inspector card.
B33: Include all nutrient values for the appropriate species in the Inspector Entry Program.

Sheet INPUT
B1: Insp # | F1: =TODAY() -> 2022-06-14 | H1: Select feed type from menu
B2: Manf name | E2: Big Blue Feed Mill | I2: Beef Feed
B3: Product name | E3: Custom Beef Mix | F3: =Print_Tag!H3 ->  | H3: Feed rate (lbs) | I3: 5
E5: Ingredients Selected | F5: Amount lbs
B6: ='Feed Ingredients'!A2 -> Alfalfa Meal | D6: 1 | E6: =IF(ISERROR(VLOOKUP(D6,A$6:B$129,2,0)),"No feed",(VLOOKUP(D6,A$6:B$129,2,0))) -> Corn (7% CP) | F6: 725 | H6: Crude Protein % | I6: =Printout!B6 -> 15.8425
B7: ='Feed Ingredients'!A3 -> Ammonium Chloride | D7: =D6+1 -> 2 | E7: Corn Gluten Feed (18% CP) | F7: 300 | H7: NPN % | I7: =Printout!B7 -> 0
B8: ='Feed Ingredients'!A4 -> Bakery Byproduct | D8: =D7+1 -> 3 | E8: Distillers DG w/sol Beverage | F8: 300 | H8: Lysine % | I8: =Printout!B8 -> 0.6945
B9: ='Feed Ingredients'!A5 -> Barley | D9: 4 | E9: Soy Hulls | F9: 400 | H9: Methionine % | I9: =Printout!B9 -> 0.39165
B10: ='Feed Ingredients'!A6 -> Beet Pulp | D10: 5 | E10: Soybean Meal 46.5 | F10: 200 | H10: Crude Fat % | I10: =Printout!B10 -> 3.84975
B11: ='Feed Ingredients'!A7 -> Biuret | D11: 6 | E11: Cane Molasses (Dried) | F11: 30 | H11: Crude Fiber % | I11: =Printout!B11 -> 10.435
A12: 7 | B12: ='Feed Ingredients'!A8 -> Calcium Carbonate | D12: 7 | E12: Calcium Carbonate | F12: 25 | H12: ADF % | I12: =Printout!B12 -> 15.93875
B13: ='Feed Ingredients'!A9 -> Cane Molasses | D13: 8 | E13: Salt (NaCl) | F13: 15 | H13: NDF % | I13: =Printout!B13 -> 26.64375
A14: 6 | B14: ='Feed Ingredients'!A10 -> Cane Molasses (Dried) | D14: 9 | E14: TM Salt | F14: 5 | H14: Calcium % | I14: =Printout!B14 -> 0.669625
B15: ='Feed Ingredients'!A11 -> Canola Meal | D15: 10 | E15: No feed | H15: Phosphorus % | I15: =Printout!B15 -> 0.400225
B16: ='Feed Ingredients'!A12 -> Citrus Pulp | D16: 11 | E16: No feed | H16: Salt % | I16: =Printout!B16 -> 0.99125
B17: ='Feed Ingredients'!A13 -> Corn & Cob Meal | D17: 12 | E17: No feed | H17: Sodium % | I17: =Printout!B17 -> 0.43245775
B18: ='Feed Ingredients'!A14 -> Corn (6.5% CP) | D18: 13 | E18: No feed | H18: Magnesium % | I18: =Printout!B18 -> 0.1525
A19: 1 | B19: ='Feed Ingredients'!A15 -> Corn (7% CP) | D19: 14 | E19: No feed | H19: Potassium % | I19: =Printout!B19 -> 0.7835
B20: ='Feed Ingredients'!A16 -> Corn (7.5% CP) | D20: 15 | E20: No feed | H20: Sulfur % | I20: =Printout!B20 -> 0.1307
B21: ='Feed Ingredients'!A17 -> Corn Germ Meal (Cargill) | D21: 16 | E21: No feed | H21: Copper ppm | I21: =Printout!B21 -> 11.5375
B22: ='Feed Ingredients'!A18 -> Corn Germ Meal (wet mill) | D22: 17 | E22: No feed | H22: Selenium ppm | I22: =Printout!B22 -> 0
B23: ='Feed Ingredients'!A19 -> Corn Gluten Feed (16% CP) | D23: 18 | E23: No feed | H23: Zinc ppm | I23: =Printout!B23 -> 48.4575
A24: 2 | B24: ='Feed Ingredients'!A20 -> Corn Gluten Feed (18% CP) | D24: 19 | E24: No feed | H24: Iron ppm | I24: =Printout!B24 -> 172.1625
B25: ='Feed Ingredients'!A21 -> Corn Gluten Feed (20% CP) | D25: 20 | E25: No feed | H25: Manganese ppm | I25: =Printout!B25 -> 23.905
B26: ='Feed Ingredients'!A22 -> Corn Gluten Meal | D26: 21 | E26: No feed | H26: Cobalt ppm | I26: =Printout!B26 -> 0.26425
B27: ='Feed Ingredients'!A23 -> Cottonseed Delinted | D27: 22 | E27: No feed | H27: Iodine ppm | I27: =Printout!B27 -> 0
B28: ='Feed Ingredients'!A24 -> Cottonseed Hulls | D28: 23 | E28: No feed | H28: Vitamin A IU/lb | I28: =Printout!B28 -> 0
B29: ='Feed Ingredients'!A25 -> Cottonseed Meal | D29: 24 | E29: No feed | H29: Vitamin D IU/lb | I29: =Printout!B29 -> 0
B30: ='Feed Ingredients'!A26 -> Cottonseed, Whole | D30: 25 | E30: No feed | H30: Vitamin E IU/lb | I30: =Printout!B30 -> 0
B31: ='Feed Ingredients'!A27 -> Dicalcium Phosphate | D31: 26 | E31: No feed
A32: 3 | B32: ='Feed Ingredients'!A28 -> Distillers DG w/sol Beverage | D32: 27 | E32: No feed | H32: Moisture | I32: ='Calculation Sheet'!AJ6 -> 10.5475
B33: ='Feed Ingredients'!A29 -> Distillers DG w/sol Ethanol | D33: 28 | E33: No feed
B34: ='Feed Ingredients'!A30 -> Dried Whey | D34: 29 | E34: No feed
B35: ='Feed Ingredients'!A31 -> DYNA-K KCl | D35: 30 | E35: No feed
B36: ='Feed Ingredients'!A32 -> EDDI 9.2% Premix | F36: =SUM(F6:F35) -> 2000
B37: ='Feed Ingredients'!A33 -> Fish Meal Menhaden
B38: ='Feed Ingredients'!A34 -> Hominy Feed | F38: Percent of mix
B39: ='Feed Ingredients'!A35 -> Lysine HCl | E39: =E6 -> Corn (7% CP) | F39: =F6/F$36 -> 0.3625
B40: ='Feed Ingredients'!A36 -> Magnesium Oxide 54 | E40: =E7 -> Corn Gluten Feed (18% CP) | F40: =F7/F$36 -> 0.15
B41: ='Feed Ingredients'!A37 -> Mag Pot Sulfate | E41: Distillers DG w/sol Beverage | F41: 0.15
B42: ='Feed Ingredients'!A38 -> Meat & Bone Meal | E42: Soy Hulls | F42: 0.2
B43: ='Feed Ingredients'!A39 -> Millet | E43: Soybean Meal 46.5 | F43: 0.1
B44: ='Feed Ingredients'!A40 -> Mineral-Vitamin Premix | E44: Cane Molasses (Dried) | F44: 0.015
B45: ='Feed Ingredients'!A41 -> Mono-dical Phosphate | E45: Calcium Carbonate | F45: 0.0125
B46: ='Feed Ingredients'!A42 -> Oat Meal Byproduct | E46: Salt (NaCl) | F46: 0.0075
B47: ='Feed Ingredients'!A43 -> Oats | E47: TM Salt | F47: 0.0025
B48: ='Feed Ingredients'!A44 -> Rice Bran | E48: No feed | F48: 0
B49: ='Feed Ingredients'!A45 -> Rice Hulls | E49: No feed | F49: 0
B50: ='Feed Ingredients'!A46 -> Safflower Seed Meal | E50: No feed | F50: 0
A51: 8 | B51: ='Feed Ingredients'!A47 -> Salt (NaCl) | E51: No feed | F51: 0
B52: ='Feed Ingredients'!A48 -> Selenium Premix 600 | E52: No feed | F52: 0
B53: ='Feed Ingredients'!A49 -> Sodium Bentonite | E53: No feed | F53: 0
B54: ='Feed Ingredients'!A50 -> Sodium Bicarbonate
B55: ='Feed Ingredients'!A51 -> Sorghum/Milo
A56: 4 | B56: ='Feed Ingredients'!A52 -> Soy Hulls
B57: ='Feed Ingredients'!A53 -> Soybean Meal 44
A58: 5 | B58: ='Feed Ingredients'!A54 -> Soybean Meal 46.5
B59: ='Feed Ingredients'!A55 -> Soybean Meal 47.5
B60: ='Feed Ingredients'!A56 -> Sunflower (Black)
B61: ='Feed Ingredients'!A57 -> Sunflower (Stripe)
B62: ='Feed Ingredients'!A58 -> Sunflower Meal Solvent
B63: ='Feed Ingredients'!A59 -> TNT Swine PMX 75
B64: ='Feed Ingredients'!A60 -> TNT Swine PMX 75(E)
B65: ='Feed Ingredients'!A61 -> Urea 46%
B66: ='Feed Ingredients'!A62 -> Vegetable Oil
B67: ='Feed Ingredients'!A63 -> Vitamin A 650 Premix
B68: ='Feed Ingredients'!A64 -> Vitamin ADE Premix
B69: ='Feed Ingredients'!A65 -> Wheat
B70: ='Feed Ingredients'!A66 -> Wheat Bran
B71: ='Feed Ingredients'!A67 -> Wheat Midds
B72: ='Feed Ingredients'!A68 -> Wheat Screenings
B73: ='Feed Ingredients'!A69 -> Yeast
A74: 9 | B74: ='Feed Ingredients'!A70 -> TM Salt
B75: ='Feed Ingredients'!A71 -> Flaxseed
B76: ='Feed Ingredients'!A72 -> Soybeans Roasted
B77: ='Feed Ingredients'!A73 -> Peanut Pieces
B78: ='Feed Ingredients'!A74 -> Apple, whole
B79: ='Feed Ingredients'!A75 -> Carrots
B80: ='Feed Ingredients'!A76 -> Oyster Shell
B81: ='Feed Ingredients'!A77 -> Sugar
B82: ='Feed Ingredients'!A78 -> Distillers DG w/sol TCF
B83: ='Feed Ingredients'!A79 -> Oats PP
B84: ='Feed Ingredients'!A80 -> Rice Bran MaxEGlo
B85: ='Feed Ingredients'!A81 -> Soybean Meal 47.5 SS
B86: ='Feed Ingredients'!A82 -> Sunflower (Black) TG
B87: ='Feed Ingredients'!A83 -> Acorns
B88: ='Feed Ingredients'!A84 -> Potassium magnesium sulfate
B89: ='Feed Ingredients'!A85 -> zBlank10
B90: ='Feed Ingredients'!A86 -> zBlank11
B91: ='Feed Ingredients'!A87 -> zBlank12
B92: ='Feed Ingredients'!A88 -> zBlank13
B93: ='Feed Ingredients'!A89 -> zBlank14
B94: ='Feed Ingredients'!A90 -> zBlank15
B95: ='Feed Ingredients'!A91 -> …..COMMERCIAL FEEDS…..
B96: ='Feed Ingredients'!A92 -> zBlank16
B97: ='Feed Ingredients'!A93 -> zBlank17
B98: ='Feed Ingredients'!A94 -> zBlank18
B99: ='Feed Ingredients'!A95 -> zBlank19
B100: ='Feed Ingredients'!A96 -> zBlank20
B101: ='Feed Ingredients'!A97 -> zBlank21
B102: ='Feed Ingredients'!A98 -> zBlank22
B103: ='Feed Ingredients'!A99 -> zBlank23
B104: ='Feed Ingredients'!A100 -> zBlank24
B105: ='Feed Ingredients'!A101 -> zBlank25
B106: ='Feed Ingredients'!A102 -> zBlank26
B107: ='Feed Ingredients'!A103 -> zBlank27
B108: ='Feed Ingredients'!A104 -> zBlank28
B109: ='Feed Ingredients'!A105 -> zBlank29
B110: ='Feed Ingredients'!A106 -> zBlank30
B111: ='Feed Ingredients'!A107 -> ..MEDICATIONS TYPE B/C..
B112: ='Feed Ingredients'!A108 -> CTC 2 g/lb
B113: ='Feed Ingredients'!A109 -> CTC 4 g/lb
B114: ='Feed Ingredients'!A110 -> CTC 10 g/lb
B115: ='Feed Ingredients'!A111 -> AS 70
B116: ='Feed Ingredients'!A112 -> BMD Type B
B117: ='Feed Ingredients'!A113 -> Rumensin 90 (Type A)
B118: ='Feed Ingredients'!A114 -> Bovatec 91 (Type A)
B119: ='Feed Ingredients'!A115 -> Amprolium 2.5%
B120: ='Feed Ingredients'!A116 -> Rumensin (Type B)
B121: ='Feed Ingredients'!A117 -> Bovatec (Type B)
B122: ='Feed Ingredients'!A118 -> zBlank31
B123: ='Feed Ingredients'!A119 -> zBlank32
B124: ='Feed Ingredients'!A120 -> zBlank33
B125: ='Feed Ingredients'!A121 -> zBlank34
B126: ='Feed Ingredients'!A122 -> zBlank35
B127: ='Feed Ingredients'!A123 -> zBlank36
B128: ='Feed Ingredients'!A124 -> zBlank37
B129: ='Feed Ingredients'!A125 -> No feed

Sheet Print_Tag
A1: Insp. No.: | C1: =INPUT!E1 -> 0
A2: Manuf. Name: | C2: =INPUT!E2 -> Big Blue Feed Mill | H2: =INPUT!E3 -> Custom Beef Mix
A3: Total Pounds | C3: ='Calculation Sheet'!A4 -> 2000 | H3: =IF(B32="Yes","Medicated"," ") -> 
B4: All Calculated Nutrients | C4: =INPUT!I2 -> Beef Feed | E4: =C4 -> Beef Feed | F4: Tag
A5: GUARANTEES | F5: Guarantees | G5: Adjust
A6: Crude Protein % | B6: =Printout!B6 -> 15.8425 | C6: =IF(E6>0,E6," ") -> 15.8425 | E6: =HLOOKUP(C$4,Printout!$C$4:$O$30,3,0) -> 15.8425 | F6: =IF(E6>0,A6," ") -> Crude Protein % | G6: -0.1 | H6: =IF(F6=A6,(ROUND((C6+G6),1))," ") -> 15.7 | I6: =IF(F6=A6,"Min"," ") -> Min
A7: NPN % | B7: =Printout!B7 -> 0 | C7: =IF(E7>0,E7," ") ->  | E7: =HLOOKUP(C$4,Printout!$C$4:$O$30,4,0) -> 0 | F7: =IF(E7>0,A7," ") ->  | G7: 0.2 | H7: =IF(F7=A7,(ROUND((C7+G7),1))," ") ->  | I7: =IF(F7=A7,"Max"," ") -> 
A8: Lysine % | B8: =Printout!B8 -> 0.6945 | E8: =HLOOKUP(C$4,Printout!$C$4:$O$30,5,0) -> 0 | G8: 0 | H8: =IF(F8=A8,(ROUND((C8+G8),1))," ") -> 
A9: Methionine % | B9: =Printout!B9 -> 0.39165 | E9: =HLOOKUP(C$4,Printout!$C$4:$O$30,6,0) -> 0 | G9: 0 | H9: =IF(F9=A9,(ROUND((C9+G9),1))," ") -> 
A10: Crude Fat % | B10: =Printout!B10 -> 3.84975 | C10: 3.84975 | E10: =HLOOKUP(C$4,Printout!$C$4:$O$30,7,0) -> 3.84975 | F10: Crude Fat % | G10: -0.1 | H10: =IF(F10=A10,(ROUND((C10+G10),1))," ") -> 3.7 | I10: Min
A11: Crude Fiber % | B11: =Printout!B11 -> 10.435 | C11: 10.435 | E11: =HLOOKUP(C$4,Printout!$C$4:$O$30,8,0) -> 10.435 | F11: Crude Fiber % | G11: 0.5 | H11: 10.9 | I11: =IF(F11=A11,"Max"," ") -> Max
A12: ADF % | B12: =Printout!B12 -> 15.93875 | E12: =HLOOKUP(C$4,Printout!$C$4:$O$30,9,0) -> 0 | G12: 0.5
A13: NDF % | B13: =Printout!B13 -> 26.64375 | E13: =HLOOKUP(C$4,Printout!$C$4:$O$30,10,0) -> 0 | G13: 0.5
A14: Calcium % | B14: =Printout!B14 -> 0.669625 | C14: 0.669625 | E14: =HLOOKUP(C$4,Printout!$C$4:$O$30,11,0) -> 0.669625 | F14: Calcium % | H14: =IF(F14=A14,Min_Max!G13," ") -> 0.45 | I14: =IF(F14=A14,"Min"," ") -> Min | J14: =IF(F14=A14,Min_Max!H13," ") -> 0.95 | K14: =IF(F14=A14,"Max"," ") -> Max
A15: Phosphorus % | B15: =Printout!B15 -> 0.400225 | C15: 0.400225 | E15: =HLOOKUP(C$4,Printout!$C$4:$O$30,12,0) -> 0.400225 | F15: Phosphorus % | G15: -0.1 | H15: =IF(F15=A15,(ROUND((C15+G15),1))," ") -> 0.3 | I15: =IF(F15=A15,"Min"," ") -> Min
A16: Salt % | B16: =Printout!B16 -> 0.99125 | C16: 0.99125 | E16: =HLOOKUP(C$4,Printout!$C$4:$O$30,13,0) -> 0.99125 | F16: Salt % | H16: =IF(F16=A16,Min_Max!G14," ") -> 0.74125 | I16: Min | J16: =IF(F16=A16,Min_Max!H14," ") -> 1.24125 | K16: =IF(F16=A16,"Max"," ") -> Max
A17: Sodium % | B17: =Printout!B17 -> 0.43245775 | E17: =HLOOKUP(C$4,Printout!$C$4:$O$30,14,0) -> 0 | F17: =IF(E17>0,A17," ") ->  | H17: =IF(F17=A17,Min_Max!G15," ") ->  | I17: =IF(F17=A17,"Min"," ") ->  | J17: =IF(F17=A17,Min_Max!H15," ") ->  | K17: =IF(F17=A17,"Max"," ") -> 
A18: Magnesium % | B18: =Printout!B18 -> 0.1525 | E18: =HLOOKUP(C$4,Printout!$C$4:$O$30,15,0) -> 0 | F18: =A18 -> Magnesium % | G18: -0.1 | H18: =B18 -> 0.1525 | I18: Min
A19: Potassium % | B19: =Printout!B19 -> 0.7835 | C19: 0.7835 | E19: =HLOOKUP(C$4,Printout!$C$4:$O$30,16,0) -> 0.7835 | F19: Potassium % | H19: =IF(F19=A19,(ROUND((C19+G19),1))," ") -> 0.8 | I19: Min
A20: Sulfur % | B20: =Printout!B20 -> 0.1307 | E20: =HLOOKUP(C$4,Printout!$C$4:$O$30,17,0) -> 0
A21: Copper ppm | B21: =Printout!B21 -> 11.5375 | C21: 11.5375 | E21: =HLOOKUP(C$4,Printout!$C$4:$O$30,18,0) -> 11.5375 | F21: =A21 -> Copper ppm | G21: -0.1 | H21: =B21 -> 11.5375 | I21: =IF(F21=A21,"Min"," ") -> Min
A22: Selenium ppm | B22: =Printout!B22 -> 0 | E22: =HLOOKUP(C$4,Printout!$C$4:$O$30,19,0) -> 0 | F22: =A22 -> Selenium ppm | G22: -0.1 | H22: =B22 -> 0 | I22: Min
A23: Zinc ppm | B23: =Printout!B23 -> 48.4575 | C23: 48.4575 | E23: =HLOOKUP(C$4,Printout!$C$4:$O$30,20,0) -> 48.4575 | F23: =A23 -> Zinc ppm | G23: -0.1 | H23: =B23 -> 48.4575 | I23: =IF(F23=A23,"Min"," ") -> Min
A24: Iron ppm | B24: =Printout!B24 -> 172.1625 | E24: =HLOOKUP(C$4,Printout!$C$4:$O$30,21,0) -> 0
A25: Manganese ppm | B25: =Printout!B25 -> 23.905 | E25: =HLOOKUP(C$4,Printout!$C$4:$O$30,22,0) -> 0
A26: Cobalt ppm | B26: =Printout!B26 -> 0.26425 | E26: =HLOOKUP(C$4,Printout!$C$4:$O$30,23,0) -> 0
A27: Iodine ppm | B27: =Printout!B27 -> 0 | E27: =HLOOKUP(C$4,Printout!$C$4:$O$30,24,0) -> 0
A28: Vitamin A IU/lb | B28: =Printout!B28 -> 0 | E28: =HLOOKUP(C$4,Printout!$C$4:$O$30,25,0) -> 0
A29: Vitamin D IU/lb | B29: =Printout!B29 -> 0 | E29: =HLOOKUP(C$4,Printout!$C$4:$O$30,26,0) -> 0
A30: Vitamin E IU/lb | B30: =Printout!B30 -> 0 | E30: =HLOOKUP(C$4,Printout!$C$4:$O$30,27,0) -> 0
A32: =Printout!A31 -> Medicated feed ? | B32: =Printout!B31 -> No
A33: =Drug_Calc2!F24 -> None | B33: =Drug_Calc2!G24 -> 
A34: =Drug_Calc2!F25 ->  | B34: =Drug_Calc2!G25 -> 
A35: =Printout!A34 ->  | B35: =Printout!B34 -> 5
A36: =Drug_Calc2!H24 ->  | B36: =Drug_Calc2!I24 -> 
A37: =Drug_Calc2!H25 ->  | B37: =Drug_Calc2!I25 -> 

Sheet Printout
A1: Insp. No.: | B1: =Print_Tag!C1 -> 0 | D1: Product: | E1: =Print_Tag!H2 -> Custom Beef Mix
A2: Manuf. Name: | B2: =Print_Tag!C2 -> Big Blue Feed Mill
A3: Total Pounds | B3: ='Calculation Sheet'!A4 -> 2000 | F3: Complete Feeds and Supplements
C4: Beef Feed | D4: Dairy Feed | E4: Equine Feed | F4: Swine Feed | G4: Poultry Feed | H4: Goat Feed | I4: Sheep Feed | J4: Rabbit Feed | K4: Fish Feed | L4: Deer Feed | M4: Deer Mineral | N4: Mineral Feed | O4: Milk Replacer
A5: GUARANTEES | B5: MIX
A6: Crude Protein % | B6: ='Calculation Sheet'!C6 -> 15.8425 | C6: =$B$6 -> 15.8425 | D6: =$B$6 -> 15.8425 | E6: 15.8425 | F6: 15.8425 | G6: 15.8425 | H6: 15.8425 | I6: 15.8425 | J6: 15.8425 | K6: 15.8425 | L6: 15.8425 | O6: 15.8425
A7: NPN % | B7: ='Calculation Sheet'!D6 -> 0 | C7: =$B$7 -> 0 | D7: =$B$7 -> 0 | H7: =$B$7 -> 0 | I7: =$B$7 -> 0
A8: Lysine % | B8: ='Calculation Sheet'!E6 -> 0.6945 | F8: =$B$8 -> 0.6945 | G8: =$B$8 -> 0.6945
A9: Methionine % | B9: ='Calculation Sheet'!F6 -> 0.39165 | G9: =$B$9 -> 0.39165
A10: Crude Fat % | B10: ='Calculation Sheet'!G6 -> 3.84975 | C10: =$B$10 -> 3.84975 | D10: =$B$10 -> 3.84975 | E10: 3.84975 | F10: 3.84975 | G10: 3.84975 | H10: 3.84975 | I10: 3.84975 | J10: 3.84975 | K10: 3.84975 | L10: 3.84975 | O10: 3.84975
A11: Crude Fiber % | B11: ='Calculation Sheet'!H6 -> 10.435 | C11: =$B$11 -> 10.435 | D11: =$B$11 -> 10.435 | E11: 10.435 | F11: 10.435 | G11: 10.435 | H11: 10.435 | I11: 10.435 | J11: 10.435 | K11: 10.435 | L11: 10.435 | O11: 10.435
A12: ADF % | B12: ='Calculation Sheet'!I6 -> 15.93875 | D12: =$B$12 -> 15.93875 | E12: =$B$12 -> 15.93875 | H12: =$B$12 -> 15.93875
A13: NDF % | B13: ='Calculation Sheet'!J6 -> 26.64375 | E13: =$B$13 -> 26.64375
A14: Calcium % | B14: ='Calculation Sheet'!K6 -> 0.669625 | C14: =$B$14 -> 0.669625 | D14: =$B$14 -> 0.669625 | E14: 0.669625 | F14: 0.669625 | G14: 0.669625 | H14: 0.669625 | I14: 0.669625 | J14: 0.669625 | L14: 0.669625 | M14: 0.669625 | N14: 0.669625 | O14: 0.669625
A15: Phosphorus % | B15: ='Calculation Sheet'!L6 -> 0.400225 | C15: =$B$15 -> 0.400225 | D15: =$B$15 -> 0.400225 | E15: 0.400225 | F15: 0.400225 | G15: 0.400225 | H15: 0.400225 | I15: 0.400225 | J15: 0.400225 | K15: 0.400225 | L15: 0.400225 | M15: 0.400225 | N15: 0.400225 | O15: 0.400225
A16: Salt % | B16: ='Calculation Sheet'!M6 -> 0.99125 | C16: =$B$16 -> 0.99125 | F16: =$B$16 -> 0.99125 | G16: =$B$16 -> 0.99125 | H16: =$B$16 -> 0.99125 | I16: =$B$16 -> 0.99125 | J16: =$B$16 -> 0.99125 | L16: =$B$16 -> 0.99125 | M16: =$B$16 -> 0.99125 | N16: 0.99125
A17: Sodium % | B17: ='Calculation Sheet'!N6 -> 0.43245775
A18: Magnesium % | B18: ='Calculation Sheet'!O6 -> 0.1525
A19: Potassium % | B19: ='Calculation Sheet'!P6 -> 0.7835 | C19: =$B$19 -> 0.7835 | D19: =$B$19 -> 0.7835 | E19: 0.7835 | F19: 0.7835 | G19: 0.7835 | H19: 0.7835 | I19: 0.7835 | J19: 0.7835 | K19: 0.7835 | O19: 0.7835
A20: Sulfur % | B20: ='Calculation Sheet'!Q6 -> 0.1307
A21: Copper ppm | B21: ='Calculation Sheet'!R6 -> 11.5375 | C21: =$B$21 -> 11.5375 | D21: 11.5375 | E21: 11.5375 | F21: 11.5375 | G21: 11.5375 | H21: 11.5375 | I21: 11.5375 | J21: 11.5375 | K21: 11.5375 | M21: 11.5375 | N21: 11.5375 | O21: 11.5375
A22: Selenium ppm | B22: ='Calculation Sheet'!S6 -> 0 | C22: =$B$22 -> 0 | D22: =$B$22 -> 0 | E22: 0 | F22: 0 | G22: 0 | H22: 0 | I22: 0 | J22: 0 | K22: 0 | M22: 0 | N22: 0 | O22: 0
A23: Zinc ppm | B23: ='Calculation Sheet'!T6 -> 48.4575 | C23: =$B$23 -> 48.4575 | D23: =$B$23 -> 48.4575 | E23: 48.4575 | F23: 48.4575 | G23: 48.4575 | H23: 48.4575 | I23: 48.4575 | J23: 48.4575 | K23: 48.4575 | M23: 48.4575 | N23: 48.4575 | O23: 48.4575
A24: Iron ppm | B24: ='Calculation Sheet'!U6 -> 172.1625
A25: Manganese ppm | B25: ='Calculation Sheet'!V6 -> 23.905
A26: Cobalt ppm | B26: ='Calculation Sheet'!W6 -> 0.26425
A27: Iodine ppm | B27: ='Calculation Sheet'!X6 -> 0
A28: Vitamin A IU/lb | B28: ='Calculation Sheet'!Y6 -> 0 | C28: =$B$28 -> 0 | D28: =$B$28 -> 0 | E28: =$B$28 -> 0 | H28: =$B$28 -> 0 | I28: =$B$28 -> 0 | J28: =$B$28 -> 0 | O28: =$B$28 -> 0
A29: Vitamin D IU/lb | B29: ='Calculation Sheet'!Z6 -> 0
A30: Vitamin E IU/lb | B30: ='Calculation Sheet'!AA6 -> 0
A31: Medicated feed ? | B31: =IF(SUM(Drug_Calc2!B7:B13)=0,"No","Yes") -> No
A32: =Drug_Calc2!F24 -> None | B32: =Drug_Calc2!G24 ->  | D32: Guarantees in bold are required on the label for that species. Trace minerals & vitamin A, when added.
A33: =Drug_Calc2!F25 ->  | B33: =Drug_Calc2!G25 ->  | D33: Guarantees not in bold and shaded are optional guarantees that may be included on label.
A34: =IF($B31="Yes",Drug_Calc2!D15," ") ->  | B34: =INPUT!I3 -> 5 | D34: Copper guarantee for goat and sheep feeds is required when > 20 ppm.
A35: =Drug_Calc2!H24 ->  | B35: =Drug_Calc2!I24 ->  | D35: Added minerals need to be guaranteed in beef, dairy & equine mineral feeds (exceptions Mg & K in equine).
A36: =Drug_Calc2!H25 ->  | B36: =Drug_Calc2!I25 ->  | D36: A minimum crude fiber guarantee is needed on rabbit feeds, not to be less than 5% of the max.
A38: Ingredient | C38: Batch Wt | E38: Ingredient | G38: Batch Wt | J38: Ingredient | O38: Batch Wt
A39: ='Calculation Sheet'!B7 -> Corn (7% CP) | C39: ='Calculation Sheet'!A7 -> 725 | E39: ='Calculation Sheet'!B17 -> No feed | G39: ='Calculation Sheet'!A17 -> 0 | J39: ='Calculation Sheet'!B27 -> No feed | O39: ='Calculation Sheet'!A27 -> 0
A40: ='Calculation Sheet'!B8 -> Corn Gluten Feed (18% CP) | C40: ='Calculation Sheet'!A8 -> 300 | E40: ='Calculation Sheet'!B18 -> No feed | G40: ='Calculation Sheet'!A18 -> 0 | J40: ='Calculation Sheet'!B28 -> No feed | O40: ='Calculation Sheet'!A28 -> 0
A41: ='Calculation Sheet'!B9 -> Distillers DG w/sol Beverage | C41: ='Calculation Sheet'!A9 -> 300 | E41: ='Calculation Sheet'!B19 -> No feed | G41: ='Calculation Sheet'!A19 -> 0 | J41: ='Calculation Sheet'!B29 -> No feed | O41: ='Calculation Sheet'!A29 -> 0
A42: ='Calculation Sheet'!B10 -> Soy Hulls | C42: ='Calculation Sheet'!A10 -> 400 | E42: ='Calculation Sheet'!B20 -> No feed | G42: ='Calculation Sheet'!A20 -> 0 | J42: ='Calculation Sheet'!B30 -> No feed | O42: ='Calculation Sheet'!A30 -> 0
A43: ='Calculation Sheet'!B11 -> Soybean Meal 46.5 | C43: ='Calculation Sheet'!A11 -> 200 | E43: ='Calculation Sheet'!B21 -> No feed | G43: ='Calculation Sheet'!A21 -> 0 | J43: ='Calculation Sheet'!B31 -> No feed | O43: ='Calculation Sheet'!A31 -> 0
A44: ='Calculation Sheet'!B12 -> Cane Molasses (Dried) | C44: ='Calculation Sheet'!A12 -> 30 | E44: ='Calculation Sheet'!B22 -> No feed | G44: ='Calculation Sheet'!A22 -> 0 | J44: ='Calculation Sheet'!B32 -> No feed | O44: ='Calculation Sheet'!A32 -> 0
A45: ='Calculation Sheet'!B13 -> Calcium Carbonate | C45: ='Calculation Sheet'!A13 -> 25 | E45: ='Calculation Sheet'!B23 -> No feed | G45: ='Calculation Sheet'!A23 -> 0 | J45: ='Calculation Sheet'!B33 -> No feed | O45: ='Calculation Sheet'!A33 -> 0
A46: ='Calculation Sheet'!B14 -> Salt (NaCl) | C46: ='Calculation Sheet'!A14 -> 15 | E46: ='Calculation Sheet'!B24 -> No feed | G46: ='Calculation Sheet'!A24 -> 0 | J46: ='Calculation Sheet'!B34 -> No feed | O46: ='Calculation Sheet'!A34 -> 0
A47: ='Calculation Sheet'!B15 -> TM Salt | C47: ='Calculation Sheet'!A15 -> 5 | E47: ='Calculation Sheet'!B25 -> No feed | G47: ='Calculation Sheet'!A25 -> 0 | J47: ='Calculation Sheet'!B35 -> No feed | O47: ='Calculation Sheet'!A35 -> 0
A48: ='Calculation Sheet'!B16 -> No feed | C48: ='Calculation Sheet'!A16 -> 0 | E48: ='Calculation Sheet'!B26 -> No feed | G48: ='Calculation Sheet'!A26 -> 0 | J48: ='Calculation Sheet'!B36 -> No feed | O48: ='Calculation Sheet'!A36 -> 0

Sheet Feed Ingredients
B1: Crude protein % | C1: NPN % | D1: Lysine % | E1: Methionine % | F1: CrudeFat % | G1: Crude Fiber % | H1: ADF % | I1: NDF % | J1: Ca % | K1: P % | L1: Salt % | M1: Na % | N1: Mg % | O1: K % | P1: S % | Q1: Cu ppm | R1: Se ppm | S1: Zn ppm | T1: Fe ppm | U1: Mn ppm | V1: Co ppm | W1: I ppm | X1: Vit A IU/lb | Y1: Vit D IU/lb | Z1: Vit E IU/lb | AA1: Moisture % | AB1: CTC g/ton | AC1: Sulfamethazine g/ton | AD1: Monensin g/ton | AE1: Lasalocid g/ton | AF1: Deccox g/ton | AG1: Bacitracin g/ton | AH1: Amprolium g/ton
A2: Alfalfa Meal | B2: 17 | D2: 0.73 | E2: 0.28 | F2: 2.75 | G2: 25 | H2: 35 | I2: 45 | J2: 1.3 | K2: 0.23 | M2: 0.08 | N2: 0.29 | O2: 2.3 | P2: 0.2 | Q2: 10 | S2: 21 | T2: 400 | U2: 35 | AA2: 10
A3: Ammonium Chloride | B3: 160 | C3: 160 | D3: 0 | E3: 0 | F3: 0 | G3: 0 | H3: 0 | I3: 0 | J3: 0 | K3: 0 | N3: 0 | O3: 0 | Q3: 0 | R3: 0 | S3: 0 | X3: 0 | Y3: 0 | Z3: 0
A4: Bakery Byproduct | B4: 12 | D4: 0.3 | E4: 0.16 | F4: 9 | G4: 2.5 | H4: 7 | I4: 12 | J4: 0.1 | K4: 0.25 | M4: 1.1 | N4: 0.3 | O4: 0.1 | P4: 0.02 | Q4: 5 | S4: 15 | T4: 50 | U4: 60 | V4: 0.5 | AA4: 8
A5: Barley | B5: 10.5 | D5: 0.4 | E5: 0.12 | F5: 1.8 | G5: 4 | H5: 6 | I5: 17 | J5: 0.07 | K5: 0.36 | M5: 0.03 | N5: 0.13 | O5: 0.44 | P5: 0.15 | Q5: 8 | S5: 20 | T5: 80 | U5: 16 | V5: 0.1 | AA5: 10
A6: Beet Pulp | B6: 8 | D6: 0.6 | E6: 0.01 | F6: 0.5 | G6: 21 | H6: 24 | I6: 38 | J6: 0.6 | K6: 0.1 | M6: 0.19 | N6: 0.27 | O6: 0.21 | P6: 0.2 | Q6: 13 | S6: 1 | T6: 300 | U6: 35 | V6: 0.8 | AA6: 9
A7: Biuret | B7: 218 | C7: 218 | AA7: 5
A8: Calcium Carbonate | J8: 38 | AA8: 5
A9: Cane Molasses | B9: 3 | D9: 0.3 | E9: 0.01 | F9: 0.02 | G9: 0.5 | H9: 0.4 | I9: 0.7 | J9: 0.82 | K9: 0.08 | M9: 0.16 | N9: 0.36 | O9: 2.38 | P9: 0.47 | Q9: 59 | S9: 21 | T9: 200 | U9: 42 | AA9: 26
A10: Cane Molasses (Dried) | B10: 7 | D10: 0.3 | E10: 0.01 | F10: 0.4 | G10: 6 | H10: 8 | I10: 10 | J10: 1.1 | K10: 0.14 | M10: 0.2 | N10: 0.4 | O10: 3.4 | P10: 0.58 | Q10: 70 | S10: 28 | T10: 250 | U10: 52 | AA10: 9
A11: Canola Meal | B11: 35.5 | D11: 2 | E11: 0.75 | F11: 7.5 | G11: 12.5 | H11: 19.6 | I11: 27.8 | J11: 0.7 | K11: 1.2 | N11: 0.6 | O11: 1.3 | P11: 1 | Q11: 8 | S11: 65 | T11: 175 | U11: 54 | V11: 0.3 | AA11: 7
A12: Citrus Pulp | B12: 6 | D12: 0.24 | E12: 0.09 | F12: 3 | G12: 25 | H12: 35 | I12: 45 | J12: 1.75 | K12: 0.1 | M12: 0.01 | N12: 0.1 | O12: 0.8 | P12: 0 | Q12: 5 | S12: 10 | T12: 40 | U12: 10 | V12: 0.1 | AA12: 7
A13: Corn & Cob Meal | B13: 6 | D13: 0.2 | E13: 0.16 | F13: 3 | G13: 8.6 | H13: 11 | I13: 21 | J13: 0.04 | K13: 0.2 | N13: 0.13 | O13: 0.42 | P13: 0.1 | Q13: 6 | S13: 12 | T13: 130 | U13: 10 | V13: 0.7 | AA13: 12
A14: Corn (6.5% CP) | B14: 6.5 | D14: 0.24 | E14: 0.2 | F14: 3.5 | G14: 2 | H14: 3.5 | I14: 9.5 | J14: 0.01 | K14: 0.25 | N14: 0.08 | O14: 0.32 | P14: 0.08 | Q14: 3 | S14: 19 | T14: 37 | U14: 6 | V14: 0.1 | AA14: 12
A15: Corn (7% CP) | B15: 7 | D15: 0.24 | E15: 0.2 | F15: 3.5 | G15: 2 | H15: 3.5 | I15: 9.5 | J15: 0.01 | K15: 0.25 | N15: 0.08 | O15: 0.32 | P15: 0.08 | Q15: 3 | S15: 19 | T15: 37 | U15: 6 | V15: 0.1 | AA15: 12
A16: Corn (7.5% CP) | B16: 7.5 | D16: 0.24 | E16: 0.2 | F16: 3.5 | G16: 2 | H16: 3.5 | I16: 9.5 | J16: 0.01 | K16: 0.25 | N16: 0.08 | O16: 0.32 | P16: 0.08 | Q16: 3 | S16: 19 | T16: 37 | U16: 6 | V16: 0.1 | AA16: 12
A17: Corn Germ Meal (Cargill) | B17: 8.8 | D17: 0.35 | E17: 0.23 | F17: 7.4 | G17: 3.1 | AA17: 11.5
A18: Corn Germ Meal (wet mill) | B18: 22.8 | D18: 0.9 | E18: 0.6 | F18: 1 | G18: 7.8 | H18: 13.2 | I18: 37.7 | J18: 0.3 | K18: 0.5 | M18: 0.04 | N18: 0.16 | O18: 0.3 | P18: 0.32 | Q18: 4 | S18: 100 | T18: 330 | U18: 4 | AA18: 11.1
A19: Corn Gluten Feed (16% CP) | B19: 16 | D19: 0.6 | E19: 0.5 | F19: 3 | G19: 8 | H19: 11 | I19: 33 | J19: 0.15 | K19: 0.75 | N19: 0.29 | O19: 0.6 | P19: 0.16 | Q19: 5 | S19: 65 | T19: 160 | U19: 24 | AA19: 10
A20: Corn Gluten Feed (18% CP) | B20: 18 | D20: 0.6 | E20: 0.5 | F20: 3 | G20: 8 | H20: 11 | I20: 33 | J20: 0.15 | K20: 0.75 | N20: 0.29 | O20: 0.6 | P20: 0.16 | Q20: 5 | S20: 65 | T20: 160 | U20: 24 | AA20: 10
A21: Corn Gluten Feed (20% CP) | B21: 20 | D21: 0.6 | E21: 0.5 | F21: 3 | G21: 8 | H21: 11 | I21: 33 | J21: 0.15 | K21: 0.75 | N21: 0.29 | O21: 0.6 | P21: 0.16 | Q21: 5 | S21: 65 | T21: 160 | U21: 24 | AA21: 10
A22: Corn Gluten Meal | B22: 63.5 | D22: 1 | E22: 1.9 | F22: 2 | G22: 2.5 | H22: 4.6 | I22: 8.6 | J22: 0.02 | K22: 0.5 | M22: 0.03 | N22: 0.15 | O22: 0.45 | P22: 0.5 | Q22: 22 | S22: 40 | T22: 400 | U22: 4 | AA22: 9
A23: Cottonseed Delinted | B23: 22.5 | D23: 0.7 | E23: 0.2 | F23: 21.4 | G23: 15.4 | H23: 27.6 | I23: 39.2 | J23: 0.1 | K23: 0.48 | N23: 0.36 | O23: 1.06 | P23: 0.23 | Q23: 7 | S23: 37 | T23: 100 | U23: 17 | AA23: 10
A24: Cottonseed Hulls | B24: 5 | D24: 0.18 | E24: 0.06 | F24: 1.7 | G24: 49 | H24: 60.3 | I24: 73 | J24: 0.13 | K24: 0.07 | M24: 0.02 | N24: 0.13 | O24: 0.85 | Q24: 10 | S24: 17 | AA24: 10
A25: Cottonseed Meal | B25: 41 | D25: 1.76 | E25: 0.46 | F25: 1.5 | G25: 11 | H25: 16 | I25: 23 | J25: 0.15 | K25: 1 | M25: 0.04 | N25: 0.47 | O25: 1.26 | P25: 0.3 | Q25: 16 | S25: 60 | T25: 90 | U25: 21 | AA25: 10
A26: Cottonseed, Whole | B26: 21 | D26: 0.7 | E26: 0.2 | F26: 20 | G26: 18 | H26: 37 | I26: 49 | J26: 0.14 | K26: 0.5 | M26: 0.01 | N26: 0.32 | O26: 1.1 | P26: 0.23 | Q26: 25 | S26: 30 | T26: 100 | U26: 17 | AA26: 10
A27: Dicalcium Phosphate | J27: 21.5 | K27: 18.5 | AA27: 5
A28: Distillers DG w/sol Beverage | B28: 25 | D28: 0.6 | E28: 1 | F28: 9 | G28: 8 | H28: 18 | I28: 34 | J28: 0.08 | K28: 0.64 | M28: 0.03 | N28: 0.18 | O28: 0.63 | P28: 0.3 | Q28: 20 | S28: 81 | T28: 180 | U28: 29 | V28: 0.22 | AA28: 9
A29: Distillers DG w/sol Ethanol | B29: 27 | D29: 0.6 | E29: 0.5 | F29: 9 | G29: 8 | H29: 18 | I29: 34 | J29: 0.09 | K29: 0.8 | M29: 0.06 | N29: 0.27 | O29: 1 | P29: 0.53 | Q29: 12 | S29: 65 | T29: 140 | U29: 33 | V29: 0.46 | AA29: 9
A30: Dried Whey | B30: 12 | D30: 0.9 | E30: 0.18 | F30: 0.8 | G30: 0.1 | H30: 0.1 | J30: 0.9 | K30: 0.75 | M30: 1.3 | N30: 0.13 | O30: 1.2 | P30: 1 | Q30: 43 | S30: 3 | T30: 160 | U30: 7 | AA30: 6
A31: DYNA-K KCl | N31: 0.3 | O31: 50.3 | AA31: 5
A32: EDDI 9.2% Premix | L32: 90 | M32: 36 | W32: 71760
A33: Fish Meal Menhaden | B33: 60 | D33: 4.6 | E33: 1.7 | F33: 7.5 | G33: 1 | H33: 3 | I33: 20 | J33: 5.2 | K33: 2.9 | M33: 0.68 | N33: 0.14 | O33: 0.73 | P33: 0.45 | Q33: 8 | S33: 92 | T33: 880 | U33: 40 | AA33: 10
A34: Hominy Feed | B34: 9 | D34: 0.34 | E34: 0.15 | F34: 6 | G34: 4 | H34: 6 | I34: 18 | J34: 0.04 | K34: 0.5 | N34: 0.23 | O34: 0.63 | Q34: 3 | S34: 49 | T34: 65 | U34: 15 | AA34: 10
A35: Lysine HCl | D35: 80 | AA35: 5
A36: Magnesium Oxide 54 | N36: 54 | AA36: 5
A37: Mag Pot Sulfate | J37: 0.05 | M37: 0.75 | N37: 11.5 | O37: 18.5 | P37: 22 | S37: 10 | T37: 100 | U37: 20 | AA37: 5
A38: Meat & Bone Meal | B38: 50 | D38: 2.4 | E38: 0.65 | F38: 9.5 | G38: 2.8 | H38: 4 | I38: 20 | J38: 8.9 | K38: 4.4 | M38: 0.8 | N38: 1.1 | O38: 1.4 | P38: 0.4 | Q38: 3 | S38: 90 | T38: 500 | U38: 12 | AA38: 10
A39: Millet | B39: 11 | D39: 0.23 | E39: 0.31 | F39: 3.5 | G39: 6.1 | H39: 8 | I39: 13 | J39: 0.03 | K39: 0.31 | M39: 0.04 | N39: 0.16 | O39: 0.43 | P39: 0.13 | Q39: 26 | S39: 18 | T39: 40 | U39: 29 | V39: 0.5 | AA39: 10
A40: Mineral-Vitamin Premix | J40: 20 | K40: 5 | L40: 25 | M40: 9.84 | N40: 2.5 | O40: 1.5 | Q40: 800 | R40: 50 | S40: 3250 | U40: 3250 | X40: 250000 | Y40: 100000 | Z40: 500 | AA40: 5
A41: Mono-dical Phosphate | J41: 16 | K41: 21 | AA41: 5
A42: Oat Meal Byproduct | B42: 4.5 | D42: 0.1 | E42: 0.1 | F42: 2 | G42: 22 | H42: 37 | I42: 50 | J42: 0.08 | K42: 0.2 | N42: 0.15 | O42: 0.25 | Q42: 2 | S42: 10 | AA42: 10
A43: Oats | B43: 10 | D43: 0.32 | E43: 0.18 | F43: 4 | G43: 10 | H43: 13 | I43: 25 | J43: 0.05 | K43: 0.34 | M43: 0.02 | N43: 0.1 | O43: 0.35 | Q43: 3 | S43: 21 | T43: 80 | U43: 33 | V43: 0.03 | AA43: 11
A44: Rice Bran | B44: 12 | D44: 0.5 | E44: 0.2 | F44: 10 | G44: 13 | H44: 15 | I44: 25 | J44: 0.06 | K44: 1.4 | M44: 0.1 | N44: 0.95 | O44: 1.74 | P44: 0.18 | Q44: 12 | S44: 33 | T44: 190 | U44: 200 | V44: 0.7 | AA44: 10
A45: Rice Hulls | B45: 2.8 | D45: 0 | E45: 0 | F45: 0.8 | G45: 42.9 | H45: 72 | I45: 85 | J45: 0.23 | K45: 0.06 | M45: 0.08 | N45: 0.2 | O45: 0.31 | P45: 0.08 | Q45: 3 | S45: 24 | AA45: 10
A46: Safflower Seed Meal | B46: 22 | D46: 0.88 | E46: 0.33 | F46: 35 | G46: 26 | H46: 35 | I46: 50 | J46: 0.26 | K46: 0.67 | M46: 0.05 | N46: 0.36 | O46: 0.79 | P46: 0.1 | Q46: 25 | S46: 15 | T46: 500 | U46: 17 | AA46: 10
A47: Salt (NaCl) | L47: 100 | M47: 39.34 | AA47: 5
A48: Selenium Premix 600 | R48: 600 | AA48: 5
A49: Sodium Bentonite | M49: 11 | AA49: 5
A50: Sodium Bicarbonate | M50: 27 | AA50: 5
A51: Sorghum/Milo | B51: 9.2 | D51: 0.22 | E51: 0.17 | F51: 2.9 | G51: 3 | H51: 5 | I51: 8 | J51: 0.03 | K51: 0.29 | M51: 0.03 | N51: 0.15 | O51: 0.35 | P51: 0.09 | Q51: 10 | S51: 15 | T51: 52 | U51: 13 | V51: 0.6 | AA51: 10
A52: Soy Hulls | B52: 10.5 | D52: 0.54 | E52: 0.12 | F52: 2.5 | G52: 34 | H52: 47 | I52: 59 | J52: 0.5 | K52: 0.17 | M52: 0.17 | N52: 0.1 | O52: 1.16 | P52: 0.12 | Q52: 17 | S52: 30 | T52: 450 | U52: 20 | V52: 0.1 | AA52: 10
A53: Soybean Meal 44 | B53: 44 | D53: 3 | E53: 0.65 | F53: 0.5 | G53: 7.5 | H53: 10 | I53: 16 | J53: 0.3 | K53: 0.6 | M53: 0.01 | N53: 0.27 | O53: 1.92 | Q53: 22 | S53: 57 | T53: 90 | U53: 40 | V53: 0.5 | AA53: 10
A54: Soybean Meal 46.5 | B54: 46.5 | D54: 3.15 | E54: 0.7 | F54: 2.75 | G54: 4.2 | H54: 8 | I54: 12 | J54: 0.4 | K54: 0.65 | M54: 0.01 | N54: 0.27 | O54: 2 | Q54: 15 | S54: 45 | T54: 90 | U54: 40 | V54: 0.5 | AA54: 11
A55: Soybean Meal 47.5 | B55: 47.5 | D55: 3.2 | E55: 0.72 | F55: 2.75 | G55: 4 | H55: 8 | I55: 12 | J55: 0.4 | K55: 0.65 | M55: 0.01 | N55: 0.27 | O55: 2 | Q55: 15 | S55: 45 | T55: 90 | U55: 40 | V55: 0.5 | AA55: 11
A56: Sunflower (Black) | B56: 18 | D56: 0.72 | E56: 0.27 | F56: 27.7 | G56: 31 | H56: 39 | I56: 49 | J56: 0.17 | K56: 0.52 | M56: 0.01 | N56: 0.2 | O56: 0.66 | P56: 0.2 | Q56: 25 | S56: 15 | T56: 100 | U56: 25 | V56: 0.4 | AA56: 10
A57: Sunflower (Stripe) | B57: 28 | D57: 1.12 | E57: 0.2 | F57: 20 | G57: 26 | H57: 29 | I57: 39 | J57: 0.17 | K57: 0.52 | M57: 0.01 | N57: 0.2 | O57: 0.66 | P57: 0.2 | Q57: 25 | S57: 15 | T57: 100 | U57: 25 | V57: 0.4 | AA57: 10
A58: Sunflower Meal Solvent | B58: 42 | D58: 1.7 | E58: 1.5 | F58: 2.3 | G58: 21 | H58: 28 | I58: 38.5 | J58: 0.4 | K58: 0.65 | M58: 0.2 | N58: 0.75 | O58: 1 | Q58: 35 | S58: 100 | T58: 110 | U58: 23 | V58: 0.5 | AA58: 11
A59: TNT Swine PMX 75 | B59: 15 | D59: 3.6 | F59: 3 | G59: 3 | J59: 15 | K59: 3.5 | L59: 11.25 | M59: =($M$47/100)*(L59) -> 4.42575 | R59: 7.3 | S59: 1900 | AA59: 5
A60: TNT Swine PMX 75(E) | B60: 15 | D60: 3.6 | F60: 3 | G60: 3 | J60: 18 | K60: 6.4 | L60: 11.25 | M60: 4.42575 | R60: 7.3 | S60: 1900 | AA60: 5
A61: Urea 46% | B61: 287.5 | C61: 287.5 | AA61: 5
A62: Vegetable Oil | B62: 0 | C62: 0 | D62: 0 | E62: 0 | F62: 100 | G62: 0 | H62: 0 | I62: 0 | J62: 0 | K62: 0 | L62: 0 | M62: 0 | N62: 0 | O62: 0 | P62: 0 | Q62: 0 | R62: 0 | S62: 0 | T62: 0 | U62: 0 | V62: 0
A63: Vitamin A 650 Premix | X63: 295100000 | AA63: 5
A64: Vitamin ADE Premix | X64: 5250000 | Y64: 1550000 | Z64: 5000 | AA64: 5
A65: Wheat | B65: 11 | D65: 0.34 | E65: 0.24 | F65: 1.7 | G65: 3 | H65: 4 | I65: 13 | J65: 0.05 | K65: 0.35 | M65: 0.06 | N65: 0.1 | O65: 0.45 | P65: 0.1 | Q65: 7 | S65: 30 | T65: 43 | U65: 30 | AA65: 10
A66: Wheat Bran | B66: 14 | D66: 0.57 | E66: 0.11 | F66: 3 | G66: 11 | H66: 12 | I66: 35 | J66: 0.1 | K66: 1.15 | M66: 0.06 | N66: 0.55 | O66: 1.2 | P66: 0.22 | Q66: 10 | S66: 95 | T66: 170 | U66: 100 | AA66: 10
A67: Wheat Midds | B67: 15 | D67: 0.75 | E67: 0.26 | F67: 3.5 | G67: 8.5 | H67: 12 | I67: 34 | J67: 0.1 | K67: 0.85 | M67: 0.06 | N67: 0.25 | O67: 1 | P67: 0.16 | Q67: 10 | S67: 85 | T67: 60 | U67: 100 | AA67: 10
A68: Wheat Screenings | B68: 11 | D68: 0.48 | E68: 0.12 | F68: 5.1 | G68: 6.2 | H68: 8 | I68: 26 | J68: 0.05 | K68: 0.35 | M68: 0.06 | N68: 0.22 | O68: 0.45 | Q68: 4 | S68: 23 | T68: 35 | U68: 28 | AA68: 11
A69: Yeast | B69: 14 | D69: 0.65 | E69: 0.2 | F69: 3.5 | G69: 6 | H69: 8 | I69: 13 | J69: 0.28 | K69: 0.71 | M69: 0.1 | N69: 0.13 | O69: 1.2 | P69: 0.24 | Q69: 43 | S69: 3 | T69: 150 | U69: 5 | AA69: 10
A70: TM Salt | L70: 96.5 | M70: 37.9631 | Q70: 300 | S70: 3500 | T70: 2000 | U70: 2000 | V70: 50 | AA70: 5
A71: Flaxseed | B71: 22 | D71: 0.92 | E71: 0.42 | F71: 34 | G71: 6.5 | H71: 8 | I71: 15 | J71: 0.25 | K71: 0.5 | M71: 0.08 | N71: 0.5 | O71: 1.5 | Q71: 22 | S71: 91 | T71: 236 | U71: 85 | AA71: 8
A72: Soybeans Roasted | B72: 38 | D72: 2.4 | E72: 0.54 | F72: 18 | G72: 5 | H72: 10 | I72: 15 | J72: 0.25 | K72: 0.59 | M72: 0.04 | N72: 0.21 | O72: 1.7 | P72: 0.3 | Q72: 15 | S72: 35 | T72: 75 | U72: 30 | AA72: 10
A73: Peanut Pieces | B73: 30 | D73: 1.9 | E73: 0.4 | F73: 50 | G73: 2.5 | H73: 5 | I73: 12.5 | J73: 0.05 | K73: 0.4 | N73: 0.18 | O73: 0.65 | Q73: 5 | S73: 30 | T73: 25 | U73: 20 | AA73: 5
A74: Apple, whole | B74: 0.26 | F74: 0.17 | G74: 1.2 | H74: 2.4 | I74: 8 | AA74: 88.3
A75: Carrots | B75: 0.93 | F75: 0.24 | G75: 2.4 | H75: 4.8 | I75: 12 | AA75: 85.6
A76: Oyster Shell | J76: 37.62 | K76: 0.07 | M76: 0.21 | N76: 0.3 | O76: 0.1 | AA76: 0
A77: Sugar | B77: 0 | F77: 0 | G77: 0 | AA77: 9
A78: Distillers DG w/sol TCF | B78: 25 | D78: 0.6 | E78: 1 | F78: 7 | G78: 11 | H78: 18 | I78: 34 | J78: 0.08 | K78: 0.64 | M78: 0.03 | N78: 0.18 | O78: 0.63 | P78: 0.3 | Q78: 40 | S78: 81 | T78: 180 | U78: 29 | V78: 0.22 | AA78: 9
A79: Oats PP | B79: 8 | D79: 0.32 | E79: 0.18 | F79: 3.5 | G79: 13 | H79: 18 | I79: 25 | J79: 0.25 | K79: 0.2 | M79: 0.25 | N79: 0.1 | O79: 0.35 | Q79: 3 | S79: 21 | T79: 80 | U79: 33 | V79: 0.03 | AA79: 11
A80: Rice Bran MaxEGlo | B80: 13 | D80: 0.5 | E80: 0.2 | F80: 18 | G80: 8.5 | H80: 12 | I80: 20 | J80: 1.5 | K80: 1.5 | M80: 0.1 | N80: 0.95 | O80: 1.74 | P80: 0.18 | Q80: 12 | S80: 33 | T80: 190 | U80: 200 | V80: 0.7 | Z80: 50 | AA80: 10
A81: Soybean Meal 47.5 SS | B81: 47.5 | D81: 3.2 | E81: 0.72 | F81: 0.5 | G81: 4 | H81: 8 | I81: 12 | J81: 0.4 | K81: 0.65 | M81: 0.01 | N81: 0.27 | O81: 2 | Q81: 15 | S81: 45 | T81: 90 | U81: 40 | V81: 0.5 | AA81: 11
A82: Sunflower (Black) TG | B82: 15 | D82: 0.72 | E82: 0.27 | F82: 23 | G82: 32 | H82: 40 | I82: 50 | J82: 0.17 | K82: 0.52 | L82: 0 | M82: 0.01 | N82: 0.2 | O82: 0.66 | P82: 0.2 | Q82: 25 | S82: 15 | T82: 100 | U82: 25 | V82: 0.4 | AA82: 10
A83: Acorns | B83: 4.5 | F83: 7.5 | G83: 15 | H83: 17 | I83: 30 | J83: 0.15 | K83: 0.1 | AA83: 25
A84: Potassium magnesium sulfate | B84: 0 | D84: 0 | F84: 0 | G84: 0 | H84: 0 | I84: 0 | J84: 0.06 | K84: 0 | M84: 0.76 | N84: 11.6 | O84: 18.5 | P84: 22.3 | S84: 10 | T84: 100 | U84: 20 | AA84: 2
A85: zBlank10
A86: zBlank11
A87: zBlank12
A88: zBlank13
A89: zBlank14
A90: zBlank15
A91: …..COMMERCIAL FEEDS…..
A92: zBlank16
A93: zBlank17
A94: zBlank18
A95: zBlank19
A96: zBlank20
A97: zBlank21
A98: zBlank22
A99: zBlank23
A100: zBlank24
A101: zBlank25
A102: zBlank26
A103: zBlank27
A104: zBlank28
A105: zBlank29
A106: zBlank30
A107: ..MEDICATIONS TYPE B/C..
A108: CTC 2 g/lb | B108: 10 | J108: 2.25 | K108: 0.7 | M108: 0.05 | N108: 0.3 | O108: 0.9 | Q108: 8 | S108: 65 | T108: 300 | U108: 80 | V108: 0.5 | AA108: 5 | AB108: 4000
A109: CTC 4 g/lb | B109: 10 | J109: 2.25 | K109: 0.7 | M109: 0.05 | N109: 0.3 | O109: 0.9 | Q109: 8 | S109: 65 | T109: 300 | U109: 80 | V109: 0.5 | AA109: 5 | AB109: 8000
A110: CTC 10 g/lb | B110: 10 | J110: 2.25 | K110: 0.7 | M110: 0.05 | N110: 0.3 | O110: 0.9 | Q110: 8 | S110: 65 | T110: 300 | U110: 80 | V110: 0.5 | AA110: 5 | AB110: 20000
A111: AS 70 | AA111: 5 | AB111: 7000 | AC111: 7000
A112: BMD Type B | B112: 10 | F112: 2 | G112: 10 | H112: 12 | AA112: 5 | AG112: 5000
A113: Rumensin 90 (Type A) | AA113: 5 | AD113: =90.7*2000 -> 181400
A114: Bovatec 91 (Type A) | AA114: 5 | AE114: =90.7*2000 -> 181400
A115: Amprolium 2.5% | B115: 18 | D115: 0.6 | E115: 0.5 | F115: 3 | G115: 8 | H115: 11 | I115: 33 | J115: 0.15 | K115: 0.75 | N115: 0.29 | O115: 0.6 | P115: 0.16 | Q115: 35 | S115: 65 | T115: 160 | U115: 24 | AA115: 10 | AH115: =11.34*2000 -> 22680
A116: Rumensin (Type B) | AA116: 10 | AD116: 5000
A117: Bovatec (Type B) | AA117: 10 | AE117: 5000
A118: zBlank31
A119: zBlank32
A120: zBlank33
A121: zBlank34
A122: zBlank35
A123: zBlank36
A124: zBlank37
A125: No feed

Sheet Old_to_New_Feed_Ingredient_Conv
A1: Old ingredient format | B1: % Protein | C1: % NPN | D1: % Lysine | E1: % Fat | F1: % Fiber | G1: % ADF | H1: % Ca | I1: % Phos | J1: % Salt | K1: % Mg | L1: % K | M1: Cu ppm | N1: Sel. ppm | O1: Zn ppm | P1: Meth. | Q1: Vit.A IU/lb | R1: Vit.D IU/lb | S1: Vit.E IU/lb
A2: Alfalfa Hay | B2: 15 | D2: 0.6 | E2: 1.7 | F2: 29 | G2: 39 | H2: 1.25 | I2: 0.2 | K2: 0.22 | L2: 1.75 | M2: 10 | O2: 20 | P2: 0.2
A3: Alfalfa Meal | B3: 17 | D3: 0.73 | E3: 2.75 | F3: 25 | G3: 35 | H3: 1.3 | I3: 0.23 | K3: 0.29 | L3: 2.3 | M3: 10 | O3: 21 | P3: 0.22
A4: Barley | B4: 11 | D4: 0.4 | E4: 1.8 | F4: 6 | G4: 7 | H4: 0.07 | I4: 0.36 | K4: 0.13 | L4: 0.44 | M4: 8 | O4: 20 | P4: 0.12
A21: New ingredient format | B21: Crude protein % | C21: NPN % | D21: Lysine % | E21: Methionine % | F21: CrudeFat % | G21: Crude Fiber % | H21: ADF % | I21: NDF % | J21: Ca % | K21: P % | L21: Salt % | M21: Na % | N21: Mg % | O21: K % | P21: S % | Q21: Cu ppm | R21: Se ppm | S21: Zn ppm | T21: Fe ppm | U21: Mn ppm | V21: Co ppm | W21: I ppm | X21: Vit A IU/lb | Y21: Vit D IU/lb | Z21: Vit E IU/lb | AA21: Moisture % | AB21: CTC g/ton | AC21: Sulfamethazine g/ton | AD21: Monensin g/ton | AE21: Lasalocid g/ton | AF21: Deccox g/ton | AG21: Bacitracin g/ton | AH21: Amprolium g/ton
A22: =A2 -> Alfalfa Hay | B22: =B2 -> 15 | C22: =C2 -> 0 | D22: =D2 -> 0.6 | E22: =P2 -> 0.2 | F22: =E2 -> 1.7 | G22: =F2 -> 29 | H22: =G2 -> 39 | J22: =H2 -> 1.25 | K22: =I2 -> 0.2 | L22: =J2 -> 0 | N22: =K2 -> 0.22 | O22: =L2 -> 1.75 | Q22: =M2 -> 10 | R22: =N2 -> 0 | S22: =O2 -> 20 | X22: =Q2 -> 0 | Y22: =R2 -> 0 | Z22: 0
A23: =A3 -> Alfalfa Meal | B23: 17 | C23: 0 | D23: 0.73 | E23: =P3 -> 0.22 | F23: =E3 -> 2.75 | G23: 25 | H23: 35 | J23: =H3 -> 1.3 | K23: 0.23 | L23: 0 | N23: =K3 -> 0.29 | O23: 2.3 | Q23: =M3 -> 10 | R23: 0 | S23: 21 | X23: =Q3 -> 0 | Y23: =R3 -> 0 | Z23: =S3 -> 0
A24: Barley | B24: 11 | C24: 0 | D24: 0.4 | E24: 0.12 | F24: =E4 -> 1.8 | G24: 6 | H24: 7 | J24: =H4 -> 0.07 | K24: 0.36 | L24: 0 | N24: =K4 -> 0.13 | O24: 0.44 | Q24: =M4 -> 8 | R24: 0 | S24: 20 | X24: 0 | Y24: 0 | Z24: 0
A25: =A5 -> 0 | B25: 0 | C25: 0 | D25: 0 | E25: =P5 -> 0 | F25: =E5 -> 0 | G25: 0 | H25: 0 | I25: 0 | J25: 19.25 | K25: =I5 -> 0 | L25: 17.6 | M25: 7.4 | N25: =K5 -> 0 | O25: =L5 -> 0 | Q25: 750 | R25: =N5 -> 0 | S25: 2900 | T25: 2400 | U25: 2700 | V25: 29 | W25: 63 | X25: =Q5 -> 0 | Y25: =R5 -> 0 | Z25: =S5 -> 0
A26: =A6 -> 0 | B26: 0 | C26: 0 | D26: 0 | E26: 0 | F26: =E6 -> 0 | G26: 0 | H26: 0 | I26: 0 | J26: 24 | K26: 0 | L26: 14.5 | M26: 6 | N26: 0.5 | O26: 0.3 | Q26: =M6 -> 0 | R26: 0 | S26: =O6 -> 0 | T26: 2900 | U26: 400 | V26: 2.5 | X26: 20000 | Y26: 0 | Z26: 10
A27: =A7 -> 0 | B27: 0 | C27: 0 | D27: 0 | E27: 0 | F27: =E7 -> 0 | G27: 0 | H27: 0 | J27: =H7 -> 0 | K27: 0 | L27: =J7 -> 0 | N27: 0 | O27: 0 | Q27: 0 | R27: 0 | S27: 0 | X27: 0 | Y27: 0 | Z27: 0
A28: =A8 -> 0 | B28: 0 | C28: 0 | D28: 0 | E28: 0 | F28: =E8 -> 0 | G28: 0 | H28: 0 | J28: 0 | K28: 0 | L28: 0 | N28: 0 | O28: 0 | Q28: 0 | R28: 0 | S28: 0 | X28: 0 | Y28: 0 | Z28: 0
A29: =A9 -> 0 | B29: 0 | C29: 0 | D29: 0 | E29: 0 | F29: =E9 -> 0 | G29: 0 | H29: 0 | J29: 0 | K29: 0 | L29: 0 | N29: 0 | O29: 0 | Q29: 0 | R29: 0 | S29: 0 | X29: 0 | Y29: 0 | Z29: 0
A30: =A10 -> 0 | B30: 0 | C30: 0 | D30: 0 | E30: 0 | F30: =E10 -> 0 | G30: 0 | H30: 0 | J30: 0 | K30: 0 | L30: 0 | N30: 0 | O30: 0 | Q30: 0 | R30: 0 | S30: 0 | X30: 0 | Y30: 0 | Z30: 0
A31: =A11 -> 0 | B31: 0 | C31: 0 | D31: 0 | E31: 0 | F31: =E11 -> 0 | G31: 0 | H31: 0 | J31: 0 | K31: 0 | L31: 0 | N31: 0 | O31: 0 | Q31: 0 | R31: 0 | S31: 0 | X31: 0 | Y31: 0 | Z31: 0
A32: =A12 -> 0 | B32: 0 | C32: 0 | D32: 0 | E32: 0 | F32: =E12 -> 0 | G32: 0 | H32: 0 | J32: 0 | K32: 0 | L32: 0 | N32: 0 | O32: 0 | Q32: 0 | R32: 0 | S32: 0 | X32: 0 | Y32: 0 | Z32: 0
A33: =A13 -> 0 | B33: 0 | C33: 0 | D33: 0 | E33: 0 | F33: =E13 -> 0 | G33: 0 | H33: 0 | J33: 0 | K33: 0 | L33: 0 | N33: 0 | O33: 0 | Q33: 0 | R33: 0 | S33: 0 | X33: 0 | Y33: 0 | Z33: 0
A34: =A14 -> 0 | B34: 0 | C34: 0 | D34: 0 | E34: 0 | F34: =E14 -> 0 | G34: 0 | H34: 0 | J34: 0 | K34: 0 | L34: 0 | N34: 0 | O34: 0 | Q34: 0 | R34: 0 | S34: 0 | X34: 0 | Y34: 0 | Z34: 0
A35: =A15 -> 0 | B35: 0 | C35: 0 | D35: 0 | E35: 0 | F35: =E15 -> 0 | G35: 0 | H35: 0 | J35: 0 | K35: 0 | L35: 0 | N35: 0 | O35: 0 | Q35: 0 | R35: 0 | S35: 0 | X35: 0 | Y35: 0 | Z35: 0
A36: =A16 -> 0 | B36: 0 | C36: 0 | D36: 0 | E36: 0 | F36: =E16 -> 0 | G36: 0 | H36: 0 | J36: 0 | K36: 0 | L36: 0 | N36: 0 | O36: 0 | Q36: 0 | R36: 0 | S36: 0 | X36: 0 | Y36: 0 | Z36: 0
A37: =A17 -> 0 | B37: 0 | C37: 0 | D37: 0 | E37: 0 | F37: =E17 -> 0 | G37: 0 | H37: 0 | J37: 0 | K37: 0 | L37: 0 | N37: 0 | O37: 0 | Q37: 0 | R37: 0 | S37: 0 | X37: 0 | Y37: 0 | Z37: 0
A38: =A18 -> 0 | B38: 0 | C38: 0 | D38: 0 | E38: 0 | F38: =E18 -> 0 | G38: 0 | H38: 0 | J38: 0 | K38: 0 | L38: 0 | N38: 0 | O38: 0 | Q38: 0 | R38: 0 | S38: 0 | X38: 0 | Y38: 0 | Z38: 0
A39: =A19 -> 0 | B39: 0 | C39: 0 | D39: 0 | E39: 0 | F39: =E19 -> 0 | G39: 0 | H39: 0 | J39: 0 | K39: 0 | L39: 0 | N39: 0 | O39: 0 | Q39: 0 | R39: 0 | S39: 0 | X39: 0 | Y39: 0 | Z39: 0
A40: =A20 -> 0 | B40: 0 | C40: 0 | D40: 0 | E40: 0 | F40: =E20 -> 0 | G40: 0 | H40: 0 | J40: 0 | K40: 0 | L40: 0 | N40: 0 | O40: 0 | Q40: 0 | R40: 0 | S40: 0 | X40: 0 | Y40: 0 | Z40: 0

Sheet Calculation Sheet
A4: =SUM(A7:A37) -> 2000 | C4: 2 | D4: =C4+1 -> 3 | E4: =D4+1 -> 4 | F4: 5 | G4: 6 | H4: 7 | I4: 8 | J4: 9 | K4: 10 | L4: 11 | M4: 12 | N4: 13 | O4: 14 | P4: 15 | Q4: 16 | R4: 17 | S4: 18 | T4: 19 | U4: 20 | V4: 21 | W4: 22 | X4: 23 | Y4: 24 | Z4: 25 | AA4: 26 | AB4: =AA4+2 -> 28 | AC4: =AB4+1 -> 29 | AD4: =AC4+1 -> 30 | AE4: =AD4+1 -> 31 | AF4: =AE4+1 -> 32 | AG4: =AF4+1 -> 33 | AH4: 34 | AJ4: 27
A5: Calculated Values | C5: ='Feed Ingredients'!B1 -> Crude protein % | D5: ='Feed Ingredients'!C1 -> NPN % | E5: ='Feed Ingredients'!D1 -> Lysine % | F5: ='Feed Ingredients'!E1 -> Methionine % | G5: ='Feed Ingredients'!F1 -> CrudeFat % | H5: ='Feed Ingredients'!G1 -> Crude Fiber % | I5: ='Feed Ingredients'!H1 -> ADF % | J5: ='Feed Ingredients'!I1 -> NDF % | K5: ='Feed Ingredients'!J1 -> Ca % | L5: ='Feed Ingredients'!K1 -> P % | M5: ='Feed Ingredients'!L1 -> Salt % | N5: ='Feed Ingredients'!M1 -> Na % | O5: ='Feed Ingredients'!N1 -> Mg % | P5: ='Feed Ingredients'!O1 -> K % | Q5: ='Feed Ingredients'!P1 -> S % | R5: ='Feed Ingredients'!Q1 -> Cu ppm | S5: ='Feed Ingredients'!R1 -> Se ppm | T5: ='Feed Ingredients'!S1 -> Zn ppm | U5: ='Feed Ingredients'!T1 -> Fe ppm | V5: ='Feed Ingredients'!U1 -> Mn ppm | W5: ='Feed Ingredients'!V1 -> Co ppm | X5: ='Feed Ingredients'!W1 -> I ppm | Y5: ='Feed Ingredients'!X1 -> Vit A IU/lb | Z5: ='Feed Ingredients'!Y1 -> Vit D IU/lb | AA5: ='Feed Ingredients'!Z1 -> Vit E IU/lb | AB5: ='Feed Ingredients'!AB1 -> CTC g/ton | AC5: ='Feed Ingredients'!AC1 -> Sulfamethazine g/ton | AD5: ='Feed Ingredients'!AD1 -> Monensin g/ton | AE5: ='Feed Ingredients'!AE1 -> Lasalocid g/ton | AF5: ='Feed Ingredients'!AF1 -> Deccox g/ton | AG5: ='Feed Ingredients'!AG1 -> Bacitracin g/ton | AH5: ='Feed Ingredients'!AH1 -> Amprolium g/ton | AJ5: ='Feed Ingredients'!AA1 -> Moisture %
A6: Pounds | B6: Ingredients | C6: =(($A$7*C7)+($A$8*C8)+($A$9*C9)+($A$10*C10)+($A$11*C11)+($A$12*C12)+($A$13*C13)+($A$14*C14)+($A$15*C15)+($A$16*C16)+($A$17*C17)+($A$18*C18)+($A$19*C19)+($A$20*C20)+($A$21*C21)+($A$22*C22)+($A$23*C23)+($A$24*C24)+($A$25*C25)+($A$26*C26)+($A$27*C27)+($A$28*C28)+($A$29*C29)+($A$30*C30)+($A$31*C31)+($A$32*C32)+($A$33*C33)+($A$34*C34)+($A$35*C35)+($A$36*C36)+($A$37*C37))/$A4 -> 15.8425 | D6: =(($A$7*D7)+($A$8*D8)+($A$9*D9)+($A$10*D10)+($A$11*D11)+($A$12*D12)+($A$13*D13)+($A$14*D14)+($A$15*D15)+($A$16*D16)+($A$17*D17)+($A$18*D18)+($A$19*D19)+($A$20*D20)+($A$21*D21)+($A$22*D22)+($A$23*D23)+($A$24*D24)+($A$25*D25)+($A$26*D26)+($A$27*D27)+($A$28*D28)+($A$29*D29)+($A$30*D30)+($A$31*D31)+($A$32*D32)+($A$33*D33)+($A$34*D34)+($A$35*D35)+($A$36*D36)+($A$37*D37))/$A4 -> 0 | E6: 0.6945 | F6: 0.39165 | G6: 3.84975 | H6: 10.435 | I6: 15.93875 | J6: 26.64375 | K6: 0.669625 | L6: 0.400225 | M6: 0.99125 | N6: 0.43245775 | O6: 0.1525 | P6: 0.7835 | Q6: 0.1307 | R6: 11.5375 | S6: 0 | T6: 48.4575 | U6: 172.1625 | V6: 23.905 | W6: 0.26425 | X6: 0 | Y6: 0 | Z6: 0 | AA6: 0 | AB6: 0 | AC6: 0 | AD6: 0 | AE6: 0 | AF6: 0 | AG6: 0 | AH6: 0 | AJ6: =(($A$7*AJ7)+($A$8*AJ8)+($A$9*AJ9)+($A$10*AJ10)+($A$11*AJ11)+($A$12*AJ12)+($A$13*AJ13)+($A$14*AJ14)+($A$15*AJ15)+($A$16*AJ16)+($A$17*AJ17)+($A$18*AJ18)+($A$19*AJ19)+($A$20*AJ20)+($A$21*AJ21)+($A$22*AJ22)+($A$23*AJ23)+($A$24*AJ24)+($A$25*AJ25)+($A$26*AJ26)+($A$27*AJ27)+($A$28*AJ28)+($A$29*AJ29)+($A$30*AJ30)+($A$31*AJ31)+($A$32*AJ32)+($A$33*AJ33)+($A$34*AJ34)+($A$35*AJ35)+($A$36*AJ36)+($A$37*AJ37))/$A4 -> 10.5475
A7: =INPUT!F6 -> 725 | B7: =INPUT!E6 -> Corn (7% CP) | C7: =VLOOKUP($B7,'Feed Ingredients'!$A$2:$AA$125,(C$4), FALSE) -> 7 | D7: =VLOOKUP($B7,'Feed Ingredients'!$A$2:$AA$125,(D$4), FALSE) -> 0 | E7: =VLOOKUP($B7,'Feed Ingredients'!$A$2:$AA$125,(E$4), FALSE) -> 0.24 | F7: =VLOOKUP($B7,'Feed Ingredients'!$A$2:$AA$125,(F$4), FALSE) -> 0.2 | G7: =VLOOKUP($B7,'Feed Ingredients'!$A$2:$AA$125,(G$4), FALSE) -> 3.5 | H7: =VLOOKUP($B7,'Feed Ingredients'!$A$2:$AA$125,(H$4), FALSE) -> 2 | I7: =VLOOKUP($B7,'Feed Ingredients'!$A$2:$AA$125,(I$4), FALSE) -> 3.5 | J7: =VLOOKUP($B7,'Feed Ingredients'!$A$2:$AA$125,(J$4), FALSE) -> 9.5 | K7: =VLOOKUP($B7,'Feed Ingredients'!$A$2:$AA$125,(K$4), FALSE) -> 0.01 | L7: =VLOOKUP($B7,'Feed Ingredients'!$A$2:$AA$125,(L$4), FALSE) -> 0.25 | M7: =VLOOKUP($B7,'Feed Ingredients'!$A$2:$AA$125,(M$4), FALSE) -> 0 | N7: =VLOOKUP($B7,'Feed Ingredients'!$A$2:$AA$125,(N$4), FALSE) -> 0 | O7: =VLOOKUP($B7,'Feed Ingredients'!$A$2:$AA$125,(O$4), FALSE) -> 0.08 | P7: =VLOOKUP($B7,'Feed Ingredients'!$A$2:$AA$125,(P$4), FALSE) -> 0.32 | Q7: =VLOOKUP($B7,'Feed Ingredients'!$A$2:$AA$125,(Q$4), FALSE) -> 0.08 | R7: =VLOOKUP($B7,'Feed Ingredients'!$A$2:$AA$125,(R$4), FALSE) -> 3 | S7: =VLOOKUP($B7,'Feed Ingredients'!$A$2:$AA$125,(S$4), FALSE) -> 0 | T7: =VLOOKUP($B7,'Feed Ingredients'!$A$2:$AA$125,(T$4), FALSE) -> 19 | U7: =VLOOKUP($B7,'Feed Ingredients'!$A$2:$AA$125,(U$4), FALSE) -> 37 | V7: =VLOOKUP($B7,'Feed Ingredients'!$A$2:$AA$125,(V$4), FALSE) -> 6 | W7: =VLOOKUP($B7,'Feed Ingredients'!$A$2:$AA$125,(W$4), FALSE) -> 0.1 | X7: =VLOOKUP($B7,'Feed Ingredients'!$A$2:$AA$125,(X$4), FALSE) -> 0 | Y7: =VLOOKUP($B7,'Feed Ingredients'!$A$2:$AA$125,(Y$4), FALSE) -> 0 | Z7: =VLOOKUP($B7,'Feed Ingredients'!$A$2:$AA$125,(Z$4), FALSE) -> 0 | AA7: =VLOOKUP($B7,'Feed Ingredients'!$A$2:$AH$125,(AA$4), FALSE) -> 0 | AB7: =VLOOKUP($B7,'Feed Ingredients'!$A$2:$AH$125,(AB$4), FALSE) -> 0 | AC7: =VLOOKUP($B7,'Feed Ingredients'!$A$2:$AH$125,(AC$4), FALSE) -> 0 | AD7: =VLOOKUP($B7,'Feed Ingredients'!$A$2:$AH$125,(AD$4), FALSE) -> 0 | AE7: =VLOOKUP($B7,'Feed Ingredients'!$A$2:$AH$125,(AE$4), FALSE) -> 0 | AF7: =VLOOKUP($B7,'Feed Ingredients'!$A$2:$AH$125,(AF$4), FALSE) -> 0 | AG7: =VLOOKUP($B7,'Feed Ingredients'!$A$2:$AH$125,(AG$4), FALSE) -> 0 | AH7: =VLOOKUP($B7,'Feed Ingredients'!$A$2:$AH$125,(AH$4), FALSE) -> 0 | AJ7: =VLOOKUP($B7,'Feed Ingredients'!$A$2:$AH$125,(AJ$4), FALSE) -> 12
A8: =INPUT!F7 -> 300 | B8: =INPUT!E7 -> Corn Gluten Feed (18% CP) | C8: =VLOOKUP($B8,'Feed Ingredients'!$A$2:$AA$125,(C$4), FALSE) -> 18 | D8: =VLOOKUP($B8,'Feed Ingredients'!$A$2:$AA$125,(D$4), FALSE) -> 0 | E8: =VLOOKUP($B8,'Feed Ingredients'!$A$2:$AA$125,(E$4), FALSE) -> 0.6 | F8: =VLOOKUP($B8,'Feed Ingredients'!$A$2:$AA$125,(F$4), FALSE) -> 0.5 | G8: =VLOOKUP($B8,'Feed Ingredients'!$A$2:$AA$125,(G$4), FALSE) -> 3 | H8: =VLOOKUP($B8,'Feed Ingredients'!$A$2:$AA$125,(H$4), FALSE) -> 8 | I8: =VLOOKUP($B8,'Feed Ingredients'!$A$2:$AA$125,(I$4), FALSE) -> 11 | J8: =VLOOKUP($B8,'Feed Ingredients'!$A$2:$AA$125,(J$4), FALSE) -> 33 | K8: =VLOOKUP($B8,'Feed Ingredients'!$A$2:$AA$125,(K$4), FALSE) -> 0.15 | L8: =VLOOKUP($B8,'Feed Ingredients'!$A$2:$AA$125,(L$4), FALSE) -> 0.75 | M8: =VLOOKUP($B8,'Feed Ingredients'!$A$2:$AA$125,(M$4), FALSE) -> 0 | N8: =VLOOKUP($B8,'Feed Ingredients'!$A$2:$AA$125,(N$4), FALSE) -> 0 | O8: =VLOOKUP($B8,'Feed Ingredients'!$A$2:$AA$125,(O$4), FALSE) -> 0.29 | P8: =VLOOKUP($B8,'Feed Ingredients'!$A$2:$AA$125,(P$4), FALSE) -> 0.6 | Q8: =VLOOKUP($B8,'Feed Ingredients'!$A$2:$AA$125,(Q$4), FALSE) -> 0.16 | R8: =VLOOKUP($B8,'Feed Ingredients'!$A$2:$AA$125,(R$4), FALSE) -> 5 | S8: =VLOOKUP($B8,'Feed Ingredients'!$A$2:$AA$125,(S$4), FALSE) -> 0 | T8: =VLOOKUP($B8,'Feed Ingredients'!$A$2:$AA$125,(T$4), FALSE) -> 65 | U8: =VLOOKUP($B8,'Feed Ingredients'!$A$2:$AA$125,(U$4), FALSE) -> 160 | V8: =VLOOKUP($B8,'Feed Ingredients'!$A$2:$AA$125,(V$4), FALSE) -> 24 | W8: =VLOOKUP($B8,'Feed Ingredients'!$A$2:$AA$125,(W$4), FALSE) -> 0 | X8: =VLOOKUP($B8,'Feed Ingredients'!$A$2:$AA$125,(X$4), FALSE) -> 0 | Y8: =VLOOKUP($B8,'Feed Ingredients'!$A$2:$AA$125,(Y$4), FALSE) -> 0 | Z8: =VLOOKUP($B8,'Feed Ingredients'!$A$2:$AA$125,(Z$4), FALSE) -> 0 | AA8: =VLOOKUP($B8,'Feed Ingredients'!$A$2:$AH$125,(AA$4), FALSE) -> 0 | AB8: =VLOOKUP($B8,'Feed Ingredients'!$A$2:$AH$125,(AB$4), FALSE) -> 0 | AC8: =VLOOKUP($B8,'Feed Ingredients'!$A$2:$AH$125,(AC$4), FALSE) -> 0 | AD8: =VLOOKUP($B8,'Feed Ingredients'!$A$2:$AH$125,(AD$4), FALSE) -> 0 | AE8: =VLOOKUP($B8,'Feed Ingredients'!$A$2:$AH$125,(AE$4), FALSE) -> 0 | AF8: =VLOOKUP($B8,'Feed Ingredients'!$A$2:$AH$125,(AF$4), FALSE) -> 0 | AG8: =VLOOKUP($B8,'Feed Ingredients'!$A$2:$AH$125,(AG$4), FALSE) -> 0 | AH8: =VLOOKUP($B8,'Feed Ingredients'!$A$2:$AH$125,(AH$4), FALSE) -> 0 | AJ8: =VLOOKUP($B8,'Feed Ingredients'!$A$2:$AH$125,(AJ$4), FALSE) -> 10
A9: =INPUT!F8 -> 300 | B9: =INPUT!E8 -> Distillers DG w/sol Beverage | C9: =VLOOKUP($B9,'Feed Ingredients'!$A$2:$AA$125,(C$4), FALSE) -> 25 | D9: =VLOOKUP($B9,'Feed Ingredients'!$A$2:$AA$125,(D$4), FALSE) -> 0 | E9: =VLOOKUP($B9,'Feed Ingredients'!$A$2:$AA$125,(E$4), FALSE) -> 0.6 | F9: =VLOOKUP($B9,'Feed Ingredients'!$A$2:$AA$125,(F$4), FALSE) -> 1 | G9: =VLOOKUP($B9,'Feed Ingredients'!$A$2:$AA$125,(G$4), FALSE) -> 9 | H9: =VLOOKUP($B9,'Feed Ingredients'!$A$2:$AA$125,(H$4), FALSE) -> 8 | I9: =VLOOKUP($B9,'Feed Ingredients'!$A$2:$AA$125,(I$4), FALSE) -> 18 | J9: =VLOOKUP($B9,'Feed Ingredients'!$A$2:$AA$125,(J$4), FALSE) -> 34 | K9: =VLOOKUP($B9,'Feed Ingredients'!$A$2:$AA$125,(K$4), FALSE) -> 0.08 | L9: =VLOOKUP($B9,'Feed Ingredients'!$A$2:$AA$125,(L$4), FALSE) -> 0.64 | M9: =VLOOKUP($B9,'Feed Ingredients'!$A$2:$AA$125,(M$4), FALSE) -> 0 | N9: =VLOOKUP($B9,'Feed Ingredients'!$A$2:$AA$125,(N$4), FALSE) -> 0.03 | O9: =VLOOKUP($B9,'Feed Ingredients'!$A$2:$AA$125,(O$4), FALSE) -> 0.18 | P9: =VLOOKUP($B9,'Feed Ingredients'!$A$2:$AA$125,(P$4), FALSE) -> 0.63 | Q9: =VLOOKUP($B9,'Feed Ingredients'!$A$2:$AA$125,(Q$4), FALSE) -> 0.3 | R9: =VLOOKUP($B9,'Feed Ingredients'!$A$2:$AA$125,(R$4), FALSE) -> 20 | S9: =VLOOKUP($B9,'Feed Ingredients'!$A$2:$AA$125,(S$4), FALSE) -> 0 | T9: =VLOOKUP($B9,'Feed Ingredients'!$A$2:$AA$125,(T$4), FALSE) -> 81 | U9: =VLOOKUP($B9,'Feed Ingredients'!$A$2:$AA$125,(U$4), FALSE) -> 180 | V9: =VLOOKUP($B9,'Feed Ingredients'!$A$2:$AA$125,(V$4), FALSE) -> 29 | W9: =VLOOKUP($B9,'Feed Ingredients'!$A$2:$AA$125,(W$4), FALSE) -> 0.22 | X9: =VLOOKUP($B9,'Feed Ingredients'!$A$2:$AA$125,(X$4), FALSE) -> 0 | Y9: =VLOOKUP($B9,'Feed Ingredients'!$A$2:$AA$125,(Y$4), FALSE) -> 0 | Z9: =VLOOKUP($B9,'Feed Ingredients'!$A$2:$AA$125,(Z$4), FALSE) -> 0 | AA9: =VLOOKUP($B9,'Feed Ingredients'!$A$2:$AH$125,(AA$4), FALSE) -> 0 | AB9: =VLOOKUP($B9,'Feed Ingredients'!$A$2:$AH$125,(AB$4), FALSE) -> 0 | AC9: =VLOOKUP($B9,'Feed Ingredients'!$A$2:$AH$125,(AC$4), FALSE) -> 0 | AD9: =VLOOKUP($B9,'Feed Ingredients'!$A$2:$AH$125,(AD$4), FALSE) -> 0 | AE9: =VLOOKUP($B9,'Feed Ingredients'!$A$2:$AH$125,(AE$4), FALSE) -> 0 | AF9: =VLOOKUP($B9,'Feed Ingredients'!$A$2:$AH$125,(AF$4), FALSE) -> 0 | AG9: =VLOOKUP($B9,'Feed Ingredients'!$A$2:$AH$125,(AG$4), FALSE) -> 0 | AH9: =VLOOKUP($B9,'Feed Ingredients'!$A$2:$AH$125,(AH$4), FALSE) -> 0 | AJ9: =VLOOKUP($B9,'Feed Ingredients'!$A$2:$AH$125,(AJ$4), FALSE) -> 9
A10: =INPUT!F9 -> 400 | B10: =INPUT!E9 -> Soy Hulls | C10: =VLOOKUP($B10,'Feed Ingredients'!$A$2:$AA$125,(C$4), FALSE) -> 10.5 | D10: =VLOOKUP($B10,'Feed Ingredients'!$A$2:$AA$125,(D$4), FALSE) -> 0 | E10: =VLOOKUP($B10,'Feed Ingredients'!$A$2:$AA$125,(E$4), FALSE) -> 0.54 | F10: =VLOOKUP($B10,'Feed Ingredients'!$A$2:$AA$125,(F$4), FALSE) -> 0.12 | G10: =VLOOKUP($B10,'Feed Ingredients'!$A$2:$AA$125,(G$4), FALSE) -> 2.5 | H10: =VLOOKUP($B10,'Feed Ingredients'!$A$2:$AA$125,(H$4), FALSE) -> 34 | I10: =VLOOKUP($B10,'Feed Ingredients'!$A$2:$AA$125,(I$4), FALSE) -> 47 | J10: =VLOOKUP($B10,'Feed Ingredients'!$A$2:$AA$125,(J$4), FALSE) -> 59 | K10: =VLOOKUP($B10,'Feed Ingredients'!$A$2:$AA$125,(K$4), FALSE) -> 0.5 | L10: =VLOOKUP($B10,'Feed Ingredients'!$A$2:$AA$125,(L$4), FALSE) -> 0.17 | M10: =VLOOKUP($B10,'Feed Ingredients'!$A$2:$AA$125,(M$4), FALSE) -> 0 | N10: =VLOOKUP($B10,'Feed Ingredients'!$A$2:$AA$125,(N$4), FALSE) -> 0.17 | O10: =VLOOKUP($B10,'Feed Ingredients'!$A$2:$AA$125,(O$4), FALSE) -> 0.1 | P10: =VLOOKUP($B10,'Feed Ingredients'!$A$2:$AA$125,(P$4), FALSE) -> 1.16 | Q10: =VLOOKUP($B10,'Feed Ingredients'!$A$2:$AA$125,(Q$4), FALSE) -> 0.12 | R10: =VLOOKUP($B10,'Feed Ingredients'!$A$2:$AA$125,(R$4), FALSE) -> 17 | S10: =VLOOKUP($B10,'Feed Ingredients'!$A$2:$AA$125,(S$4), FALSE) -> 0 | T10: =VLOOKUP($B10,'Feed Ingredients'!$A$2:$AA$125,(T$4), FALSE) -> 30 | U10: =VLOOKUP($B10,'Feed Ingredients'!$A$2:$AA$125,(U$4), FALSE) -> 450 | V10: =VLOOKUP($B10,'Feed Ingredients'!$A$2:$AA$125,(V$4), FALSE) -> 20 | W10: =VLOOKUP($B10,'Feed Ingredients'!$A$2:$AA$125,(W$4), FALSE) -> 0.1 | X10: =VLOOKUP($B10,'Feed Ingredients'!$A$2:$AA$125,(X$4), FALSE) -> 0 | Y10: =VLOOKUP($B10,'Feed Ingredients'!$A$2:$AA$125,(Y$4), FALSE) -> 0 | Z10: =VLOOKUP($B10,'Feed Ingredients'!$A$2:$AA$125,(Z$4), FALSE) -> 0 | AA10: =VLOOKUP($B10,'Feed Ingredients'!$A$2:$AH$125,(AA$4), FALSE) -> 0 | AB10: =VLOOKUP($B10,'Feed Ingredients'!$A$2:$AH$125,(AB$4), FALSE) -> 0 | AC10: =VLOOKUP($B10,'Feed Ingredients'!$A$2:$AH$125,(AC$4), FALSE) -> 0 | AD10: =VLOOKUP($B10,'Feed Ingredients'!$A$2:$AH$125,(AD$4), FALSE) -> 0 | AE10: =VLOOKUP($B10,'Feed Ingredients'!$A$2:$AH$125,(AE$4), FALSE) -> 0 | AF10: =VLOOKUP($B10,'Feed Ingredients'!$A$2:$AH$125,(AF$4), FALSE) -> 0 | AG10: =VLOOKUP($B10,'Feed Ingredients'!$A$2:$AH$125,(AG$4), FALSE) -> 0 | AH10: =VLOOKUP($B10,'Feed Ingredients'!$A$2:$AH$125,(AH$4), FALSE) -> 0 | AJ10: =VLOOKUP($B10,'Feed Ingredients'!$A$2:$AH$125,(AJ$4), FALSE) -> 10
A11: =INPUT!F10 -> 200 | B11: =INPUT!E10 -> Soybean Meal 46.5 | C11: =VLOOKUP($B11,'Feed Ingredients'!$A$2:$AA$125,(C$4), FALSE) -> 46.5 | D11: =VLOOKUP($B11,'Feed Ingredients'!$A$2:$AA$125,(D$4), FALSE) -> 0 | E11: =VLOOKUP($B11,'Feed Ingredients'!$A$2:$AA$125,(E$4), FALSE) -> 3.15 | F11: =VLOOKUP($B11,'Feed Ingredients'!$A$2:$AA$125,(F$4), FALSE) -> 0.7 | G11: =VLOOKUP($B11,'Feed Ingredients'!$A$2:$AA$125,(G$4), FALSE) -> 2.75 | H11: =VLOOKUP($B11,'Feed Ingredients'!$A$2:$AA$125,(H$4), FALSE) -> 4.2 | I11: =VLOOKUP($B11,'Feed Ingredients'!$A$2:$AA$125,(I$4), FALSE) -> 8 | J11: =VLOOKUP($B11,'Feed Ingredients'!$A$2:$AA$125,(J$4), FALSE) -> 12 | K11: =VLOOKUP($B11,'Feed Ingredients'!$A$2:$AA$125,(K$4), FALSE) -> 0.4 | L11: =VLOOKUP($B11,'Feed Ingredients'!$A$2:$AA$125,(L$4), FALSE) -> 0.65 | M11: =VLOOKUP($B11,'Feed Ingredients'!$A$2:$AA$125,(M$4), FALSE) -> 0 | N11: =VLOOKUP($B11,'Feed Ingredients'!$A$2:$AA$125,(N$4), FALSE) -> 0.01 | O11: =VLOOKUP($B11,'Feed Ingredients'!$A$2:$AA$125,(O$4), FALSE) -> 0.27 | P11: =VLOOKUP($B11,'Feed Ingredients'!$A$2:$AA$125,(P$4), FALSE) -> 2 | Q11: =VLOOKUP($B11,'Feed Ingredients'!$A$2:$AA$125,(Q$4), FALSE) -> 0 | R11: =VLOOKUP($B11,'Feed Ingredients'!$A$2:$AA$125,(R$4), FALSE) -> 15 | S11: =VLOOKUP($B11,'Feed Ingredients'!$A$2:$AA$125,(S$4), FALSE) -> 0 | T11: =VLOOKUP($B11,'Feed Ingredients'!$A$2:$AA$125,(T$4), FALSE) -> 45 | U11: =VLOOKUP($B11,'Feed Ingredients'!$A$2:$AA$125,(U$4), FALSE) -> 90 | V11: =VLOOKUP($B11,'Feed Ingredients'!$A$2:$AA$125,(V$4), FALSE) -> 40 | W11: =VLOOKUP($B11,'Feed Ingredients'!$A$2:$AA$125,(W$4), FALSE) -> 0.5 | X11: =VLOOKUP($B11,'Feed Ingredients'!$A$2:$AA$125,(X$4), FALSE) -> 0 | Y11: =VLOOKUP($B11,'Feed Ingredients'!$A$2:$AA$125,(Y$4), FALSE) -> 0 | Z11: =VLOOKUP($B11,'Feed Ingredients'!$A$2:$AA$125,(Z$4), FALSE) -> 0 | AA11: =VLOOKUP($B11,'Feed Ingredients'!$A$2:$AH$125,(AA$4), FALSE) -> 0 | AB11: =VLOOKUP($B11,'Feed Ingredients'!$A$2:$AH$125,(AB$4), FALSE) -> 0 | AC11: =VLOOKUP($B11,'Feed Ingredients'!$A$2:$AH$125,(AC$4), FALSE) -> 0 | AD11: =VLOOKUP($B11,'Feed Ingredients'!$A$2:$AH$125,(AD$4), FALSE) -> 0 | AE11: =VLOOKUP($B11,'Feed Ingredients'!$A$2:$AH$125,(AE$4), FALSE) -> 0 | AF11: =VLOOKUP($B11,'Feed Ingredients'!$A$2:$AH$125,(AF$4), FALSE) -> 0 | AG11: =VLOOKUP($B11,'Feed Ingredients'!$A$2:$AH$125,(AG$4), FALSE) -> 0 | AH11: =VLOOKUP($B11,'Feed Ingredients'!$A$2:$AH$125,(AH$4), FALSE) -> 0 | AJ11: =VLOOKUP($B11,'Feed Ingredients'!$A$2:$AH$125,(AJ$4), FALSE) -> 11
A12: =INPUT!F11 -> 30 | B12: =INPUT!E11 -> Cane Molasses (Dried) | C12: =VLOOKUP($B12,'Feed Ingredients'!$A$2:$AA$125,(C$4), FALSE) -> 7 | D12: =VLOOKUP($B12,'Feed Ingredients'!$A$2:$AA$125,(D$4), FALSE) -> 0 | E12: =VLOOKUP($B12,'Feed Ingredients'!$A$2:$AA$125,(E$4), FALSE) -> 0.3 | F12: =VLOOKUP($B12,'Feed Ingredients'!$A$2:$AA$125,(F$4), FALSE) -> 0.01 | G12: =VLOOKUP($B12,'Feed Ingredients'!$A$2:$AA$125,(G$4), FALSE) -> 0.4 | H12: =VLOOKUP($B12,'Feed Ingredients'!$A$2:$AA$125,(H$4), FALSE) -> 6 | I12: =VLOOKUP($B12,'Feed Ingredients'!$A$2:$AA$125,(I$4), FALSE) -> 8 | J12: =VLOOKUP($B12,'Feed Ingredients'!$A$2:$AA$125,(J$4), FALSE) -> 10 | K12: =VLOOKUP($B12,'Feed Ingredients'!$A$2:$AA$125,(K$4), FALSE) -> 1.1 | L12: =VLOOKUP($B12,'Feed Ingredients'!$A$2:$AA$125,(L$4), FALSE) -> 0.14 | M12: =VLOOKUP($B12,'Feed Ingredients'!$A$2:$AA$125,(M$4), FALSE) -> 0 | N12: =VLOOKUP($B12,'Feed Ingredients'!$A$2:$AA$125,(N$4), FALSE) -> 0.2 | O12: =VLOOKUP($B12,'Feed Ingredients'!$A$2:$AA$125,(O$4), FALSE) -> 0.4 | P12: =VLOOKUP($B12,'Feed Ingredients'!$A$2:$AA$125,(P$4), FALSE) -> 3.4 | Q12: =VLOOKUP($B12,'Feed Ingredients'!$A$2:$AA$125,(Q$4), FALSE) -> 0.58 | R12: =VLOOKUP($B12,'Feed Ingredients'!$A$2:$AA$125,(R$4), FALSE) -> 70 | S12: =VLOOKUP($B12,'Feed Ingredients'!$A$2:$AA$125,(S$4), FALSE) -> 0 | T12: =VLOOKUP($B12,'Feed Ingredients'!$A$2:$AA$125,(T$4), FALSE) -> 28 | U12: =VLOOKUP($B12,'Feed Ingredients'!$A$2:$AA$125,(U$4), FALSE) -> 250 | V12: =VLOOKUP($B12,'Feed Ingredients'!$A$2:$AA$125,(V$4), FALSE) -> 52 | W12: =VLOOKUP($B12,'Feed Ingredients'!$A$2:$AA$125,(W$4), FALSE) -> 0 | X12: =VLOOKUP($B12,'Feed Ingredients'!$A$2:$AA$125,(X$4), FALSE) -> 0 | Y12: =VLOOKUP($B12,'Feed Ingredients'!$A$2:$AA$125,(Y$4), FALSE) -> 0 | Z12: =VLOOKUP($B12,'Feed Ingredients'!$A$2:$AA$125,(Z$4), FALSE) -> 0 | AA12: =VLOOKUP($B12,'Feed Ingredients'!$A$2:$AH$125,(AA$4), FALSE) -> 0 | AB12: =VLOOKUP($B12,'Feed Ingredients'!$A$2:$AH$125,(AB$4), FALSE) -> 0 | AC12: =VLOOKUP($B12,'Feed Ingredients'!$A$2:$AH$125,(AC$4), FALSE) -> 0 | AD12: =VLOOKUP($B12,'Feed Ingredients'!$A$2:$AH$125,(AD$4), FALSE) -> 0 | AE12: =VLOOKUP($B12,'Feed Ingredients'!$A$2:$AH$125,(AE$4), FALSE) -> 0 | AF12: =VLOOKUP($B12,'Feed Ingredients'!$A$2:$AH$125,(AF$4), FALSE) -> 0 | AG12: =VLOOKUP($B12,'Feed Ingredients'!$A$2:$AH$125,(AG$4), FALSE) -> 0 | AH12: =VLOOKUP($B12,'Feed Ingredients'!$A$2:$AH$125,(AH$4), FALSE) -> 0 | AJ12: =VLOOKUP($B12,'Feed Ingredients'!$A$2:$AH$125,(AJ$4), FALSE) -> 9
A13: =INPUT!F12 -> 25 | B13: =INPUT!E12 -> Calcium Carbonate | C13: =VLOOKUP($B13,'Feed Ingredients'!$A$2:$AA$125,(C$4), FALSE) -> 0 | D13: =VLOOKUP($B13,'Feed Ingredients'!$A$2:$AA$125,(D$4), FALSE) -> 0 | E13: =VLOOKUP($B13,'Feed Ingredients'!$A$2:$AA$125,(E$4), FALSE) -> 0 | F13: =VLOOKUP($B13,'Feed Ingredients'!$A$2:$AA$125,(F$4), FALSE) -> 0 | G13: =VLOOKUP($B13,'Feed Ingredients'!$A$2:$AA$125,(G$4), FALSE) -> 0 | H13: =VLOOKUP($B13,'Feed Ingredients'!$A$2:$AA$125,(H$4), FALSE) -> 0 | I13: =VLOOKUP($B13,'Feed Ingredients'!$A$2:$AA$125,(I$4), FALSE) -> 0 | J13: =VLOOKUP($B13,'Feed Ingredients'!$A$2:$AA$125,(J$4), FALSE) -> 0 | K13: =VLOOKUP($B13,'Feed Ingredients'!$A$2:$AA$125,(K$4), FALSE) -> 38 | L13: =VLOOKUP($B13,'Feed Ingredients'!$A$2:$AA$125,(L$4), FALSE) -> 0 | M13: =VLOOKUP($B13,'Feed Ingredients'!$A$2:$AA$125,(M$4), FALSE) -> 0 | N13: =VLOOKUP($B13,'Feed Ingredients'!$A$2:$AA$125,(N$4), FALSE) -> 0 | O13: =VLOOKUP($B13,'Feed Ingredients'!$A$2:$AA$125,(O$4), FALSE) -> 0 | P13: =VLOOKUP($B13,'Feed Ingredients'!$A$2:$AA$125,(P$4), FALSE) -> 0 | Q13: =VLOOKUP($B13,'Feed Ingredients'!$A$2:$AA$125,(Q$4), FALSE) -> 0 | R13: =VLOOKUP($B13,'Feed Ingredients'!$A$2:$AA$125,(R$4), FALSE) -> 0 | S13: =VLOOKUP($B13,'Feed Ingredients'!$A$2:$AA$125,(S$4), FALSE) -> 0 | T13: =VLOOKUP($B13,'Feed Ingredients'!$A$2:$AA$125,(T$4), FALSE) -> 0 | U13: =VLOOKUP($B13,'Feed Ingredients'!$A$2:$AA$125,(U$4), FALSE) -> 0 | V13: =VLOOKUP($B13,'Feed Ingredients'!$A$2:$AA$125,(V$4), FALSE) -> 0 | W13: =VLOOKUP($B13,'Feed Ingredients'!$A$2:$AA$125,(W$4), FALSE) -> 0 | X13: =VLOOKUP($B13,'Feed Ingredients'!$A$2:$AA$125,(X$4), FALSE) -> 0 | Y13: =VLOOKUP($B13,'Feed Ingredients'!$A$2:$AA$125,(Y$4), FALSE) -> 0 | Z13: =VLOOKUP($B13,'Feed Ingredients'!$A$2:$AA$125,(Z$4), FALSE) -> 0 | AA13: =VLOOKUP($B13,'Feed Ingredients'!$A$2:$AH$125,(AA$4), FALSE) -> 0 | AB13: =VLOOKUP($B13,'Feed Ingredients'!$A$2:$AH$125,(AB$4), FALSE) -> 0 | AC13: =VLOOKUP($B13,'Feed Ingredients'!$A$2:$AH$125,(AC$4), FALSE) -> 0 | AD13: =VLOOKUP($B13,'Feed Ingredients'!$A$2:$AH$125,(AD$4), FALSE) -> 0 | AE13: =VLOOKUP($B13,'Feed Ingredients'!$A$2:$AH$125,(AE$4), FALSE) -> 0 | AF13: =VLOOKUP($B13,'Feed Ingredients'!$A$2:$AH$125,(AF$4), FALSE) -> 0 | AG13: =VLOOKUP($B13,'Feed Ingredients'!$A$2:$AH$125,(AG$4), FALSE) -> 0 | AH13: =VLOOKUP($B13,'Feed Ingredients'!$A$2:$AH$125,(AH$4), FALSE) -> 0 | AJ13: =VLOOKUP($B13,'Feed Ingredients'!$A$2:$AH$125,(AJ$4), FALSE) -> 5
A14: =INPUT!F13 -> 15 | B14: =INPUT!E13 -> Salt (NaCl) | C14: =VLOOKUP($B14,'Feed Ingredients'!$A$2:$AA$125,(C$4), FALSE) -> 0 | D14: =VLOOKUP($B14,'Feed Ingredients'!$A$2:$AA$125,(D$4), FALSE) -> 0 | E14: =VLOOKUP($B14,'Feed Ingredients'!$A$2:$AA$125,(E$4), FALSE) -> 0 | F14: =VLOOKUP($B14,'Feed Ingredients'!$A$2:$AA$125,(F$4), FALSE) -> 0 | G14: =VLOOKUP($B14,'Feed Ingredients'!$A$2:$AA$125,(G$4), FALSE) -> 0 | H14: =VLOOKUP($B14,'Feed Ingredients'!$A$2:$AA$125,(H$4), FALSE) -> 0 | I14: =VLOOKUP($B14,'Feed Ingredients'!$A$2:$AA$125,(I$4), FALSE) -> 0 | J14: =VLOOKUP($B14,'Feed Ingredients'!$A$2:$AA$125,(J$4), FALSE) -> 0 | K14: =VLOOKUP($B14,'Feed Ingredients'!$A$2:$AA$125,(K$4), FALSE) -> 0 | L14: =VLOOKUP($B14,'Feed Ingredients'!$A$2:$AA$125,(L$4), FALSE) -> 0 | M14: =VLOOKUP($B14,'Feed Ingredients'!$A$2:$AA$125,(M$4), FALSE) -> 100 | N14: =VLOOKUP($B14,'Feed Ingredients'!$A$2:$AA$125,(N$4), FALSE) -> 39.34 | O14: =VLOOKUP($B14,'Feed Ingredients'!$A$2:$AA$125,(O$4), FALSE) -> 0 | P14: =VLOOKUP($B14,'Feed Ingredients'!$A$2:$AA$125,(P$4), FALSE) -> 0 | Q14: =VLOOKUP($B14,'Feed Ingredients'!$A$2:$AA$125,(Q$4), FALSE) -> 0 | R14: =VLOOKUP($B14,'Feed Ingredients'!$A$2:$AA$125,(R$4), FALSE) -> 0 | S14: =VLOOKUP($B14,'Feed Ingredients'!$A$2:$AA$125,(S$4), FALSE) -> 0 | T14: =VLOOKUP($B14,'Feed Ingredients'!$A$2:$AA$125,(T$4), FALSE) -> 0 | U14: =VLOOKUP($B14,'Feed Ingredients'!$A$2:$AA$125,(U$4), FALSE) -> 0 | V14: =VLOOKUP($B14,'Feed Ingredients'!$A$2:$AA$125,(V$4), FALSE) -> 0 | W14: =VLOOKUP($B14,'Feed Ingredients'!$A$2:$AA$125,(W$4), FALSE) -> 0 | X14: =VLOOKUP($B14,'Feed Ingredients'!$A$2:$AA$125,(X$4), FALSE) -> 0 | Y14: =VLOOKUP($B14,'Feed Ingredients'!$A$2:$AA$125,(Y$4), FALSE) -> 0 | Z14: =VLOOKUP($B14,'Feed Ingredients'!$A$2:$AA$125,(Z$4), FALSE) -> 0 | AA14: =VLOOKUP($B14,'Feed Ingredients'!$A$2:$AH$125,(AA$4), FALSE) -> 0 | AB14: =VLOOKUP($B14,'Feed Ingredients'!$A$2:$AH$125,(AB$4), FALSE) -> 0 | AC14: =VLOOKUP($B14,'Feed Ingredients'!$A$2:$AH$125,(AC$4), FALSE) -> 0 | AD14: =VLOOKUP($B14,'Feed Ingredients'!$A$2:$AH$125,(AD$4), FALSE) -> 0 | AE14: =VLOOKUP($B14,'Feed Ingredients'!$A$2:$AH$125,(AE$4), FALSE) -> 0 | AF14: =VLOOKUP($B14,'Feed Ingredients'!$A$2:$AH$125,(AF$4), FALSE) -> 0 | AG14: =VLOOKUP($B14,'Feed Ingredients'!$A$2:$AH$125,(AG$4), FALSE) -> 0 | AH14: =VLOOKUP($B14,'Feed Ingredients'!$A$2:$AH$125,(AH$4), FALSE) -> 0 | AJ14: =VLOOKUP($B14,'Feed Ingredients'!$A$2:$AH$125,(AJ$4), FALSE) -> 5
A15: =INPUT!F14 -> 5 | B15: =INPUT!E14 -> TM Salt | C15: =VLOOKUP($B15,'Feed Ingredients'!$A$2:$AA$125,(C$4), FALSE) -> 0 | D15: =VLOOKUP($B15,'Feed Ingredients'!$A$2:$AA$125,(D$4), FALSE) -> 0 | E15: =VLOOKUP($B15,'Feed Ingredients'!$A$2:$AA$125,(E$4), FALSE) -> 0 | F15: =VLOOKUP($B15,'Feed Ingredients'!$A$2:$AA$125,(F$4), FALSE) -> 0 | G15: =VLOOKUP($B15,'Feed Ingredients'!$A$2:$AA$125,(G$4), FALSE) -> 0 | H15: =VLOOKUP($B15,'Feed Ingredients'!$A$2:$AA$125,(H$4), FALSE) -> 0 | I15: =VLOOKUP($B15,'Feed Ingredients'!$A$2:$AA$125,(I$4), FALSE) -> 0 | J15: =VLOOKUP($B15,'Feed Ingredients'!$A$2:$AA$125,(J$4), FALSE) -> 0 | K15: =VLOOKUP($B15,'Feed Ingredients'!$A$2:$AA$125,(K$4), FALSE) -> 0 | L15: =VLOOKUP($B15,'Feed Ingredients'!$A$2:$AA$125,(L$4), FALSE) -> 0 | M15: =VLOOKUP($B15,'Feed Ingredients'!$A$2:$AA$125,(M$4), FALSE) -> 96.5 | N15: =VLOOKUP($B15,'Feed Ingredients'!$A$2:$AA$125,(N$4), FALSE) -> 37.9631 | O15: =VLOOKUP($B15,'Feed Ingredients'!$A$2:$AA$125,(O$4), FALSE) -> 0 | P15: =VLOOKUP($B15,'Feed Ingredients'!$A$2:$AA$125,(P$4), FALSE) -> 0 | Q15: =VLOOKUP($B15,'Feed Ingredients'!$A$2:$AA$125,(Q$4), FALSE) -> 0 | R15: =VLOOKUP($B15,'Feed Ingredients'!$A$2:$AA$125,(R$4), FALSE) -> 300 | S15: =VLOOKUP($B15,'Feed Ingredients'!$A$2:$AA$125,(S$4), FALSE) -> 0 | T15: =VLOOKUP($B15,'Feed Ingredients'!$A$2:$AA$125,(T$4), FALSE) -> 3500 | U15: =VLOOKUP($B15,'Feed Ingredients'!$A$2:$AA$125,(U$4), FALSE) -> 2000 | V15: =VLOOKUP($B15,'Feed Ingredients'!$A$2:$AA$125,(V$4), FALSE) -> 2000 | W15: =VLOOKUP($B15,'Feed Ingredients'!$A$2:$AA$125,(W$4), FALSE) -> 50 | X15: =VLOOKUP($B15,'Feed Ingredients'!$A$2:$AA$125,(X$4), FALSE) -> 0 | Y15: =VLOOKUP($B15,'Feed Ingredients'!$A$2:$AA$125,(Y$4), FALSE) -> 0 | Z15: =VLOOKUP($B15,'Feed Ingredients'!$A$2:$AA$125,(Z$4), FALSE) -> 0 | AA15: =VLOOKUP($B15,'Feed Ingredients'!$A$2:$AH$125,(AA$4), FALSE) -> 0 | AB15: =VLOOKUP($B15,'Feed Ingredients'!$A$2:$AH$125,(AB$4), FALSE) -> 0 | AC15: =VLOOKUP($B15,'Feed Ingredients'!$A$2:$AH$125,(AC$4), FALSE) -> 0 | AD15: =VLOOKUP($B15,'Feed Ingredients'!$A$2:$AH$125,(AD$4), FALSE) -> 0 | AE15: =VLOOKUP($B15,'Feed Ingredients'!$A$2:$AH$125,(AE$4), FALSE) -> 0 | AF15: =VLOOKUP($B15,'Feed Ingredients'!$A$2:$AH$125,(AF$4), FALSE) -> 0 | AG15: =VLOOKUP($B15,'Feed Ingredients'!$A$2:$AH$125,(AG$4), FALSE) -> 0 | AH15: =VLOOKUP($B15,'Feed Ingredients'!$A$2:$AH$125,(AH$4), FALSE) -> 0 | AJ15: =VLOOKUP($B15,'Feed Ingredients'!$A$2:$AH$125,(AJ$4), FALSE) -> 5
A16: =INPUT!F15 -> 0 | B16: =INPUT!E15 -> No feed | C16: =VLOOKUP($B16,'Feed Ingredients'!$A$2:$AA$125,(C$4), FALSE) -> 0 | D16: =VLOOKUP($B16,'Feed Ingredients'!$A$2:$AA$125,(D$4), FALSE) -> 0 | E16: =VLOOKUP($B16,'Feed Ingredients'!$A$2:$AA$125,(E$4), FALSE) -> 0 | F16: =VLOOKUP($B16,'Feed Ingredients'!$A$2:$AA$125,(F$4), FALSE) -> 0 | G16: =VLOOKUP($B16,'Feed Ingredients'!$A$2:$AA$125,(G$4), FALSE) -> 0 | H16: =VLOOKUP($B16,'Feed Ingredients'!$A$2:$AA$125,(H$4), FALSE) -> 0 | I16: =VLOOKUP($B16,'Feed Ingredients'!$A$2:$AA$125,(I$4), FALSE) -> 0 | J16: =VLOOKUP($B16,'Feed Ingredients'!$A$2:$AA$125,(J$4), FALSE) -> 0 | K16: =VLOOKUP($B16,'Feed Ingredients'!$A$2:$AA$125,(K$4), FALSE) -> 0 | L16: =VLOOKUP($B16,'Feed Ingredients'!$A$2:$AA$125,(L$4), FALSE) -> 0 | M16: =VLOOKUP($B16,'Feed Ingredients'!$A$2:$AA$125,(M$4), FALSE) -> 0 | N16: =VLOOKUP($B16,'Feed Ingredients'!$A$2:$AA$125,(N$4), FALSE) -> 0 | O16: =VLOOKUP($B16,'Feed Ingredients'!$A$2:$AA$125,(O$4), FALSE) -> 0 | P16: =VLOOKUP($B16,'Feed Ingredients'!$A$2:$AA$125,(P$4), FALSE) -> 0 | Q16: =VLOOKUP($B16,'Feed Ingredients'!$A$2:$AA$125,(Q$4), FALSE) -> 0 | R16: =VLOOKUP($B16,'Feed Ingredients'!$A$2:$AA$125,(R$4), FALSE) -> 0 | S16: =VLOOKUP($B16,'Feed Ingredients'!$A$2:$AA$125,(S$4), FALSE) -> 0 | T16: =VLOOKUP($B16,'Feed Ingredients'!$A$2:$AA$125,(T$4), FALSE) -> 0 | U16: =VLOOKUP($B16,'Feed Ingredients'!$A$2:$AA$125,(U$4), FALSE) -> 0 | V16: =VLOOKUP($B16,'Feed Ingredients'!$A$2:$AA$125,(V$4), FALSE) -> 0 | W16: =VLOOKUP($B16,'Feed Ingredients'!$A$2:$AA$125,(W$4), FALSE) -> 0 | X16: =VLOOKUP($B16,'Feed Ingredients'!$A$2:$AA$125,(X$4), FALSE) -> 0 | Y16: =VLOOKUP($B16,'Feed Ingredients'!$A$2:$AA$125,(Y$4), FALSE) -> 0 | Z16: =VLOOKUP($B16,'Feed Ingredients'!$A$2:$AA$125,(Z$4), FALSE) -> 0 | AA16: =VLOOKUP($B16,'Feed Ingredients'!$A$2:$AH$125,(AA$4), FALSE) -> 0 | AB16: =VLOOKUP($B16,'Feed Ingredients'!$A$2:$AH$125,(AB$4), FALSE) -> 0 | AC16: =VLOOKUP($B16,'Feed Ingredients'!$A$2:$AH$125,(AC$4), FALSE) -> 0 | AD16: =VLOOKUP($B16,'Feed Ingredients'!$A$2:$AH$125,(AD$4), FALSE) -> 0 | AE16: =VLOOKUP($B16,'Feed Ingredients'!$A$2:$AH$125,(AE$4), FALSE) -> 0 | AF16: =VLOOKUP($B16,'Feed Ingredients'!$A$2:$AH$125,(AF$4), FALSE) -> 0 | AG16: =VLOOKUP($B16,'Feed Ingredients'!$A$2:$AH$125,(AG$4), FALSE) -> 0 | AH16: =VLOOKUP($B16,'Feed Ingredients'!$A$2:$AH$125,(AH$4), FALSE) -> 0 | AJ16: =VLOOKUP($B16,'Feed Ingredients'!$A$2:$AH$125,(AJ$4), FALSE) -> 0
A17: =INPUT!F16 -> 0 | B17: =INPUT!E16 -> No feed | C17: =VLOOKUP($B17,'Feed Ingredients'!$A$2:$AA$125,(C$4), FALSE) -> 0 | D17: =VLOOKUP($B17,'Feed Ingredients'!$A$2:$AA$125,(D$4), FALSE) -> 0 | E17: =VLOOKUP($B17,'Feed Ingredients'!$A$2:$AA$125,(E$4), FALSE) -> 0 | F17: =VLOOKUP($B17,'Feed Ingredients'!$A$2:$AA$125,(F$4), FALSE) -> 0 | G17: =VLOOKUP($B17,'Feed Ingredients'!$A$2:$AA$125,(G$4), FALSE) -> 0 | H17: =VLOOKUP($B17,'Feed Ingredients'!$A$2:$AA$125,(H$4), FALSE) -> 0 | I17: =VLOOKUP($B17,'Feed Ingredients'!$A$2:$AA$125,(I$4), FALSE) -> 0 | J17: =VLOOKUP($B17,'Feed Ingredients'!$A$2:$AA$125,(J$4), FALSE) -> 0 | K17: =VLOOKUP($B17,'Feed Ingredients'!$A$2:$AA$125,(K$4), FALSE) -> 0 | L17: =VLOOKUP($B17,'Feed Ingredients'!$A$2:$AA$125,(L$4), FALSE) -> 0 | M17: =VLOOKUP($B17,'Feed Ingredients'!$A$2:$AA$125,(M$4), FALSE) -> 0 | N17: =VLOOKUP($B17,'Feed Ingredients'!$A$2:$AA$125,(N$4), FALSE) -> 0 | O17: =VLOOKUP($B17,'Feed Ingredients'!$A$2:$AA$125,(O$4), FALSE) -> 0 | P17: =VLOOKUP($B17,'Feed Ingredients'!$A$2:$AA$125,(P$4), FALSE) -> 0 | Q17: =VLOOKUP($B17,'Feed Ingredients'!$A$2:$AA$125,(Q$4), FALSE) -> 0 | R17: =VLOOKUP($B17,'Feed Ingredients'!$A$2:$AA$125,(R$4), FALSE) -> 0 | S17: =VLOOKUP($B17,'Feed Ingredients'!$A$2:$AA$125,(S$4), FALSE) -> 0 | T17: =VLOOKUP($B17,'Feed Ingredients'!$A$2:$AA$125,(T$4), FALSE) -> 0 | U17: =VLOOKUP($B17,'Feed Ingredients'!$A$2:$AA$125,(U$4), FALSE) -> 0 | V17: =VLOOKUP($B17,'Feed Ingredients'!$A$2:$AA$125,(V$4), FALSE) -> 0 | W17: =VLOOKUP($B17,'Feed Ingredients'!$A$2:$AA$125,(W$4), FALSE) -> 0 | X17: =VLOOKUP($B17,'Feed Ingredients'!$A$2:$AA$125,(X$4), FALSE) -> 0 | Y17: =VLOOKUP($B17,'Feed Ingredients'!$A$2:$AA$125,(Y$4), FALSE) -> 0 | Z17: =VLOOKUP($B17,'Feed Ingredients'!$A$2:$AA$125,(Z$4), FALSE) -> 0 | AA17: =VLOOKUP($B17,'Feed Ingredients'!$A$2:$AH$125,(AA$4), FALSE) -> 0 | AB17: =VLOOKUP($B17,'Feed Ingredients'!$A$2:$AH$125,(AB$4), FALSE) -> 0 | AC17: =VLOOKUP($B17,'Feed Ingredients'!$A$2:$AH$125,(AC$4), FALSE) -> 0 | AD17: =VLOOKUP($B17,'Feed Ingredients'!$A$2:$AH$125,(AD$4), FALSE) -> 0 | AE17: =VLOOKUP($B17,'Feed Ingredients'!$A$2:$AH$125,(AE$4), FALSE) -> 0 | AF17: =VLOOKUP($B17,'Feed Ingredients'!$A$2:$AH$125,(AF$4), FALSE) -> 0 | AG17: =VLOOKUP($B17,'Feed Ingredients'!$A$2:$AH$125,(AG$4), FALSE) -> 0 | AH17: =VLOOKUP($B17,'Feed Ingredients'!$A$2:$AH$125,(AH$4), FALSE) -> 0 | AJ17: =VLOOKUP($B17,'Feed Ingredients'!$A$2:$AH$125,(AJ$4), FALSE) -> 0
A18: =INPUT!F17 -> 0 | B18: =INPUT!E17 -> No feed | C18: =VLOOKUP($B18,'Feed Ingredients'!$A$2:$AA$125,(C$4), FALSE) -> 0 | D18: =VLOOKUP($B18,'Feed Ingredients'!$A$2:$AA$125,(D$4), FALSE) -> 0 | E18: =VLOOKUP($B18,'Feed Ingredients'!$A$2:$AA$125,(E$4), FALSE) -> 0 | F18: =VLOOKUP($B18,'Feed Ingredients'!$A$2:$AA$125,(F$4), FALSE) -> 0 | G18: =VLOOKUP($B18,'Feed Ingredients'!$A$2:$AA$125,(G$4), FALSE) -> 0 | H18: =VLOOKUP($B18,'Feed Ingredients'!$A$2:$AA$125,(H$4), FALSE) -> 0 | I18: =VLOOKUP($B18,'Feed Ingredients'!$A$2:$AA$125,(I$4), FALSE) -> 0 | J18: =VLOOKUP($B18,'Feed Ingredients'!$A$2:$AA$125,(J$4), FALSE) -> 0 | K18: =VLOOKUP($B18,'Feed Ingredients'!$A$2:$AA$125,(K$4), FALSE) -> 0 | L18: =VLOOKUP($B18,'Feed Ingredients'!$A$2:$AA$125,(L$4), FALSE) -> 0 | M18: =VLOOKUP($B18,'Feed Ingredients'!$A$2:$AA$125,(M$4), FALSE) -> 0 | N18: =VLOOKUP($B18,'Feed Ingredients'!$A$2:$AA$125,(N$4), FALSE) -> 0 | O18: =VLOOKUP($B18,'Feed Ingredients'!$A$2:$AA$125,(O$4), FALSE) -> 0 | P18: =VLOOKUP($B18,'Feed Ingredients'!$A$2:$AA$125,(P$4), FALSE) -> 0 | Q18: =VLOOKUP($B18,'Feed Ingredients'!$A$2:$AA$125,(Q$4), FALSE) -> 0 | R18: =VLOOKUP($B18,'Feed Ingredients'!$A$2:$AA$125,(R$4), FALSE) -> 0 | S18: =VLOOKUP($B18,'Feed Ingredients'!$A$2:$AA$125,(S$4), FALSE) -> 0 | T18: =VLOOKUP($B18,'Feed Ingredients'!$A$2:$AA$125,(T$4), FALSE) -> 0 | U18: =VLOOKUP($B18,'Feed Ingredients'!$A$2:$AA$125,(U$4), FALSE) -> 0 | V18: =VLOOKUP($B18,'Feed Ingredients'!$A$2:$AA$125,(V$4), FALSE) -> 0 | W18: =VLOOKUP($B18,'Feed Ingredients'!$A$2:$AA$125,(W$4), FALSE) -> 0 | X18: =VLOOKUP($B18,'Feed Ingredients'!$A$2:$AA$125,(X$4), FALSE) -> 0 | Y18: =VLOOKUP($B18,'Feed Ingredients'!$A$2:$AA$125,(Y$4), FALSE) -> 0 | Z18: =VLOOKUP($B18,'Feed Ingredients'!$A$2:$AA$125,(Z$4), FALSE) -> 0 | AA18: =VLOOKUP($B18,'Feed Ingredients'!$A$2:$AH$125,(AA$4), FALSE) -> 0 | AB18: =VLOOKUP($B18,'Feed Ingredients'!$A$2:$AH$125,(AB$4), FALSE) -> 0 | AC18: =VLOOKUP($B18,'Feed Ingredients'!$A$2:$AH$125,(AC$4), FALSE) -> 0 | AD18: =VLOOKUP($B18,'Feed Ingredients'!$A$2:$AH$125,(AD$4), FALSE) -> 0 | AE18: =VLOOKUP($B18,'Feed Ingredients'!$A$2:$AH$125,(AE$4), FALSE) -> 0 | AF18: =VLOOKUP($B18,'Feed Ingredients'!$A$2:$AH$125,(AF$4), FALSE) -> 0 | AG18: =VLOOKUP($B18,'Feed Ingredients'!$A$2:$AH$125,(AG$4), FALSE) -> 0 | AH18: =VLOOKUP($B18,'Feed Ingredients'!$A$2:$AH$125,(AH$4), FALSE) -> 0 | AJ18: =VLOOKUP($B18,'Feed Ingredients'!$A$2:$AH$125,(AJ$4), FALSE) -> 0
A19: =INPUT!F18 -> 0 | B19: =INPUT!E18 -> No feed | C19: =VLOOKUP($B19,'Feed Ingredients'!$A$2:$AA$125,(C$4), FALSE) -> 0 | D19: =VLOOKUP($B19,'Feed Ingredients'!$A$2:$AA$125,(D$4), FALSE) -> 0 | E19: =VLOOKUP($B19,'Feed Ingredients'!$A$2:$AA$125,(E$4), FALSE) -> 0 | F19: =VLOOKUP($B19,'Feed Ingredients'!$A$2:$AA$125,(F$4), FALSE) -> 0 | G19: =VLOOKUP($B19,'Feed Ingredients'!$A$2:$AA$125,(G$4), FALSE) -> 0 | H19: =VLOOKUP($B19,'Feed Ingredients'!$A$2:$AA$125,(H$4), FALSE) -> 0 | I19: =VLOOKUP($B19,'Feed Ingredients'!$A$2:$AA$125,(I$4), FALSE) -> 0 | J19: =VLOOKUP($B19,'Feed Ingredients'!$A$2:$AA$125,(J$4), FALSE) -> 0 | K19: =VLOOKUP($B19,'Feed Ingredients'!$A$2:$AA$125,(K$4), FALSE) -> 0 | L19: =VLOOKUP($B19,'Feed Ingredients'!$A$2:$AA$125,(L$4), FALSE) -> 0 | M19: =VLOOKUP($B19,'Feed Ingredients'!$A$2:$AA$125,(M$4), FALSE) -> 0 | N19: =VLOOKUP($B19,'Feed Ingredients'!$A$2:$AA$125,(N$4), FALSE) -> 0 | O19: =VLOOKUP($B19,'Feed Ingredients'!$A$2:$AA$125,(O$4), FALSE) -> 0 | P19: =VLOOKUP($B19,'Feed Ingredients'!$A$2:$AA$125,(P$4), FALSE) -> 0 | Q19: =VLOOKUP($B19,'Feed Ingredients'!$A$2:$AA$125,(Q$4), FALSE) -> 0 | R19: =VLOOKUP($B19,'Feed Ingredients'!$A$2:$AA$125,(R$4), FALSE) -> 0 | S19: =VLOOKUP($B19,'Feed Ingredients'!$A$2:$AA$125,(S$4), FALSE) -> 0 | T19: =VLOOKUP($B19,'Feed Ingredients'!$A$2:$AA$125,(T$4), FALSE) -> 0 | U19: =VLOOKUP($B19,'Feed Ingredients'!$A$2:$AA$125,(U$4), FALSE) -> 0 | V19: =VLOOKUP($B19,'Feed Ingredients'!$A$2:$AA$125,(V$4), FALSE) -> 0 | W19: =VLOOKUP($B19,'Feed Ingredients'!$A$2:$AA$125,(W$4), FALSE) -> 0 | X19: =VLOOKUP($B19,'Feed Ingredients'!$A$2:$AA$125,(X$4), FALSE) -> 0 | Y19: =VLOOKUP($B19,'Feed Ingredients'!$A$2:$AA$125,(Y$4), FALSE) -> 0 | Z19: =VLOOKUP($B19,'Feed Ingredients'!$A$2:$AA$125,(Z$4), FALSE) -> 0 | AA19: =VLOOKUP($B19,'Feed Ingredients'!$A$2:$AH$125,(AA$4), FALSE) -> 0 | AB19: =VLOOKUP($B19,'Feed Ingredients'!$A$2:$AH$125,(AB$4), FALSE) -> 0 | AC19: =VLOOKUP($B19,'Feed Ingredients'!$A$2:$AH$125,(AC$4), FALSE) -> 0 | AD19: =VLOOKUP($B19,'Feed Ingredients'!$A$2:$AH$125,(AD$4), FALSE) -> 0 | AE19: =VLOOKUP($B19,'Feed Ingredients'!$A$2:$AH$125,(AE$4), FALSE) -> 0 | AF19: =VLOOKUP($B19,'Feed Ingredients'!$A$2:$AH$125,(AF$4), FALSE) -> 0 | AG19: =VLOOKUP($B19,'Feed Ingredients'!$A$2:$AH$125,(AG$4), FALSE) -> 0 | AH19: =VLOOKUP($B19,'Feed Ingredients'!$A$2:$AH$125,(AH$4), FALSE) -> 0 | AJ19: =VLOOKUP($B19,'Feed Ingredients'!$A$2:$AH$125,(AJ$4), FALSE) -> 0
A20: =INPUT!F19 -> 0 | B20: =INPUT!E19 -> No feed | C20: =VLOOKUP($B20,'Feed Ingredients'!$A$2:$AA$125,(C$4), FALSE) -> 0 | D20: =VLOOKUP($B20,'Feed Ingredients'!$A$2:$AA$125,(D$4), FALSE) -> 0 | E20: =VLOOKUP($B20,'Feed Ingredients'!$A$2:$AA$125,(E$4), FALSE) -> 0 | F20: =VLOOKUP($B20,'Feed Ingredients'!$A$2:$AA$125,(F$4), FALSE) -> 0 | G20: =VLOOKUP($B20,'Feed Ingredients'!$A$2:$AA$125,(G$4), FALSE) -> 0 | H20: =VLOOKUP($B20,'Feed Ingredients'!$A$2:$AA$125,(H$4), FALSE) -> 0 | I20: =VLOOKUP($B20,'Feed Ingredients'!$A$2:$AA$125,(I$4), FALSE) -> 0 | J20: =VLOOKUP($B20,'Feed Ingredients'!$A$2:$AA$125,(J$4), FALSE) -> 0 | K20: =VLOOKUP($B20,'Feed Ingredients'!$A$2:$AA$125,(K$4), FALSE) -> 0 | L20: =VLOOKUP($B20,'Feed Ingredients'!$A$2:$AA$125,(L$4), FALSE) -> 0 | M20: =VLOOKUP($B20,'Feed Ingredients'!$A$2:$AA$125,(M$4), FALSE) -> 0 | N20: =VLOOKUP($B20,'Feed Ingredients'!$A$2:$AA$125,(N$4), FALSE) -> 0 | O20: =VLOOKUP($B20,'Feed Ingredients'!$A$2:$AA$125,(O$4), FALSE) -> 0 | P20: =VLOOKUP($B20,'Feed Ingredients'!$A$2:$AA$125,(P$4), FALSE) -> 0 | Q20: =VLOOKUP($B20,'Feed Ingredients'!$A$2:$AA$125,(Q$4), FALSE) -> 0 | R20: =VLOOKUP($B20,'Feed Ingredients'!$A$2:$AA$125,(R$4), FALSE) -> 0 | S20: =VLOOKUP($B20,'Feed Ingredients'!$A$2:$AA$125,(S$4), FALSE) -> 0 | T20: =VLOOKUP($B20,'Feed Ingredients'!$A$2:$AA$125,(T$4), FALSE) -> 0 | U20: =VLOOKUP($B20,'Feed Ingredients'!$A$2:$AA$125,(U$4), FALSE) -> 0 | V20: =VLOOKUP($B20,'Feed Ingredients'!$A$2:$AA$125,(V$4), FALSE) -> 0 | W20: =VLOOKUP($B20,'Feed Ingredients'!$A$2:$AA$125,(W$4), FALSE) -> 0 | X20: =VLOOKUP($B20,'Feed Ingredients'!$A$2:$AA$125,(X$4), FALSE) -> 0 | Y20: =VLOOKUP($B20,'Feed Ingredients'!$A$2:$AA$125,(Y$4), FALSE) -> 0 | Z20: =VLOOKUP($B20,'Feed Ingredients'!$A$2:$AA$125,(Z$4), FALSE) -> 0 | AA20: =VLOOKUP($B20,'Feed Ingredients'!$A$2:$AH$125,(AA$4), FALSE) -> 0 | AB20: =VLOOKUP($B20,'Feed Ingredients'!$A$2:$AH$125,(AB$4), FALSE) -> 0 | AC20: =VLOOKUP($B20,'Feed Ingredients'!$A$2:$AH$125,(AC$4), FALSE) -> 0 | AD20: =VLOOKUP($B20,'Feed Ingredients'!$A$2:$AH$125,(AD$4), FALSE) -> 0 | AE20: =VLOOKUP($B20,'Feed Ingredients'!$A$2:$AH$125,(AE$4), FALSE) -> 0 | AF20: =VLOOKUP($B20,'Feed Ingredients'!$A$2:$AH$125,(AF$4), FALSE) -> 0 | AG20: =VLOOKUP($B20,'Feed Ingredients'!$A$2:$AH$125,(AG$4), FALSE) -> 0 | AH20: =VLOOKUP($B20,'Feed Ingredients'!$A$2:$AH$125,(AH$4), FALSE) -> 0 | AJ20: =VLOOKUP($B20,'Feed Ingredients'!$A$2:$AH$125,(AJ$4), FALSE) -> 0
A21: =INPUT!F20 -> 0 | B21: =INPUT!E20 -> No feed | C21: =VLOOKUP($B21,'Feed Ingredients'!$A$2:$AA$125,(C$4), FALSE) -> 0 | D21: =VLOOKUP($B21,'Feed Ingredients'!$A$2:$AA$125,(D$4), FALSE) -> 0 | E21: =VLOOKUP($B21,'Feed Ingredients'!$A$2:$AA$125,(E$4), FALSE) -> 0 | F21: =VLOOKUP($B21,'Feed Ingredients'!$A$2:$AA$125,(F$4), FALSE) -> 0 | G21: =VLOOKUP($B21,'Feed Ingredients'!$A$2:$AA$125,(G$4), FALSE) -> 0 | H21: =VLOOKUP($B21,'Feed Ingredients'!$A$2:$AA$125,(H$4), FALSE) -> 0 | I21: =VLOOKUP($B21,'Feed Ingredients'!$A$2:$AA$125,(I$4), FALSE) -> 0 | J21: =VLOOKUP($B21,'Feed Ingredients'!$A$2:$AA$125,(J$4), FALSE) -> 0 | K21: =VLOOKUP($B21,'Feed Ingredients'!$A$2:$AA$125,(K$4), FALSE) -> 0 | L21: =VLOOKUP($B21,'Feed Ingredients'!$A$2:$AA$125,(L$4), FALSE) -> 0 | M21: =VLOOKUP($B21,'Feed Ingredients'!$A$2:$AA$125,(M$4), FALSE) -> 0 | N21: =VLOOKUP($B21,'Feed Ingredients'!$A$2:$AA$125,(N$4), FALSE) -> 0 | O21: =VLOOKUP($B21,'Feed Ingredients'!$A$2:$AA$125,(O$4), FALSE) -> 0 | P21: =VLOOKUP($B21,'Feed Ingredients'!$A$2:$AA$125,(P$4), FALSE) -> 0 | Q21: =VLOOKUP($B21,'Feed Ingredients'!$A$2:$AA$125,(Q$4), FALSE) -> 0 | R21: =VLOOKUP($B21,'Feed Ingredients'!$A$2:$AA$125,(R$4), FALSE) -> 0 | S21: =VLOOKUP($B21,'Feed Ingredients'!$A$2:$AA$125,(S$4), FALSE) -> 0 | T21: =VLOOKUP($B21,'Feed Ingredients'!$A$2:$AA$125,(T$4), FALSE) -> 0 | U21: =VLOOKUP($B21,'Feed Ingredients'!$A$2:$AA$125,(U$4), FALSE) -> 0 | V21: =VLOOKUP($B21,'Feed Ingredients'!$A$2:$AA$125,(V$4), FALSE) -> 0 | W21: =VLOOKUP($B21,'Feed Ingredients'!$A$2:$AA$125,(W$4), FALSE) -> 0 | X21: =VLOOKUP($B21,'Feed Ingredients'!$A$2:$AA$125,(X$4), FALSE) -> 0 | Y21: =VLOOKUP($B21,'Feed Ingredients'!$A$2:$AA$125,(Y$4), FALSE) -> 0 | Z21: =VLOOKUP($B21,'Feed Ingredients'!$A$2:$AA$125,(Z$4), FALSE) -> 0 | AA21: =VLOOKUP($B21,'Feed Ingredients'!$A$2:$AH$125,(AA$4), FALSE) -> 0 | AB21: =VLOOKUP($B21,'Feed Ingredients'!$A$2:$AH$125,(AB$4), FALSE) -> 0 | AC21: =VLOOKUP($B21,'Feed Ingredients'!$A$2:$AH$125,(AC$4), FALSE) -> 0 | AD21: =VLOOKUP($B21,'Feed Ingredients'!$A$2:$AH$125,(AD$4), FALSE) -> 0 | AE21: =VLOOKUP($B21,'Feed Ingredients'!$A$2:$AH$125,(AE$4), FALSE) -> 0 | AF21: =VLOOKUP($B21,'Feed Ingredients'!$A$2:$AH$125,(AF$4), FALSE) -> 0 | AG21: =VLOOKUP($B21,'Feed Ingredients'!$A$2:$AH$125,(AG$4), FALSE) -> 0 | AH21: =VLOOKUP($B21,'Feed Ingredients'!$A$2:$AH$125,(AH$4), FALSE) -> 0 | AJ21: =VLOOKUP($B21,'Feed Ingredients'!$A$2:$AH$125,(AJ$4), FALSE) -> 0
A22: =INPUT!F21 -> 0 | B22: =INPUT!E21 -> No feed | C22: =VLOOKUP($B22,'Feed Ingredients'!$A$2:$AA$125,(C$4), FALSE) -> 0 | D22: =VLOOKUP($B22,'Feed Ingredients'!$A$2:$AA$125,(D$4), FALSE) -> 0 | E22: =VLOOKUP($B22,'Feed Ingredients'!$A$2:$AA$125,(E$4), FALSE) -> 0 | F22: =VLOOKUP($B22,'Feed Ingredients'!$A$2:$AA$125,(F$4), FALSE) -> 0 | G22: =VLOOKUP($B22,'Feed Ingredients'!$A$2:$AA$125,(G$4), FALSE) -> 0 | H22: =VLOOKUP($B22,'Feed Ingredients'!$A$2:$AA$125,(H$4), FALSE) -> 0 | I22: =VLOOKUP($B22,'Feed Ingredients'!$A$2:$AA$125,(I$4), FALSE) -> 0 | J22: =VLOOKUP($B22,'Feed Ingredients'!$A$2:$AA$125,(J$4), FALSE) -> 0 | K22: =VLOOKUP($B22,'Feed Ingredients'!$A$2:$AA$125,(K$4), FALSE) -> 0 | L22: =VLOOKUP($B22,'Feed Ingredients'!$A$2:$AA$125,(L$4), FALSE) -> 0 | M22: =VLOOKUP($B22,'Feed Ingredients'!$A$2:$AA$125,(M$4), FALSE) -> 0 | N22: =VLOOKUP($B22,'Feed Ingredients'!$A$2:$AA$125,(N$4), FALSE) -> 0 | O22: =VLOOKUP($B22,'Feed Ingredients'!$A$2:$AA$125,(O$4), FALSE) -> 0 | P22: =VLOOKUP($B22,'Feed Ingredients'!$A$2:$AA$125,(P$4), FALSE) -> 0 | Q22: =VLOOKUP($B22,'Feed Ingredients'!$A$2:$AA$125,(Q$4), FALSE) -> 0 | R22: =VLOOKUP($B22,'Feed Ingredients'!$A$2:$AA$125,(R$4), FALSE) -> 0 | S22: =VLOOKUP($B22,'Feed Ingredients'!$A$2:$AA$125,(S$4), FALSE) -> 0 | T22: =VLOOKUP($B22,'Feed Ingredients'!$A$2:$AA$125,(T$4), FALSE) -> 0 | U22: =VLOOKUP($B22,'Feed Ingredients'!$A$2:$AA$125,(U$4), FALSE) -> 0 | V22: =VLOOKUP($B22,'Feed Ingredients'!$A$2:$AA$125,(V$4), FALSE) -> 0 | W22: =VLOOKUP($B22,'Feed Ingredients'!$A$2:$AA$125,(W$4), FALSE) -> 0 | X22: =VLOOKUP($B22,'Feed Ingredients'!$A$2:$AA$125,(X$4), FALSE) -> 0 | Y22: =VLOOKUP($B22,'Feed Ingredients'!$A$2:$AA$125,(Y$4), FALSE) -> 0 | Z22: =VLOOKUP($B22,'Feed Ingredients'!$A$2:$AA$125,(Z$4), FALSE) -> 0 | AA22: =VLOOKUP($B22,'Feed Ingredients'!$A$2:$AH$125,(AA$4), FALSE) -> 0 | AB22: =VLOOKUP($B22,'Feed Ingredients'!$A$2:$AH$125,(AB$4), FALSE) -> 0 | AC22: =VLOOKUP($B22,'Feed Ingredients'!$A$2:$AH$125,(AC$4), FALSE) -> 0 | AD22: =VLOOKUP($B22,'Feed Ingredients'!$A$2:$AH$125,(AD$4), FALSE) -> 0 | AE22: =VLOOKUP($B22,'Feed Ingredients'!$A$2:$AH$125,(AE$4), FALSE) -> 0 | AF22: =VLOOKUP($B22,'Feed Ingredients'!$A$2:$AH$125,(AF$4), FALSE) -> 0 | AG22: =VLOOKUP($B22,'Feed Ingredients'!$A$2:$AH$125,(AG$4), FALSE) -> 0 | AH22: =VLOOKUP($B22,'Feed Ingredients'!$A$2:$AH$125,(AH$4), FALSE) -> 0 | AJ22: =VLOOKUP($B22,'Feed Ingredients'!$A$2:$AH$125,(AJ$4), FALSE) -> 0
A23: =INPUT!F22 -> 0 | B23: =INPUT!E22 -> No feed | C23: =VLOOKUP($B23,'Feed Ingredients'!$A$2:$AA$125,(C$4), FALSE) -> 0 | D23: =VLOOKUP($B23,'Feed Ingredients'!$A$2:$AA$125,(D$4), FALSE) -> 0 | E23: =VLOOKUP($B23,'Feed Ingredients'!$A$2:$AA$125,(E$4), FALSE) -> 0 | F23: =VLOOKUP($B23,'Feed Ingredients'!$A$2:$AA$125,(F$4), FALSE) -> 0 | G23: =VLOOKUP($B23,'Feed Ingredients'!$A$2:$AA$125,(G$4), FALSE) -> 0 | H23: =VLOOKUP($B23,'Feed Ingredients'!$A$2:$AA$125,(H$4), FALSE) -> 0 | I23: =VLOOKUP($B23,'Feed Ingredients'!$A$2:$AA$125,(I$4), FALSE) -> 0 | J23: =VLOOKUP($B23,'Feed Ingredients'!$A$2:$AA$125,(J$4), FALSE) -> 0 | K23: =VLOOKUP($B23,'Feed Ingredients'!$A$2:$AA$125,(K$4), FALSE) -> 0 | L23: =VLOOKUP($B23,'Feed Ingredients'!$A$2:$AA$125,(L$4), FALSE) -> 0 | M23: =VLOOKUP($B23,'Feed Ingredients'!$A$2:$AA$125,(M$4), FALSE) -> 0 | N23: =VLOOKUP($B23,'Feed Ingredients'!$A$2:$AA$125,(N$4), FALSE) -> 0 | O23: =VLOOKUP($B23,'Feed Ingredients'!$A$2:$AA$125,(O$4), FALSE) -> 0 | P23: =VLOOKUP($B23,'Feed Ingredients'!$A$2:$AA$125,(P$4), FALSE) -> 0 | Q23: =VLOOKUP($B23,'Feed Ingredients'!$A$2:$AA$125,(Q$4), FALSE) -> 0 | R23: =VLOOKUP($B23,'Feed Ingredients'!$A$2:$AA$125,(R$4), FALSE) -> 0 | S23: =VLOOKUP($B23,'Feed Ingredients'!$A$2:$AA$125,(S$4), FALSE) -> 0 | T23: =VLOOKUP($B23,'Feed Ingredients'!$A$2:$AA$125,(T$4), FALSE) -> 0 | U23: =VLOOKUP($B23,'Feed Ingredients'!$A$2:$AA$125,(U$4), FALSE) -> 0 | V23: =VLOOKUP($B23,'Feed Ingredients'!$A$2:$AA$125,(V$4), FALSE) -> 0 | W23: =VLOOKUP($B23,'Feed Ingredients'!$A$2:$AA$125,(W$4), FALSE) -> 0 | X23: =VLOOKUP($B23,'Feed Ingredients'!$A$2:$AA$125,(X$4), FALSE) -> 0 | Y23: =VLOOKUP($B23,'Feed Ingredients'!$A$2:$AA$125,(Y$4), FALSE) -> 0 | Z23: =VLOOKUP($B23,'Feed Ingredients'!$A$2:$AA$125,(Z$4), FALSE) -> 0 | AA23: =VLOOKUP($B23,'Feed Ingredients'!$A$2:$AH$125,(AA$4), FALSE) -> 0 | AB23: =VLOOKUP($B23,'Feed Ingredients'!$A$2:$AH$125,(AB$4), FALSE) -> 0 | AC23: =VLOOKUP($B23,'Feed Ingredients'!$A$2:$AH$125,(AC$4), FALSE) -> 0 | AD23: =VLOOKUP($B23,'Feed Ingredients'!$A$2:$AH$125,(AD$4), FALSE) -> 0 | AE23: =VLOOKUP($B23,'Feed Ingredients'!$A$2:$AH$125,(AE$4), FALSE) -> 0 | AF23: =VLOOKUP($B23,'Feed Ingredients'!$A$2:$AH$125,(AF$4), FALSE) -> 0 | AG23: =VLOOKUP($B23,'Feed Ingredients'!$A$2:$AH$125,(AG$4), FALSE) -> 0 | AH23: =VLOOKUP($B23,'Feed Ingredients'!$A$2:$AH$125,(AH$4), FALSE) -> 0 | AJ23: =VLOOKUP($B23,'Feed Ingredients'!$A$2:$AH$125,(AJ$4), FALSE) -> 0
A24: =INPUT!F23 -> 0 | B24: =INPUT!E23 -> No feed | C24: =VLOOKUP($B24,'Feed Ingredients'!$A$2:$AA$125,(C$4), FALSE) -> 0 | D24: =VLOOKUP($B24,'Feed Ingredients'!$A$2:$AA$125,(D$4), FALSE) -> 0 | E24: =VLOOKUP($B24,'Feed Ingredients'!$A$2:$AA$125,(E$4), FALSE) -> 0 | F24: =VLOOKUP($B24,'Feed Ingredients'!$A$2:$AA$125,(F$4), FALSE) -> 0 | G24: =VLOOKUP($B24,'Feed Ingredients'!$A$2:$AA$125,(G$4), FALSE) -> 0 | H24: =VLOOKUP($B24,'Feed Ingredients'!$A$2:$AA$125,(H$4), FALSE) -> 0 | I24: =VLOOKUP($B24,'Feed Ingredients'!$A$2:$AA$125,(I$4), FALSE) -> 0 | J24: =VLOOKUP($B24,'Feed Ingredients'!$A$2:$AA$125,(J$4), FALSE) -> 0 | K24: =VLOOKUP($B24,'Feed Ingredients'!$A$2:$AA$125,(K$4), FALSE) -> 0 | L24: =VLOOKUP($B24,'Feed Ingredients'!$A$2:$AA$125,(L$4), FALSE) -> 0 | M24: =VLOOKUP($B24,'Feed Ingredients'!$A$2:$AA$125,(M$4), FALSE) -> 0 | N24: =VLOOKUP($B24,'Feed Ingredients'!$A$2:$AA$125,(N$4), FALSE) -> 0 | O24: =VLOOKUP($B24,'Feed Ingredients'!$A$2:$AA$125,(O$4), FALSE) -> 0 | P24: =VLOOKUP($B24,'Feed Ingredients'!$A$2:$AA$125,(P$4), FALSE) -> 0 | Q24: =VLOOKUP($B24,'Feed Ingredients'!$A$2:$AA$125,(Q$4), FALSE) -> 0 | R24: =VLOOKUP($B24,'Feed Ingredients'!$A$2:$AA$125,(R$4), FALSE) -> 0 | S24: =VLOOKUP($B24,'Feed Ingredients'!$A$2:$AA$125,(S$4), FALSE) -> 0 | T24: =VLOOKUP($B24,'Feed Ingredients'!$A$2:$AA$125,(T$4), FALSE) -> 0 | U24: =VLOOKUP($B24,'Feed Ingredients'!$A$2:$AA$125,(U$4), FALSE) -> 0 | V24: =VLOOKUP($B24,'Feed Ingredients'!$A$2:$AA$125,(V$4), FALSE) -> 0 | W24: =VLOOKUP($B24,'Feed Ingredients'!$A$2:$AA$125,(W$4), FALSE) -> 0 | X24: =VLOOKUP($B24,'Feed Ingredients'!$A$2:$AA$125,(X$4), FALSE) -> 0 | Y24: =VLOOKUP($B24,'Feed Ingredients'!$A$2:$AA$125,(Y$4), FALSE) -> 0 | Z24: =VLOOKUP($B24,'Feed Ingredients'!$A$2:$AA$125,(Z$4), FALSE) -> 0 | AA24: =VLOOKUP($B24,'Feed Ingredients'!$A$2:$AH$125,(AA$4), FALSE) -> 0 | AB24: =VLOOKUP($B24,'Feed Ingredients'!$A$2:$AH$125,(AB$4), FALSE) -> 0 | AC24: =VLOOKUP($B24,'Feed Ingredients'!$A$2:$AH$125,(AC$4), FALSE) -> 0 | AD24: =VLOOKUP($B24,'Feed Ingredients'!$A$2:$AH$125,(AD$4), FALSE) -> 0 | AE24: =VLOOKUP($B24,'Feed Ingredients'!$A$2:$AH$125,(AE$4), FALSE) -> 0 | AF24: =VLOOKUP($B24,'Feed Ingredients'!$A$2:$AH$125,(AF$4), FALSE) -> 0 | AG24: =VLOOKUP($B24,'Feed Ingredients'!$A$2:$AH$125,(AG$4), FALSE) -> 0 | AH24: =VLOOKUP($B24,'Feed Ingredients'!$A$2:$AH$125,(AH$4), FALSE) -> 0 | AJ24: =VLOOKUP($B24,'Feed Ingredients'!$A$2:$AH$125,(AJ$4), FALSE) -> 0
A25: =INPUT!F24 -> 0 | B25: =INPUT!E24 -> No feed | C25: =VLOOKUP($B25,'Feed Ingredients'!$A$2:$AA$125,(C$4), FALSE) -> 0 | D25: =VLOOKUP($B25,'Feed Ingredients'!$A$2:$AA$125,(D$4), FALSE) -> 0 | E25: =VLOOKUP($B25,'Feed Ingredients'!$A$2:$AA$125,(E$4), FALSE) -> 0 | F25: =VLOOKUP($B25,'Feed Ingredients'!$A$2:$AA$125,(F$4), FALSE) -> 0 | G25: =VLOOKUP($B25,'Feed Ingredients'!$A$2:$AA$125,(G$4), FALSE) -> 0 | H25: =VLOOKUP($B25,'Feed Ingredients'!$A$2:$AA$125,(H$4), FALSE) -> 0 | I25: =VLOOKUP($B25,'Feed Ingredients'!$A$2:$AA$125,(I$4), FALSE) -> 0 | J25: =VLOOKUP($B25,'Feed Ingredients'!$A$2:$AA$125,(J$4), FALSE) -> 0 | K25: =VLOOKUP($B25,'Feed Ingredients'!$A$2:$AA$125,(K$4), FALSE) -> 0 | L25: =VLOOKUP($B25,'Feed Ingredients'!$A$2:$AA$125,(L$4), FALSE) -> 0 | M25: =VLOOKUP($B25,'Feed Ingredients'!$A$2:$AA$125,(M$4), FALSE) -> 0 | N25: =VLOOKUP($B25,'Feed Ingredients'!$A$2:$AA$125,(N$4), FALSE) -> 0 | O25: =VLOOKUP($B25,'Feed Ingredients'!$A$2:$AA$125,(O$4), FALSE) -> 0 | P25: =VLOOKUP($B25,'Feed Ingredients'!$A$2:$AA$125,(P$4), FALSE) -> 0 | Q25: =VLOOKUP($B25,'Feed Ingredients'!$A$2:$AA$125,(Q$4), FALSE) -> 0 | R25: =VLOOKUP($B25,'Feed Ingredients'!$A$2:$AA$125,(R$4), FALSE) -> 0 | S25: =VLOOKUP($B25,'Feed Ingredients'!$A$2:$AA$125,(S$4), FALSE) -> 0 | T25: =VLOOKUP($B25,'Feed Ingredients'!$A$2:$AA$125,(T$4), FALSE) -> 0 | U25: =VLOOKUP($B25,'Feed Ingredients'!$A$2:$AA$125,(U$4), FALSE) -> 0 | V25: =VLOOKUP($B25,'Feed Ingredients'!$A$2:$AA$125,(V$4), FALSE) -> 0 | W25: =VLOOKUP($B25,'Feed Ingredients'!$A$2:$AA$125,(W$4), FALSE) -> 0 | X25: =VLOOKUP($B25,'Feed Ingredients'!$A$2:$AA$125,(X$4), FALSE) -> 0 | Y25: =VLOOKUP($B25,'Feed Ingredients'!$A$2:$AA$125,(Y$4), FALSE) -> 0 | Z25: =VLOOKUP($B25,'Feed Ingredients'!$A$2:$AA$125,(Z$4), FALSE) -> 0 | AA25: =VLOOKUP($B25,'Feed Ingredients'!$A$2:$AH$125,(AA$4), FALSE) -> 0 | AB25: =VLOOKUP($B25,'Feed Ingredients'!$A$2:$AH$125,(AB$4), FALSE) -> 0 | AC25: =VLOOKUP($B25,'Feed Ingredients'!$A$2:$AH$125,(AC$4), FALSE) -> 0 | AD25: =VLOOKUP($B25,'Feed Ingredients'!$A$2:$AH$125,(AD$4), FALSE) -> 0 | AE25: =VLOOKUP($B25,'Feed Ingredients'!$A$2:$AH$125,(AE$4), FALSE) -> 0 | AF25: =VLOOKUP($B25,'Feed Ingredients'!$A$2:$AH$125,(AF$4), FALSE) -> 0 | AG25: =VLOOKUP($B25,'Feed Ingredients'!$A$2:$AH$125,(AG$4), FALSE) -> 0 | AH25: =VLOOKUP($B25,'Feed Ingredients'!$A$2:$AH$125,(AH$4), FALSE) -> 0 | AJ25: =VLOOKUP($B25,'Feed Ingredients'!$A$2:$AH$125,(AJ$4), FALSE) -> 0
A26: =INPUT!F25 -> 0 | B26: =INPUT!E25 -> No feed | C26: =VLOOKUP($B26,'Feed Ingredients'!$A$2:$AA$125,(C$4), FALSE) -> 0 | D26: =VLOOKUP($B26,'Feed Ingredients'!$A$2:$AA$125,(D$4), FALSE) -> 0 | E26: =VLOOKUP($B26,'Feed Ingredients'!$A$2:$AA$125,(E$4), FALSE) -> 0 | F26: =VLOOKUP($B26,'Feed Ingredients'!$A$2:$AA$125,(F$4), FALSE) -> 0 | G26: =VLOOKUP($B26,'Feed Ingredients'!$A$2:$AA$125,(G$4), FALSE) -> 0 | H26: =VLOOKUP($B26,'Feed Ingredients'!$A$2:$AA$125,(H$4), FALSE) -> 0 | I26: =VLOOKUP($B26,'Feed Ingredients'!$A$2:$AA$125,(I$4), FALSE) -> 0 | J26: =VLOOKUP($B26,'Feed Ingredients'!$A$2:$AA$125,(J$4), FALSE) -> 0 | K26: =VLOOKUP($B26,'Feed Ingredients'!$A$2:$AA$125,(K$4), FALSE) -> 0 | L26: =VLOOKUP($B26,'Feed Ingredients'!$A$2:$AA$125,(L$4), FALSE) -> 0 | M26: =VLOOKUP($B26,'Feed Ingredients'!$A$2:$AA$125,(M$4), FALSE) -> 0 | N26: =VLOOKUP($B26,'Feed Ingredients'!$A$2:$AA$125,(N$4), FALSE) -> 0 | O26: =VLOOKUP($B26,'Feed Ingredients'!$A$2:$AA$125,(O$4), FALSE) -> 0 | P26: =VLOOKUP($B26,'Feed Ingredients'!$A$2:$AA$125,(P$4), FALSE) -> 0 | Q26: =VLOOKUP($B26,'Feed Ingredients'!$A$2:$AA$125,(Q$4), FALSE) -> 0 | R26: =VLOOKUP($B26,'Feed Ingredients'!$A$2:$AA$125,(R$4), FALSE) -> 0 | S26: =VLOOKUP($B26,'Feed Ingredients'!$A$2:$AA$125,(S$4), FALSE) -> 0 | T26: =VLOOKUP($B26,'Feed Ingredients'!$A$2:$AA$125,(T$4), FALSE) -> 0 | U26: =VLOOKUP($B26,'Feed Ingredients'!$A$2:$AA$125,(U$4), FALSE) -> 0 | V26: =VLOOKUP($B26,'Feed Ingredients'!$A$2:$AA$125,(V$4), FALSE) -> 0 | W26: =VLOOKUP($B26,'Feed Ingredients'!$A$2:$AA$125,(W$4), FALSE) -> 0 | X26: =VLOOKUP($B26,'Feed Ingredients'!$A$2:$AA$125,(X$4), FALSE) -> 0 | Y26: =VLOOKUP($B26,'Feed Ingredients'!$A$2:$AA$125,(Y$4), FALSE) -> 0 | Z26: =VLOOKUP($B26,'Feed Ingredients'!$A$2:$AA$125,(Z$4), FALSE) -> 0 | AA26: =VLOOKUP($B26,'Feed Ingredients'!$A$2:$AH$125,(AA$4), FALSE) -> 0 | AB26: =VLOOKUP($B26,'Feed Ingredients'!$A$2:$AH$125,(AB$4), FALSE) -> 0 | AC26: =VLOOKUP($B26,'Feed Ingredients'!$A$2:$AH$125,(AC$4), FALSE) -> 0 | AD26: =VLOOKUP($B26,'Feed Ingredients'!$A$2:$AH$125,(AD$4), FALSE) -> 0 | AE26: =VLOOKUP($B26,'Feed Ingredients'!$A$2:$AH$125,(AE$4), FALSE) -> 0 | AF26: =VLOOKUP($B26,'Feed Ingredients'!$A$2:$AH$125,(AF$4), FALSE) -> 0 | AG26: =VLOOKUP($B26,'Feed Ingredients'!$A$2:$AH$125,(AG$4), FALSE) -> 0 | AH26: =VLOOKUP($B26,'Feed Ingredients'!$A$2:$AH$125,(AH$4), FALSE) -> 0 | AJ26: =VLOOKUP($B26,'Feed Ingredients'!$A$2:$AH$125,(AJ$4), FALSE) -> 0
A27: =INPUT!F26 -> 0 | B27: =INPUT!E26 -> No feed | C27: =VLOOKUP($B27,'Feed Ingredients'!$A$2:$AA$125,(C$4), FALSE) -> 0 | D27: =VLOOKUP($B27,'Feed Ingredients'!$A$2:$AA$125,(D$4), FALSE) -> 0 | E27: =VLOOKUP($B27,'Feed Ingredients'!$A$2:$AA$125,(E$4), FALSE) -> 0 | F27: =VLOOKUP($B27,'Feed Ingredients'!$A$2:$AA$125,(F$4), FALSE) -> 0 | G27: =VLOOKUP($B27,'Feed Ingredients'!$A$2:$AA$125,(G$4), FALSE) -> 0 | H27: =VLOOKUP($B27,'Feed Ingredients'!$A$2:$AA$125,(H$4), FALSE) -> 0 | I27: =VLOOKUP($B27,'Feed Ingredients'!$A$2:$AA$125,(I$4), FALSE) -> 0 | J27: =VLOOKUP($B27,'Feed Ingredients'!$A$2:$AA$125,(J$4), FALSE) -> 0 | K27: =VLOOKUP($B27,'Feed Ingredients'!$A$2:$AA$125,(K$4), FALSE) -> 0 | L27: =VLOOKUP($B27,'Feed Ingredients'!$A$2:$AA$125,(L$4), FALSE) -> 0 | M27: =VLOOKUP($B27,'Feed Ingredients'!$A$2:$AA$125,(M$4), FALSE) -> 0 | N27: =VLOOKUP($B27,'Feed Ingredients'!$A$2:$AA$125,(N$4), FALSE) -> 0 | O27: =VLOOKUP($B27,'Feed Ingredients'!$A$2:$AA$125,(O$4), FALSE) -> 0 | P27: =VLOOKUP($B27,'Feed Ingredients'!$A$2:$AA$125,(P$4), FALSE) -> 0 | Q27: =VLOOKUP($B27,'Feed Ingredients'!$A$2:$AA$125,(Q$4), FALSE) -> 0 | R27: =VLOOKUP($B27,'Feed Ingredients'!$A$2:$AA$125,(R$4), FALSE) -> 0 | S27: =VLOOKUP($B27,'Feed Ingredients'!$A$2:$AA$125,(S$4), FALSE) -> 0 | T27: =VLOOKUP($B27,'Feed Ingredients'!$A$2:$AA$125,(T$4), FALSE) -> 0 | U27: =VLOOKUP($B27,'Feed Ingredients'!$A$2:$AA$125,(U$4), FALSE) -> 0 | V27: =VLOOKUP($B27,'Feed Ingredients'!$A$2:$AA$125,(V$4), FALSE) -> 0 | W27: =VLOOKUP($B27,'Feed Ingredients'!$A$2:$AA$125,(W$4), FALSE) -> 0 | X27: =VLOOKUP($B27,'Feed Ingredients'!$A$2:$AA$125,(X$4), FALSE) -> 0 | Y27: =VLOOKUP($B27,'Feed Ingredients'!$A$2:$AA$125,(Y$4), FALSE) -> 0 | Z27: =VLOOKUP($B27,'Feed Ingredients'!$A$2:$AA$125,(Z$4), FALSE) -> 0 | AA27: =VLOOKUP($B27,'Feed Ingredients'!$A$2:$AH$125,(AA$4), FALSE) -> 0 | AB27: =VLOOKUP($B27,'Feed Ingredients'!$A$2:$AH$125,(AB$4), FALSE) -> 0 | AC27: =VLOOKUP($B27,'Feed Ingredients'!$A$2:$AH$125,(AC$4), FALSE) -> 0 | AD27: =VLOOKUP($B27,'Feed Ingredients'!$A$2:$AH$125,(AD$4), FALSE) -> 0 | AE27: =VLOOKUP($B27,'Feed Ingredients'!$A$2:$AH$125,(AE$4), FALSE) -> 0 | AF27: =VLOOKUP($B27,'Feed Ingredients'!$A$2:$AH$125,(AF$4), FALSE) -> 0 | AG27: =VLOOKUP($B27,'Feed Ingredients'!$A$2:$AH$125,(AG$4), FALSE) -> 0 | AH27: =VLOOKUP($B27,'Feed Ingredients'!$A$2:$AH$125,(AH$4), FALSE) -> 0 | AJ27: =VLOOKUP($B27,'Feed Ingredients'!$A$2:$AH$125,(AJ$4), FALSE) -> 0
A28: =INPUT!F27 -> 0 | B28: =INPUT!E27 -> No feed | C28: =VLOOKUP($B28,'Feed Ingredients'!$A$2:$AA$125,(C$4), FALSE) -> 0 | D28: =VLOOKUP($B28,'Feed Ingredients'!$A$2:$AA$125,(D$4), FALSE) -> 0 | E28: =VLOOKUP($B28,'Feed Ingredients'!$A$2:$AA$125,(E$4), FALSE) -> 0 | F28: =VLOOKUP($B28,'Feed Ingredients'!$A$2:$AA$125,(F$4), FALSE) -> 0 | G28: =VLOOKUP($B28,'Feed Ingredients'!$A$2:$AA$125,(G$4), FALSE) -> 0 | H28: =VLOOKUP($B28,'Feed Ingredients'!$A$2:$AA$125,(H$4), FALSE) -> 0 | I28: =VLOOKUP($B28,'Feed Ingredients'!$A$2:$AA$125,(I$4), FALSE) -> 0 | J28: =VLOOKUP($B28,'Feed Ingredients'!$A$2:$AA$125,(J$4), FALSE) -> 0 | K28: =VLOOKUP($B28,'Feed Ingredients'!$A$2:$AA$125,(K$4), FALSE) -> 0 | L28: =VLOOKUP($B28,'Feed Ingredients'!$A$2:$AA$125,(L$4), FALSE) -> 0 | M28: =VLOOKUP($B28,'Feed Ingredients'!$A$2:$AA$125,(M$4), FALSE) -> 0 | N28: =VLOOKUP($B28,'Feed Ingredients'!$A$2:$AA$125,(N$4), FALSE) -> 0 | O28: =VLOOKUP($B28,'Feed Ingredients'!$A$2:$AA$125,(O$4), FALSE) -> 0 | P28: =VLOOKUP($B28,'Feed Ingredients'!$A$2:$AA$125,(P$4), FALSE) -> 0 | Q28: =VLOOKUP($B28,'Feed Ingredients'!$A$2:$AA$125,(Q$4), FALSE) -> 0 | R28: =VLOOKUP($B28,'Feed Ingredients'!$A$2:$AA$125,(R$4), FALSE) -> 0 | S28: =VLOOKUP($B28,'Feed Ingredients'!$A$2:$AA$125,(S$4), FALSE) -> 0 | T28: =VLOOKUP($B28,'Feed Ingredients'!$A$2:$AA$125,(T$4), FALSE) -> 0 | U28: =VLOOKUP($B28,'Feed Ingredients'!$A$2:$AA$125,(U$4), FALSE) -> 0 | V28: =VLOOKUP($B28,'Feed Ingredients'!$A$2:$AA$125,(V$4), FALSE) -> 0 | W28: =VLOOKUP($B28,'Feed Ingredients'!$A$2:$AA$125,(W$4), FALSE) -> 0 | X28: =VLOOKUP($B28,'Feed Ingredients'!$A$2:$AA$125,(X$4), FALSE) -> 0 | Y28: =VLOOKUP($B28,'Feed Ingredients'!$A$2:$AA$125,(Y$4), FALSE) -> 0 | Z28: =VLOOKUP($B28,'Feed Ingredients'!$A$2:$AA$125,(Z$4), FALSE) -> 0 | AA28: =VLOOKUP($B28,'Feed Ingredients'!$A$2:$AH$125,(AA$4), FALSE) -> 0 | AB28: =VLOOKUP($B28,'Feed Ingredients'!$A$2:$AH$125,(AB$4), FALSE) -> 0 | AC28: =VLOOKUP($B28,'Feed Ingredients'!$A$2:$AH$125,(AC$4), FALSE) -> 0 | AD28: =VLOOKUP($B28,'Feed Ingredients'!$A$2:$AH$125,(AD$4), FALSE) -> 0 | AE28: =VLOOKUP($B28,'Feed Ingredients'!$A$2:$AH$125,(AE$4), FALSE) -> 0 | AF28: =VLOOKUP($B28,'Feed Ingredients'!$A$2:$AH$125,(AF$4), FALSE) -> 0 | AG28: =VLOOKUP($B28,'Feed Ingredients'!$A$2:$AH$125,(AG$4), FALSE) -> 0 | AH28: =VLOOKUP($B28,'Feed Ingredients'!$A$2:$AH$125,(AH$4), FALSE) -> 0 | AJ28: =VLOOKUP($B28,'Feed Ingredients'!$A$2:$AH$125,(AJ$4), FALSE) -> 0
A29: =INPUT!F28 -> 0 | B29: =INPUT!E28 -> No feed | C29: =VLOOKUP($B29,'Feed Ingredients'!$A$2:$AA$125,(C$4), FALSE) -> 0 | D29: =VLOOKUP($B29,'Feed Ingredients'!$A$2:$AA$125,(D$4), FALSE) -> 0 | E29: =VLOOKUP($B29,'Feed Ingredients'!$A$2:$AA$125,(E$4), FALSE) -> 0 | F29: =VLOOKUP($B29,'Feed Ingredients'!$A$2:$AA$125,(F$4), FALSE) -> 0 | G29: =VLOOKUP($B29,'Feed Ingredients'!$A$2:$AA$125,(G$4), FALSE) -> 0 | H29: =VLOOKUP($B29,'Feed Ingredients'!$A$2:$AA$125,(H$4), FALSE) -> 0 | I29: =VLOOKUP($B29,'Feed Ingredients'!$A$2:$AA$125,(I$4), FALSE) -> 0 | J29: =VLOOKUP($B29,'Feed Ingredients'!$A$2:$AA$125,(J$4), FALSE) -> 0 | K29: =VLOOKUP($B29,'Feed Ingredients'!$A$2:$AA$125,(K$4), FALSE) -> 0 | L29: =VLOOKUP($B29,'Feed Ingredients'!$A$2:$AA$125,(L$4), FALSE) -> 0 | M29: =VLOOKUP($B29,'Feed Ingredients'!$A$2:$AA$125,(M$4), FALSE) -> 0 | N29: =VLOOKUP($B29,'Feed Ingredients'!$A$2:$AA$125,(N$4), FALSE) -> 0 | O29: =VLOOKUP($B29,'Feed Ingredients'!$A$2:$AA$125,(O$4), FALSE) -> 0 | P29: =VLOOKUP($B29,'Feed Ingredients'!$A$2:$AA$125,(P$4), FALSE) -> 0 | Q29: =VLOOKUP($B29,'Feed Ingredients'!$A$2:$AA$125,(Q$4), FALSE) -> 0 | R29: =VLOOKUP($B29,'Feed Ingredients'!$A$2:$AA$125,(R$4), FALSE) -> 0 | S29: =VLOOKUP($B29,'Feed Ingredients'!$A$2:$AA$125,(S$4), FALSE) -> 0 | T29: =VLOOKUP($B29,'Feed Ingredients'!$A$2:$AA$125,(T$4), FALSE) -> 0 | U29: =VLOOKUP($B29,'Feed Ingredients'!$A$2:$AA$125,(U$4), FALSE) -> 0 | V29: =VLOOKUP($B29,'Feed Ingredients'!$A$2:$AA$125,(V$4), FALSE) -> 0 | W29: =VLOOKUP($B29,'Feed Ingredients'!$A$2:$AA$125,(W$4), FALSE) -> 0 | X29: =VLOOKUP($B29,'Feed Ingredients'!$A$2:$AA$125,(X$4), FALSE) -> 0 | Y29: =VLOOKUP($B29,'Feed Ingredients'!$A$2:$AA$125,(Y$4), FALSE) -> 0 | Z29: =VLOOKUP($B29,'Feed Ingredients'!$A$2:$AA$125,(Z$4), FALSE) -> 0 | AA29: =VLOOKUP($B29,'Feed Ingredients'!$A$2:$AH$125,(AA$4), FALSE) -> 0 | AB29: =VLOOKUP($B29,'Feed Ingredients'!$A$2:$AH$125,(AB$4), FALSE) -> 0 | AC29: =VLOOKUP($B29,'Feed Ingredients'!$A$2:$AH$125,(AC$4), FALSE) -> 0 | AD29: =VLOOKUP($B29,'Feed Ingredients'!$A$2:$AH$125,(AD$4), FALSE) -> 0 | AE29: =VLOOKUP($B29,'Feed Ingredients'!$A$2:$AH$125,(AE$4), FALSE) -> 0 | AF29: =VLOOKUP($B29,'Feed Ingredients'!$A$2:$AH$125,(AF$4), FALSE) -> 0 | AG29: =VLOOKUP($B29,'Feed Ingredients'!$A$2:$AH$125,(AG$4), FALSE) -> 0 | AH29: =VLOOKUP($B29,'Feed Ingredients'!$A$2:$AH$125,(AH$4), FALSE) -> 0 | AJ29: =VLOOKUP($B29,'Feed Ingredients'!$A$2:$AH$125,(AJ$4), FALSE) -> 0
A30: =INPUT!F29 -> 0 | B30: =INPUT!E29 -> No feed | C30: =VLOOKUP($B30,'Feed Ingredients'!$A$2:$AA$125,(C$4), FALSE) -> 0 | D30: =VLOOKUP($B30,'Feed Ingredients'!$A$2:$AA$125,(D$4), FALSE) -> 0 | E30: =VLOOKUP($B30,'Feed Ingredients'!$A$2:$AA$125,(E$4), FALSE) -> 0 | F30: =VLOOKUP($B30,'Feed Ingredients'!$A$2:$AA$125,(F$4), FALSE) -> 0 | G30: =VLOOKUP($B30,'Feed Ingredients'!$A$2:$AA$125,(G$4), FALSE) -> 0 | H30: =VLOOKUP($B30,'Feed Ingredients'!$A$2:$AA$125,(H$4), FALSE) -> 0 | I30: =VLOOKUP($B30,'Feed Ingredients'!$A$2:$AA$125,(I$4), FALSE) -> 0 | J30: =VLOOKUP($B30,'Feed Ingredients'!$A$2:$AA$125,(J$4), FALSE) -> 0 | K30: =VLOOKUP($B30,'Feed Ingredients'!$A$2:$AA$125,(K$4), FALSE) -> 0 | L30: =VLOOKUP($B30,'Feed Ingredients'!$A$2:$AA$125,(L$4), FALSE) -> 0 | M30: =VLOOKUP($B30,'Feed Ingredients'!$A$2:$AA$125,(M$4), FALSE) -> 0 | N30: =VLOOKUP($B30,'Feed Ingredients'!$A$2:$AA$125,(N$4), FALSE) -> 0 | O30: =VLOOKUP($B30,'Feed Ingredients'!$A$2:$AA$125,(O$4), FALSE) -> 0 | P30: =VLOOKUP($B30,'Feed Ingredients'!$A$2:$AA$125,(P$4), FALSE) -> 0 | Q30: =VLOOKUP($B30,'Feed Ingredients'!$A$2:$AA$125,(Q$4), FALSE) -> 0 | R30: =VLOOKUP($B30,'Feed Ingredients'!$A$2:$AA$125,(R$4), FALSE) -> 0 | S30: =VLOOKUP($B30,'Feed Ingredients'!$A$2:$AA$125,(S$4), FALSE) -> 0 | T30: =VLOOKUP($B30,'Feed Ingredients'!$A$2:$AA$125,(T$4), FALSE) -> 0 | U30: =VLOOKUP($B30,'Feed Ingredients'!$A$2:$AA$125,(U$4), FALSE) -> 0 | V30: =VLOOKUP($B30,'Feed Ingredients'!$A$2:$AA$125,(V$4), FALSE) -> 0 | W30: =VLOOKUP($B30,'Feed Ingredients'!$A$2:$AA$125,(W$4), FALSE) -> 0 | X30: =VLOOKUP($B30,'Feed Ingredients'!$A$2:$AA$125,(X$4), FALSE) -> 0 | Y30: =VLOOKUP($B30,'Feed Ingredients'!$A$2:$AA$125,(Y$4), FALSE) -> 0 | Z30: =VLOOKUP($B30,'Feed Ingredients'!$A$2:$AA$125,(Z$4), FALSE) -> 0 | AA30: =VLOOKUP($B30,'Feed Ingredients'!$A$2:$AH$125,(AA$4), FALSE) -> 0 | AB30: =VLOOKUP($B30,'Feed Ingredients'!$A$2:$AH$125,(AB$4), FALSE) -> 0 | AC30: =VLOOKUP($B30,'Feed Ingredients'!$A$2:$AH$125,(AC$4), FALSE) -> 0 | AD30: =VLOOKUP($B30,'Feed Ingredients'!$A$2:$AH$125,(AD$4), FALSE) -> 0 | AE30: =VLOOKUP($B30,'Feed Ingredients'!$A$2:$AH$125,(AE$4), FALSE) -> 0 | AF30: =VLOOKUP($B30,'Feed Ingredients'!$A$2:$AH$125,(AF$4), FALSE) -> 0 | AG30: =VLOOKUP($B30,'Feed Ingredients'!$A$2:$AH$125,(AG$4), FALSE) -> 0 | AH30: =VLOOKUP($B30,'Feed Ingredients'!$A$2:$AH$125,(AH$4), FALSE) -> 0 | AJ30: =VLOOKUP($B30,'Feed Ingredients'!$A$2:$AH$125,(AJ$4), FALSE) -> 0
A31: =INPUT!F30 -> 0 | B31: =INPUT!E30 -> No feed | C31: =VLOOKUP($B31,'Feed Ingredients'!$A$2:$AA$125,(C$4), FALSE) -> 0 | D31: =VLOOKUP($B31,'Feed Ingredients'!$A$2:$AA$125,(D$4), FALSE) -> 0 | E31: =VLOOKUP($B31,'Feed Ingredients'!$A$2:$AA$125,(E$4), FALSE) -> 0 | F31: =VLOOKUP($B31,'Feed Ingredients'!$A$2:$AA$125,(F$4), FALSE) -> 0 | G31: =VLOOKUP($B31,'Feed Ingredients'!$A$2:$AA$125,(G$4), FALSE) -> 0 | H31: =VLOOKUP($B31,'Feed Ingredients'!$A$2:$AA$125,(H$4), FALSE) -> 0 | I31: =VLOOKUP($B31,'Feed Ingredients'!$A$2:$AA$125,(I$4), FALSE) -> 0 | J31: =VLOOKUP($B31,'Feed Ingredients'!$A$2:$AA$125,(J$4), FALSE) -> 0 | K31: =VLOOKUP($B31,'Feed Ingredients'!$A$2:$AA$125,(K$4), FALSE) -> 0 | L31: =VLOOKUP($B31,'Feed Ingredients'!$A$2:$AA$125,(L$4), FALSE) -> 0 | M31: =VLOOKUP($B31,'Feed Ingredients'!$A$2:$AA$125,(M$4), FALSE) -> 0 | N31: =VLOOKUP($B31,'Feed Ingredients'!$A$2:$AA$125,(N$4), FALSE) -> 0 | O31: =VLOOKUP($B31,'Feed Ingredients'!$A$2:$AA$125,(O$4), FALSE) -> 0 | P31: =VLOOKUP($B31,'Feed Ingredients'!$A$2:$AA$125,(P$4), FALSE) -> 0 | Q31: =VLOOKUP($B31,'Feed Ingredients'!$A$2:$AA$125,(Q$4), FALSE) -> 0 | R31: =VLOOKUP($B31,'Feed Ingredients'!$A$2:$AA$125,(R$4), FALSE) -> 0 | S31: =VLOOKUP($B31,'Feed Ingredients'!$A$2:$AA$125,(S$4), FALSE) -> 0 | T31: =VLOOKUP($B31,'Feed Ingredients'!$A$2:$AA$125,(T$4), FALSE) -> 0 | U31: =VLOOKUP($B31,'Feed Ingredients'!$A$2:$AA$125,(U$4), FALSE) -> 0 | V31: =VLOOKUP($B31,'Feed Ingredients'!$A$2:$AA$125,(V$4), FALSE) -> 0 | W31: =VLOOKUP($B31,'Feed Ingredients'!$A$2:$AA$125,(W$4), FALSE) -> 0 | X31: =VLOOKUP($B31,'Feed Ingredients'!$A$2:$AA$125,(X$4), FALSE) -> 0 | Y31: =VLOOKUP($B31,'Feed Ingredients'!$A$2:$AA$125,(Y$4), FALSE) -> 0 | Z31: =VLOOKUP($B31,'Feed Ingredients'!$A$2:$AA$125,(Z$4), FALSE) -> 0 | AA31: =VLOOKUP($B31,'Feed Ingredients'!$A$2:$AH$125,(AA$4), FALSE) -> 0 | AB31: =VLOOKUP($B31,'Feed Ingredients'!$A$2:$AH$125,(AB$4), FALSE) -> 0 | AC31: =VLOOKUP($B31,'Feed Ingredients'!$A$2:$AH$125,(AC$4), FALSE) -> 0 | AD31: =VLOOKUP($B31,'Feed Ingredients'!$A$2:$AH$125,(AD$4), FALSE) -> 0 | AE31: =VLOOKUP($B31,'Feed Ingredients'!$A$2:$AH$125,(AE$4), FALSE) -> 0 | AF31: =VLOOKUP($B31,'Feed Ingredients'!$A$2:$AH$125,(AF$4), FALSE) -> 0 | AG31: =VLOOKUP($B31,'Feed Ingredients'!$A$2:$AH$125,(AG$4), FALSE) -> 0 | AH31: =VLOOKUP($B31,'Feed Ingredients'!$A$2:$AH$125,(AH$4), FALSE) -> 0 | AJ31: =VLOOKUP($B31,'Feed Ingredients'!$A$2:$AH$125,(AJ$4), FALSE) -> 0
A32: =INPUT!F31 -> 0 | B32: =INPUT!E31 -> No feed | C32: =VLOOKUP($B32,'Feed Ingredients'!$A$2:$AA$125,(C$4), FALSE) -> 0 | D32: =VLOOKUP($B32,'Feed Ingredients'!$A$2:$AA$125,(D$4), FALSE) -> 0 | E32: =VLOOKUP($B32,'Feed Ingredients'!$A$2:$AA$125,(E$4), FALSE) -> 0 | F32: =VLOOKUP($B32,'Feed Ingredients'!$A$2:$AA$125,(F$4), FALSE) -> 0 | G32: =VLOOKUP($B32,'Feed Ingredients'!$A$2:$AA$125,(G$4), FALSE) -> 0 | H32: =VLOOKUP($B32,'Feed Ingredients'!$A$2:$AA$125,(H$4), FALSE) -> 0 | I32: =VLOOKUP($B32,'Feed Ingredients'!$A$2:$AA$125,(I$4), FALSE) -> 0 | J32: =VLOOKUP($B32,'Feed Ingredients'!$A$2:$AA$125,(J$4), FALSE) -> 0 | K32: =VLOOKUP($B32,'Feed Ingredients'!$A$2:$AA$125,(K$4), FALSE) -> 0 | L32: =VLOOKUP($B32,'Feed Ingredients'!$A$2:$AA$125,(L$4), FALSE) -> 0 | M32: =VLOOKUP($B32,'Feed Ingredients'!$A$2:$AA$125,(M$4), FALSE) -> 0 | N32: =VLOOKUP($B32,'Feed Ingredients'!$A$2:$AA$125,(N$4), FALSE) -> 0 | O32: =VLOOKUP($B32,'Feed Ingredients'!$A$2:$AA$125,(O$4), FALSE) -> 0 | P32: =VLOOKUP($B32,'Feed Ingredients'!$A$2:$AA$125,(P$4), FALSE) -> 0 | Q32: =VLOOKUP($B32,'Feed Ingredients'!$A$2:$AA$125,(Q$4), FALSE) -> 0 | R32: =VLOOKUP($B32,'Feed Ingredients'!$A$2:$AA$125,(R$4), FALSE) -> 0 | S32: =VLOOKUP($B32,'Feed Ingredients'!$A$2:$AA$125,(S$4), FALSE) -> 0 | T32: =VLOOKUP($B32,'Feed Ingredients'!$A$2:$AA$125,(T$4), FALSE) -> 0 | U32: =VLOOKUP($B32,'Feed Ingredients'!$A$2:$AA$125,(U$4), FALSE) -> 0 | V32: =VLOOKUP($B32,'Feed Ingredients'!$A$2:$AA$125,(V$4), FALSE) -> 0 | W32: =VLOOKUP($B32,'Feed Ingredients'!$A$2:$AA$125,(W$4), FALSE) -> 0 | X32: =VLOOKUP($B32,'Feed Ingredients'!$A$2:$AA$125,(X$4), FALSE) -> 0 | Y32: =VLOOKUP($B32,'Feed Ingredients'!$A$2:$AA$125,(Y$4), FALSE) -> 0 | Z32: =VLOOKUP($B32,'Feed Ingredients'!$A$2:$AA$125,(Z$4), FALSE) -> 0 | AA32: =VLOOKUP($B32,'Feed Ingredients'!$A$2:$AH$125,(AA$4), FALSE) -> 0 | AB32: =VLOOKUP($B32,'Feed Ingredients'!$A$2:$AH$125,(AB$4), FALSE) -> 0 | AC32: =VLOOKUP($B32,'Feed Ingredients'!$A$2:$AH$125,(AC$4), FALSE) -> 0 | AD32: =VLOOKUP($B32,'Feed Ingredients'!$A$2:$AH$125,(AD$4), FALSE) -> 0 | AE32: =VLOOKUP($B32,'Feed Ingredients'!$A$2:$AH$125,(AE$4), FALSE) -> 0 | AF32: =VLOOKUP($B32,'Feed Ingredients'!$A$2:$AH$125,(AF$4), FALSE) -> 0 | AG32: =VLOOKUP($B32,'Feed Ingredients'!$A$2:$AH$125,(AG$4), FALSE) -> 0 | AH32: =VLOOKUP($B32,'Feed Ingredients'!$A$2:$AH$125,(AH$4), FALSE) -> 0 | AJ32: =VLOOKUP($B32,'Feed Ingredients'!$A$2:$AH$125,(AJ$4), FALSE) -> 0
A33: =INPUT!F32 -> 0 | B33: =INPUT!E32 -> No feed | C33: =VLOOKUP($B33,'Feed Ingredients'!$A$2:$AA$125,(C$4), FALSE) -> 0 | D33: =VLOOKUP($B33,'Feed Ingredients'!$A$2:$AA$125,(D$4), FALSE) -> 0 | E33: =VLOOKUP($B33,'Feed Ingredients'!$A$2:$AA$125,(E$4), FALSE) -> 0 | F33: =VLOOKUP($B33,'Feed Ingredients'!$A$2:$AA$125,(F$4), FALSE) -> 0 | G33: =VLOOKUP($B33,'Feed Ingredients'!$A$2:$AA$125,(G$4), FALSE) -> 0 | H33: =VLOOKUP($B33,'Feed Ingredients'!$A$2:$AA$125,(H$4), FALSE) -> 0 | I33: =VLOOKUP($B33,'Feed Ingredients'!$A$2:$AA$125,(I$4), FALSE) -> 0 | J33: =VLOOKUP($B33,'Feed Ingredients'!$A$2:$AA$125,(J$4), FALSE) -> 0 | K33: =VLOOKUP($B33,'Feed Ingredients'!$A$2:$AA$125,(K$4), FALSE) -> 0 | L33: =VLOOKUP($B33,'Feed Ingredients'!$A$2:$AA$125,(L$4), FALSE) -> 0 | M33: =VLOOKUP($B33,'Feed Ingredients'!$A$2:$AA$125,(M$4), FALSE) -> 0 | N33: =VLOOKUP($B33,'Feed Ingredients'!$A$2:$AA$125,(N$4), FALSE) -> 0 | O33: =VLOOKUP($B33,'Feed Ingredients'!$A$2:$AA$125,(O$4), FALSE) -> 0 | P33: =VLOOKUP($B33,'Feed Ingredients'!$A$2:$AA$125,(P$4), FALSE) -> 0 | Q33: =VLOOKUP($B33,'Feed Ingredients'!$A$2:$AA$125,(Q$4), FALSE) -> 0 | R33: =VLOOKUP($B33,'Feed Ingredients'!$A$2:$AA$125,(R$4), FALSE) -> 0 | S33: =VLOOKUP($B33,'Feed Ingredients'!$A$2:$AA$125,(S$4), FALSE) -> 0 | T33: =VLOOKUP($B33,'Feed Ingredients'!$A$2:$AA$125,(T$4), FALSE) -> 0 | U33: =VLOOKUP($B33,'Feed Ingredients'!$A$2:$AA$125,(U$4), FALSE) -> 0 | V33: =VLOOKUP($B33,'Feed Ingredients'!$A$2:$AA$125,(V$4), FALSE) -> 0 | W33: =VLOOKUP($B33,'Feed Ingredients'!$A$2:$AA$125,(W$4), FALSE) -> 0 | X33: =VLOOKUP($B33,'Feed Ingredients'!$A$2:$AA$125,(X$4), FALSE) -> 0 | Y33: =VLOOKUP($B33,'Feed Ingredients'!$A$2:$AA$125,(Y$4), FALSE) -> 0 | Z33: =VLOOKUP($B33,'Feed Ingredients'!$A$2:$AA$125,(Z$4), FALSE) -> 0 | AA33: =VLOOKUP($B33,'Feed Ingredients'!$A$2:$AH$125,(AA$4), FALSE) -> 0 | AB33: =VLOOKUP($B33,'Feed Ingredients'!$A$2:$AH$125,(AB$4), FALSE) -> 0 | AC33: =VLOOKUP($B33,'Feed Ingredients'!$A$2:$AH$125,(AC$4), FALSE) -> 0 | AD33: =VLOOKUP($B33,'Feed Ingredients'!$A$2:$AH$125,(AD$4), FALSE) -> 0 | AE33: =VLOOKUP($B33,'Feed Ingredients'!$A$2:$AH$125,(AE$4), FALSE) -> 0 | AF33: =VLOOKUP($B33,'Feed Ingredients'!$A$2:$AH$125,(AF$4), FALSE) -> 0 | AG33: =VLOOKUP($B33,'Feed Ingredients'!$A$2:$AH$125,(AG$4), FALSE) -> 0 | AH33: =VLOOKUP($B33,'Feed Ingredients'!$A$2:$AH$125,(AH$4), FALSE) -> 0 | AJ33: =VLOOKUP($B33,'Feed Ingredients'!$A$2:$AH$125,(AJ$4), FALSE) -> 0
A34: =INPUT!F33 -> 0 | B34: =INPUT!E33 -> No feed | C34: =VLOOKUP($B34,'Feed Ingredients'!$A$2:$AA$125,(C$4), FALSE) -> 0 | D34: =VLOOKUP($B34,'Feed Ingredients'!$A$2:$AA$125,(D$4), FALSE) -> 0 | E34: =VLOOKUP($B34,'Feed Ingredients'!$A$2:$AA$125,(E$4), FALSE) -> 0 | F34: =VLOOKUP($B34,'Feed Ingredients'!$A$2:$AA$125,(F$4), FALSE) -> 0 | G34: =VLOOKUP($B34,'Feed Ingredients'!$A$2:$AA$125,(G$4), FALSE) -> 0 | H34: =VLOOKUP($B34,'Feed Ingredients'!$A$2:$AA$125,(H$4), FALSE) -> 0 | I34: =VLOOKUP($B34,'Feed Ingredients'!$A$2:$AA$125,(I$4), FALSE) -> 0 | J34: =VLOOKUP($B34,'Feed Ingredients'!$A$2:$AA$125,(J$4), FALSE) -> 0 | K34: =VLOOKUP($B34,'Feed Ingredients'!$A$2:$AA$125,(K$4), FALSE) -> 0 | L34: =VLOOKUP($B34,'Feed Ingredients'!$A$2:$AA$125,(L$4), FALSE) -> 0 | M34: =VLOOKUP($B34,'Feed Ingredients'!$A$2:$AA$125,(M$4), FALSE) -> 0 | N34: =VLOOKUP($B34,'Feed Ingredients'!$A$2:$AA$125,(N$4), FALSE) -> 0 | O34: =VLOOKUP($B34,'Feed Ingredients'!$A$2:$AA$125,(O$4), FALSE) -> 0 | P34: =VLOOKUP($B34,'Feed Ingredients'!$A$2:$AA$125,(P$4), FALSE) -> 0 | Q34: =VLOOKUP($B34,'Feed Ingredients'!$A$2:$AA$125,(Q$4), FALSE) -> 0 | R34: =VLOOKUP($B34,'Feed Ingredients'!$A$2:$AA$125,(R$4), FALSE) -> 0 | S34: =VLOOKUP($B34,'Feed Ingredients'!$A$2:$AA$125,(S$4), FALSE) -> 0 | T34: =VLOOKUP($B34,'Feed Ingredients'!$A$2:$AA$125,(T$4), FALSE) -> 0 | U34: =VLOOKUP($B34,'Feed Ingredients'!$A$2:$AA$125,(U$4), FALSE) -> 0 | V34: =VLOOKUP($B34,'Feed Ingredients'!$A$2:$AA$125,(V$4), FALSE) -> 0 | W34: =VLOOKUP($B34,'Feed Ingredients'!$A$2:$AA$125,(W$4), FALSE) -> 0 | X34: =VLOOKUP($B34,'Feed Ingredients'!$A$2:$AA$125,(X$4), FALSE) -> 0 | Y34: =VLOOKUP($B34,'Feed Ingredients'!$A$2:$AA$125,(Y$4), FALSE) -> 0 | Z34: =VLOOKUP($B34,'Feed Ingredients'!$A$2:$AA$125,(Z$4), FALSE) -> 0 | AA34: =VLOOKUP($B34,'Feed Ingredients'!$A$2:$AH$125,(AA$4), FALSE) -> 0 | AB34: =VLOOKUP($B34,'Feed Ingredients'!$A$2:$AH$125,(AB$4), FALSE) -> 0 | AC34: =VLOOKUP($B34,'Feed Ingredients'!$A$2:$AH$125,(AC$4), FALSE) -> 0 | AD34: =VLOOKUP($B34,'Feed Ingredients'!$A$2:$AH$125,(AD$4), FALSE) -> 0 | AE34: =VLOOKUP($B34,'Feed Ingredients'!$A$2:$AH$125,(AE$4), FALSE) -> 0 | AF34: =VLOOKUP($B34,'Feed Ingredients'!$A$2:$AH$125,(AF$4), FALSE) -> 0 | AG34: =VLOOKUP($B34,'Feed Ingredients'!$A$2:$AH$125,(AG$4), FALSE) -> 0 | AH34: =VLOOKUP($B34,'Feed Ingredients'!$A$2:$AH$125,(AH$4), FALSE) -> 0 | AJ34: =VLOOKUP($B34,'Feed Ingredients'!$A$2:$AH$125,(AJ$4), FALSE) -> 0
A35: =INPUT!F34 -> 0 | B35: =INPUT!E34 -> No feed | C35: =VLOOKUP($B35,'Feed Ingredients'!$A$2:$AA$125,(C$4), FALSE) -> 0 | D35: =VLOOKUP($B35,'Feed Ingredients'!$A$2:$AA$125,(D$4), FALSE) -> 0 | E35: =VLOOKUP($B35,'Feed Ingredients'!$A$2:$AA$125,(E$4), FALSE) -> 0 | F35: =VLOOKUP($B35,'Feed Ingredients'!$A$2:$AA$125,(F$4), FALSE) -> 0 | G35: =VLOOKUP($B35,'Feed Ingredients'!$A$2:$AA$125,(G$4), FALSE) -> 0 | H35: =VLOOKUP($B35,'Feed Ingredients'!$A$2:$AA$125,(H$4), FALSE) -> 0 | I35: =VLOOKUP($B35,'Feed Ingredients'!$A$2:$AA$125,(I$4), FALSE) -> 0 | J35: =VLOOKUP($B35,'Feed Ingredients'!$A$2:$AA$125,(J$4), FALSE) -> 0 | K35: =VLOOKUP($B35,'Feed Ingredients'!$A$2:$AA$125,(K$4), FALSE) -> 0 | L35: =VLOOKUP($B35,'Feed Ingredients'!$A$2:$AA$125,(L$4), FALSE) -> 0 | M35: =VLOOKUP($B35,'Feed Ingredients'!$A$2:$AA$125,(M$4), FALSE) -> 0 | N35: =VLOOKUP($B35,'Feed Ingredients'!$A$2:$AA$125,(N$4), FALSE) -> 0 | O35: =VLOOKUP($B35,'Feed Ingredients'!$A$2:$AA$125,(O$4), FALSE) -> 0 | P35: =VLOOKUP($B35,'Feed Ingredients'!$A$2:$AA$125,(P$4), FALSE) -> 0 | Q35: =VLOOKUP($B35,'Feed Ingredients'!$A$2:$AA$125,(Q$4), FALSE) -> 0 | R35: =VLOOKUP($B35,'Feed Ingredients'!$A$2:$AA$125,(R$4), FALSE) -> 0 | S35: =VLOOKUP($B35,'Feed Ingredients'!$A$2:$AA$125,(S$4), FALSE) -> 0 | T35: =VLOOKUP($B35,'Feed Ingredients'!$A$2:$AA$125,(T$4), FALSE) -> 0 | U35: =VLOOKUP($B35,'Feed Ingredients'!$A$2:$AA$125,(U$4), FALSE) -> 0 | V35: =VLOOKUP($B35,'Feed Ingredients'!$A$2:$AA$125,(V$4), FALSE) -> 0 | W35: =VLOOKUP($B35,'Feed Ingredients'!$A$2:$AA$125,(W$4), FALSE) -> 0 | X35: =VLOOKUP($B35,'Feed Ingredients'!$A$2:$AA$125,(X$4), FALSE) -> 0 | Y35: =VLOOKUP($B35,'Feed Ingredients'!$A$2:$AA$125,(Y$4), FALSE) -> 0 | Z35: =VLOOKUP($B35,'Feed Ingredients'!$A$2:$AA$125,(Z$4), FALSE) -> 0 | AA35: =VLOOKUP($B35,'Feed Ingredients'!$A$2:$AH$125,(AA$4), FALSE) -> 0 | AB35: =VLOOKUP($B35,'Feed Ingredients'!$A$2:$AH$125,(AB$4), FALSE) -> 0 | AC35: =VLOOKUP($B35,'Feed Ingredients'!$A$2:$AH$125,(AC$4), FALSE) -> 0 | AD35: =VLOOKUP($B35,'Feed Ingredients'!$A$2:$AH$125,(AD$4), FALSE) -> 0 | AE35: =VLOOKUP($B35,'Feed Ingredients'!$A$2:$AH$125,(AE$4), FALSE) -> 0 | AF35: =VLOOKUP($B35,'Feed Ingredients'!$A$2:$AH$125,(AF$4), FALSE) -> 0 | AG35: =VLOOKUP($B35,'Feed Ingredients'!$A$2:$AH$125,(AG$4), FALSE) -> 0 | AH35: =VLOOKUP($B35,'Feed Ingredients'!$A$2:$AH$125,(AH$4), FALSE) -> 0 | AJ35: =VLOOKUP($B35,'Feed Ingredients'!$A$2:$AH$125,(AJ$4), FALSE) -> 0
A36: =INPUT!F35 -> 0 | B36: =INPUT!E35 -> No feed | C36: =VLOOKUP($B36,'Feed Ingredients'!$A$2:$AA$125,(C$4), FALSE) -> 0 | D36: =VLOOKUP($B36,'Feed Ingredients'!$A$2:$AA$125,(D$4), FALSE) -> 0 | E36: =VLOOKUP($B36,'Feed Ingredients'!$A$2:$AA$125,(E$4), FALSE) -> 0 | F36: =VLOOKUP($B36,'Feed Ingredients'!$A$2:$AA$125,(F$4), FALSE) -> 0 | G36: =VLOOKUP($B36,'Feed Ingredients'!$A$2:$AA$125,(G$4), FALSE) -> 0 | H36: =VLOOKUP($B36,'Feed Ingredients'!$A$2:$AA$125,(H$4), FALSE) -> 0 | I36: =VLOOKUP($B36,'Feed Ingredients'!$A$2:$AA$125,(I$4), FALSE) -> 0 | J36: =VLOOKUP($B36,'Feed Ingredients'!$A$2:$AA$125,(J$4), FALSE) -> 0 | K36: =VLOOKUP($B36,'Feed Ingredients'!$A$2:$AA$125,(K$4), FALSE) -> 0 | L36: =VLOOKUP($B36,'Feed Ingredients'!$A$2:$AA$125,(L$4), FALSE) -> 0 | M36: =VLOOKUP($B36,'Feed Ingredients'!$A$2:$AA$125,(M$4), FALSE) -> 0 | N36: =VLOOKUP($B36,'Feed Ingredients'!$A$2:$AA$125,(N$4), FALSE) -> 0 | O36: =VLOOKUP($B36,'Feed Ingredients'!$A$2:$AA$125,(O$4), FALSE) -> 0 | P36: =VLOOKUP($B36,'Feed Ingredients'!$A$2:$AA$125,(P$4), FALSE) -> 0 | Q36: =VLOOKUP($B36,'Feed Ingredients'!$A$2:$AA$125,(Q$4), FALSE) -> 0 | R36: =VLOOKUP($B36,'Feed Ingredients'!$A$2:$AA$125,(R$4), FALSE) -> 0 | S36: =VLOOKUP($B36,'Feed Ingredients'!$A$2:$AA$125,(S$4), FALSE) -> 0 | T36: =VLOOKUP($B36,'Feed Ingredients'!$A$2:$AA$125,(T$4), FALSE) -> 0 | U36: =VLOOKUP($B36,'Feed Ingredients'!$A$2:$AA$125,(U$4), FALSE) -> 0 | V36: =VLOOKUP($B36,'Feed Ingredients'!$A$2:$AA$125,(V$4), FALSE) -> 0 | W36: =VLOOKUP($B36,'Feed Ingredients'!$A$2:$AA$125,(W$4), FALSE) -> 0 | X36: =VLOOKUP($B36,'Feed Ingredients'!$A$2:$AA$125,(X$4), FALSE) -> 0 | Y36: =VLOOKUP($B36,'Feed Ingredients'!$A$2:$AA$125,(Y$4), FALSE) -> 0 | Z36: =VLOOKUP($B36,'Feed Ingredients'!$A$2:$AA$125,(Z$4), FALSE) -> 0 | AA36: =VLOOKUP($B36,'Feed Ingredients'!$A$2:$AH$125,(AA$4), FALSE) -> 0 | AB36: =VLOOKUP($B36,'Feed Ingredients'!$A$2:$AH$125,(AB$4), FALSE) -> 0 | AC36: =VLOOKUP($B36,'Feed Ingredients'!$A$2:$AH$125,(AC$4), FALSE) -> 0 | AD36: =VLOOKUP($B36,'Feed Ingredients'!$A$2:$AH$125,(AD$4), FALSE) -> 0 | AE36: =VLOOKUP($B36,'Feed Ingredients'!$A$2:$AH$125,(AE$4), FALSE) -> 0 | AF36: =VLOOKUP($B36,'Feed Ingredients'!$A$2:$AH$125,(AF$4), FALSE) -> 0 | AG36: =VLOOKUP($B36,'Feed Ingredients'!$A$2:$AH$125,(AG$4), FALSE) -> 0 | AH36: =VLOOKUP($B36,'Feed Ingredients'!$A$2:$AH$125,(AH$4), FALSE) -> 0 | AJ36: =VLOOKUP($B36,'Feed Ingredients'!$A$2:$AH$125,(AJ$4), FALSE) -> 0

Sheet Min_Max
A1: Min / Max Calculations
K2: From Print_Tag | N2: Min | O2: Max | S2: Beef Feed
A3: CF & ADF (rabbit) | E3: Max > min by not> | G3: 5 | H3: % units | K3: 10.15 | L3: =ROUND(K3,1) -> 10.2 | N3: =L3-2.5 -> 7.7 | O3: =L3+2.5 -> 12.7 | S3: Dairy Feed
S4: Equine Feed
A5: Ca, Salt, Na | B5: Range | S5: Swine Feed
B6: Min | C6: Max | K6: From Print_Tag | N6: Min | O6: Max | P6: + / - | S6: Poultry Feed
A7: <2.5 | B7: 0 | C7: 2.499 | E7: Max > min by not> | G7: 0.5 | H7: % units | K7: 2.35 | L7: =ROUND(K7,1) -> 2.4 | N7: =L7-(P7) -> 2.15 | O7: =L7+(P7) -> 2.65 | P7: 0.25 | S7: Goat Feed
A8: 2.5 - 5 | B8: 2.5 | C8: 5 | E8: Max > min by not> | G8: 1 | H8: % units | K8: 5 | L8: =ROUND(K8,1) -> 5 | N8: =L8-(P8) -> 4.5 | O8: =L8+(P8) -> 5.5 | P8: 0.5 | S8: Sheep Feed
A9: 5+ | B9: 5.01 | C9: 27.5 | E9: Max > min by not> | G9: 5 | H9: % units | K9: 26 | L9: =ROUND(K9,1) -> 26 | N9: 25.91 | O9: 26.09 | P9: 0.09 | Q9: Conc *0.09 | S9: Rabbit Feed
A10: 5+ | B10: 27.51 | C10: 100 | E10: Max > min by not> | G10: 20 | H10: % of min | K10: 27.5 | L10: =ROUND(K10,1) -> 27.5 | N10: 25 | O10: 30 | P10: 2.5 | S10: Fish Feed
S11: Deer Feed
A12: From Print_Tag | E12: + / - | G12: Min | H12: Max | S12: Deer Mineral
A13: Ca | B13: =Print_Tag!E14 -> 0.669625 | E13: =IF($B13>$B$10,$P$10,IF($B13>$B$9,($P$9*B13), IF($B13>$B$8,$P$8,$P$7))) -> 0.25 | G13: =(ROUND(B13,1))-E13 -> 0.45 | H13: =(ROUND(B13,1))+E13 -> 0.95 | S13: Mineral Feed
A14: Salt | B14: =Print_Tag!E16 -> 0.99125 | E14: =IF($B14>$B$10,$P$10,IF($B14>$B$9,($P$9*B14), IF($B14>$B$8,$P$8,$P$7))) -> 0.25 | G14: =B14-E14 -> 0.74125 | H14: =B14+E14 -> 1.24125 | S14: Milk Replacer
A15: Na | B15: =Print_Tag!E17 -> 0 | E15: =IF($B15>$B$10,$P$10,IF($B15>$B$9,($P$9*B15), IF($B15>$B$8,$P$8,$P$7))) -> 0.25 | G15: -0.25 | H15: 0.25

Sheet Drug_Calc2
A1: Insp. No. | B1: ='Calculation Sheet'!B1 -> 0 | C1: Mnfr. No. | E1: ='Calculation Sheet'!D1 -> 0
C2: Mnfr. Name | E2: ='Calculation Sheet'!D2 -> 0
A3: Formula Weight lb. | B3: ='Calculation Sheet'!A4 -> 2000 | C3: Product | E3: ='Calculation Sheet'!D3 -> 0
A6: Medication | B6: g/ton | C6: g/lb | D6: mg/lb | E6: %
A7: Chlortetracycline | B7: ='Calculation Sheet'!AB6 -> 0 | C7: =B7/2000 -> 0 | D7: =C7*1000 -> 0 | E7: =(B7/453.54)/2000 -> 0 | H7: =IF(B7>0,1,0) -> 0
A8: Sulfamethazine | B8: ='Calculation Sheet'!AC6 -> 0 | C8: =B8/2000 -> 0 | D8: =C8*1000 -> 0 | E8: =(B8/453.54)/2000 -> 0 | H8: =IF(B8>0,1,0) -> 0
A9: Monensin | B9: ='Calculation Sheet'!AD6 -> 0 | C9: 0 | D9: 0 | E9: 0 | H9: 0
A10: Lasalocid | B10: ='Calculation Sheet'!AE6 -> 0 | C10: 0 | D10: 0 | E10: 0 | H10: 0
A11: Deccox | B11: ='Calculation Sheet'!AF6 -> 0 | C11: =B11/2000 -> 0 | D11: =C11*1000 -> 0 | E11: =(B11/453.54)/2000 -> 0 | H11: 0
A12: Bacitracin | B12: ='Calculation Sheet'!AG6 -> 0 | C12: 0 | D12: 0 | E12: 0 | H12: 0
A13: Amprolium | B13: ='Calculation Sheet'!AH6 -> 0 | C13: =B13/2000 -> 0 | D13: =C13*1000 -> 0 | E13: =(B13/453.54)/2000 -> 0 | H13: =IF(B13>0,1,0) -> 0
D15: Feed rate lb/d = | E15: =Printout!B34 -> 5
A16: Chlortetracycline g/ton | B16: =B7 -> 0 | C16: Chlortetracycline mg/hd/d | E16: =E$15*D7 -> 0
A17: Sulfamethazine g/ton | B17: 0 | C17: Sulfamethazine mg/hd/d | E17: 0
A18: Monensin g/ton | B18: 0 | C18: Monensin mg/hd/d | E18: 0
A19: Lasalocid g/ton | B19: 0 | C19: Lasalocid mg/hd/d | E19: 0
A20: Deccox g/ton | B20: 0 | C20: Deccox mg/hd/d | E20: 0
A21: Bacitracin g/ton | B21: 0 | C21: Bacitracin mg/hd/d | E21: 0
A22: Amprolium g/ton | B22: 0 | C22: Amprolium mg/hd/d | E22: 0
E24: Med 1 | F24: =VLOOKUP($C$27,$C$28:$N$37,4,0) -> None | G24: =VLOOKUP($C$27,$C$28:$N$37,5,0) ->  | H24: =VLOOKUP($C$27,$C$28:$N$37,6,0) ->  | I24: =VLOOKUP($C$27,$C$28:$N$37,7,0) -> 
E25: Med 2 | F25: =VLOOKUP($C$27,$C$28:$N$37,9,0) ->  | G25: =VLOOKUP($C$27,$C$28:$N$37,10,0) ->  | H25: =VLOOKUP($C$27,$C$28:$N$37,11,0) ->  | I25: =VLOOKUP($C$27,$C$28:$N$37,12,0) -> 
C27: =MAX(C28:C37) -> 1
A28: No med | B28: 1 | C28: =IF(SUM(H7:H13)<1,B28,0) -> 1 | F28: None | G28: =" " ->  | H28: =" " ->  | I28: =" " -> 
A29: CTC & no other med | B29: 2 | C29: =IF(AND(H7=1,SUM(H$7:H$13)<2),B29,0) -> 0 | F29: =A16 -> Chlortetracycline g/ton | G29: =B16 -> 0 | H29: =C16 -> Chlortetracycline mg/hd/d | I29: =E16 -> 0
A30: CTC & SMZ | B30: 3 | C30: =IF(AND(H7=1,H8=1),B30,0) -> 0 | F30: =A16 -> Chlortetracycline g/ton | G30: =B16 -> 0 | H30: =C16 -> Chlortetracycline mg/hd/d | I30: =E16 -> 0 | K30: =A17 -> Sulfamethazine g/ton | L30: =B17 -> 0 | M30: =C17 -> Sulfamethazine mg/hd/d | N30: =E17 -> 0
A31: CTC & Lasalocid | B31: 4 | C31: =IF(AND(H7=1,H10=1),B31,0) -> 0 | F31: =A16 -> Chlortetracycline g/ton | G31: 0 | H31: Chlortetracycline mg/hd/d | I31: =E16 -> 0 | K31: =A19 -> Lasalocid g/ton | L31: =B19 -> 0 | M31: =C19 -> Lasalocid mg/hd/d | N31: =E19 -> 0
A32: SMZ & no other med | B32: 5 | C32: =IF(AND(H10=1,SUM(H$7:H$13)<2),B32,0) -> 0 | F32: Sulfamethazine g/ton | G32: 0 | H32: Sulfamethazine mg/hd/d | I32: 0
A33: Monensin & no other med | B33: 6 | C33: =IF(AND(H9=1,SUM(H$7:H$13)<2),B33,0) -> 0 | F33: =A18 -> Monensin g/ton | G33: =B18 -> 0 | H33: =C18 -> Monensin mg/hd/d | I33: 0
A34: Lasalocid & no other med | B34: 7 | C34: =IF(AND(H10=1,SUM(H$7:H$13)<2),B34,0) -> 0 | F34: =A19 -> Lasalocid g/ton | G34: 0 | H34: =C19 -> Lasalocid mg/hd/d | I34: 0
A35: Deccox & no other med | B35: 8 | C35: =IF(AND(H11=1,SUM(H$7:H$13)<2),B35,0) -> 0 | F35: =A20 -> Deccox g/ton | G35: 0 | H35: Deccox mg/hd/d | I35: 0
A36: BMD & no other med | B36: 9 | C36: =IF(AND(H12=1,SUM(H$7:H$13)<2),B36,0) -> 0 | F36: Bacitracin g/ton | G36: 0 | H36: Bacitracin mg/hd/d | I36: 0
A37: Amprolium & no other med | B37: 10 | C37: =IF(AND(H13=1,SUM(H$7:H$13)<2),B37,0) -> 0 | F37: =A22 -> Amprolium g/ton | G37: =B22 -> 0 | H37: =C22 -> Amprolium mg/hd/d | I37: =E22 -> 0
